Workbook

Sheet Startseite
J4: Startseite
B5: Lohnpfändungsrechner 2024/2025
D9: Tabellenblätter | M9: Tabellenblatt | N9: 1
G10: Info
G11: =INDEX(Parameter_Intern!C5:D8,Startseite!N9,2) -> Hier geben Sie die Daten für den Lohnpfändungsrechner ein | M11: =+N9/2 -> 0.5 | N11: =+ROUND(N9/2,0) -> 1
M12: =IF(M11=N11,1,2) -> 2
D17: ="Bei einem Klick auf "&H17&" kommen Sie direkt zum entsprechenden Arbeitsblatt" -> Bei einem Klick auf Eingaben kommen Sie direkt zum entsprechenden Arbeitsblatt | H17: =+HYPERLINK(VLOOKUP($N$9,Parameter_Intern!$B$5:$E$30,4,FALSE),VLOOKUP($N$9,Parameter_Intern!$B$5:$E$30,2,FALSE)) -> Eingaben
B39: © 2024 by mediaforwork - ein Unternehmensbereich der Verlag für die Deutsche Wirtschaft AG
B40: Die Vervielfältigung, Verbreitung oder Veräußerung der Daten oder Texte ist unzulässig und
B41: ausdrücklich nur mit Genehmigung des Verlags gestattet.

Sheet Eingaben
M2: Eingaben
B3: Lohnpfändungsrechner 2024/2025 - Eingaben | P3: Auswahl
P4: 0 Personen
C5: Allgemeine Angaben | P5: 1 Person
P6: 2 Personen
D7: Mitarbeiter | P7: 3 Personen
D8: Straße | P8: 4 Personen
D9: PLZ, Ort | P9: 5 Personen oder mehr
D11: Bank
D12: Konto
D13: BLZ
D15: Unterhaltspflicht für | I15: 2
D17: Forderungsbetrag
C20: Eingaben zur Ermittlung des Einkommens
C22: 1. | D22: Bruttoarbeitseinkommen (§ 850 ZPO) | K22: 0.00 €
D23: evtl. hinzuzurechnende Sozialleistungen | K23: 0.00 €
D25: Hiervon sind abzuziehen:
D26: a) | E26: Unpfändbare Bezüge
E27: - | F27: Mehrarbeitsvergütung zu 50 Prozent | K27: 0.00 €
E28: - | F28: Urlaubsgeld | K28: 0.00 €
E29: - | F29: Treugelder | K29: 0.00 €
E30: - | F30: Aufwandsentschädigungen | K30: 0.00 €
E31: - | F31: Auflösungsgelder | K31: 0.00 €
E32: - | F32: Zulagen für auswärtige Beschäftigung | K32: 0.00 €
E33: - | F33: Zulagen für selbst gestelltes Arbeitsmaterial | K33: 0.00 €
E34: - | F34: Gefahren-, Schmutz- und Erschwerniszulagen | K34: 0.00 €
E35: - | F35: Weihnachtsvergütung bis zu 50 Prozent | K35: 0.00 €
E36: - | F36: Heirats- und Geburtsbeihilfen | K36: 0.00 €
E37: - | F37: Erziehungsgelder, Studiengebühren u. ä. | K37: 0.00 €
E39: b) | F39: Steuer/Sozialversicherungsbeiträge
E40: - | F40: Lohnsteuer | K40: 0.00 €
E41: - | F41: Solidaritätszuschlag | K41: 0.00 €
E42: - | F42: Kirchensteuer | K42: 0.00 €
E43: - | F43: Rentenversicherung (AN-Anteil) | K43: 0.00 €
E44: - | F44: Arbeitslosenversicherung (AN-Anteil) | K44: 0.00 €
E45: - | F45: Krankenversicherung (AN-Anteil) | K45: 0.00 €
E46: - | F46: Pflegeversicherung (AN-Anteil) | K46: 0.00 €
E47: - | F47: Private Rentenversicherungsbeiträge | K47: 0.00 €
B50: << Startseite | G50: Hilfe? | H50: Beispiel
B52: © 2024 by mediaforwork - ein Unternehmensbereich der Verlag für die Deutsche Wirtschaft AG
B53: Die Vervielfältigung, Verbreitung oder Veräußerung der Daten oder Texte ist unzulässig und
B54: ausdrücklich nur mit Genehmigung des Verlags gestattet.

Sheet Berechnung
O2: Berechnung
B3: Lohnpfändungsrechner 2024/2025 - Berechnung | R3: Auswahl
R4: 0 Personen
R5: 1 Person
D6: Mitarbeiter | G6: =IF(Eingaben!H7="","",Eingaben!H7) ->  | J6: Bank | L6: =IF(Eingaben!H11="","",Eingaben!H11) ->  | R6: 2 Personen
D7: Straße | G7: =IF(Eingaben!H8="","",Eingaben!H8) ->  | J7: Konto | L7: =IF(Eingaben!H12="","",Eingaben!H12) ->  | R7: 3 Personen
D8: PLZ, Ort | G8: =IF(Eingaben!H9="","",Eingaben!H9) ->  | J8: BLZ | L8: =IF(Eingaben!H13="","",Eingaben!H13) ->  | R8: 4 Personen
R9: 5 Personen oder mehr
D10: Unterhaltspflicht für Anzahl Personen: | H10: =Eingaben!I15-1 -> 1 | J10: Forderungsbetrag | N10: =+Eingaben!I17 -> 0.00 €
C15: 1. | D15: Bruttoarbeitseinkommen (§ 850 ZPO) | J15: =+Eingaben!K22 -> 0.00 €
D16: evtl. hinzuzurechnende Sozialleistungen | J16: =+Eingaben!K23 -> 0.00 €
D18: Summe Bruttoarbeitseinkommen | L18: =IF(ISERROR(SUM(J15:J16)),"",SUM(J15:J16)) -> 0.00 €
D20: Hiervon sind abzuziehen:
D21: a) | E21: Unpfändbare Bezüge
E22: - | F22: Mehrarbeitsvergütung zu 50 Prozent | J22: =+Eingaben!K27 -> 0.00 € | P22: =+IF(J22>$L$18,F22&" > Bruttolohn","") -> 
E23: - | F23: Urlaubsgeld | J23: =+Eingaben!K28 -> 0.00 € | P23: =+IF(J23>$L$18,F23&" > Bruttolohn","") -> 
E24: - | F24: Treugelder | J24: =+Eingaben!K29 -> 0.00 €
E25: - | F25: Aufwandsentschädigungen | J25: =+Eingaben!K30 -> 0.00 €
E26: - | F26: Auflösungsgelder | J26: =+Eingaben!K31 -> 0.00 €
E27: - | F27: Zulagen für auswärtige Beschäftigung | J27: =+Eingaben!K32 -> 0.00 €
E28: - | F28: Zulagen für selbst gestelltes Arbeitsmaterial | J28: =+Eingaben!K33 -> 0.00 €
E29: - | F29: Gefahren-, Schmutz- und Erschwerniszulagen | J29: =+Eingaben!K34 -> 0.00 €
E30: - | F30: Weihnachtsvergütung bis zu 50 Prozent | J30: =+Eingaben!K35 -> 0.00 €
E31: - | F31: Heirats- und Geburtsbeihilfen | J31: =+Eingaben!K36 -> 0.00 €
E32: - | F32: Erziehungsgelder, Studiengebühren u. ä. | J32: =+Eingaben!K37 -> 0.00 €
E34: Summe unpfändbarer Bezüge | L34: =IF(ISERROR(-SUM(J22:J32)),"",-SUM(J22:J32)) -> 0.00 € | P34: =+IF(-L34>$L$18,"Unpfändbare Bezüge > Bruttolohn","") -> 
E36: b) | F36: Steuer/Sozialversicherungsbeiträge
E37: - | F37: Lohnsteuer | J37: =+Eingaben!K40 -> 0.00 € | P37: =+IF(J37>$L$18,F37&" > Bruttolohn","") -> 
E38: - | F38: Solidaritätszuschlag | J38: =+Eingaben!K41 -> 0.00 €
E39: - | F39: Kirchensteuer | J39: =+Eingaben!K42 -> 0.00 €
E40: - | F40: Rentenversicherung (AN-Anteil) | J40: =+Eingaben!K43 -> 0.00 €
E41: - | F41: Arbeitslosenversicherung (AN-Anteil) | J41: =+Eingaben!K44 -> 0.00 €
E42: - | F42: Krankenversicherung (AN-Anteil) | J42: =+Eingaben!K45 -> 0.00 €
E43: - | F43: Pflegeversicherung (AN-Anteil) | J43: =+Eingaben!K46 -> 0.00 € | P43: =+IF(J43>$L$18,F43&" > Bruttolohn","") -> 
E44: - | F44: Private Rentenversicherungsbeiträge | J44: =+Eingaben!K47 -> 0.00 €
R45: Untere Grenze | S45: =+'Tabelle pfändbarer Beträge 2024'!N6 -> 1,499.99 | T45: 0
E46: Summe Steuer/Sozialversicherung | L46: =IF(ISERROR(-SUM(J37:J44)),"",-SUM(J37:J44)) -> 0.00 € | P46: =+IF(-L46>$L$18,"Steuer/Sozialversicherung > Bruttolohn","") ->  | R46: Obere Grenze | S46: =+'Tabelle pfändbarer Beträge 2024'!M314 -> 4,570.00
R47: Abgerundeter Wert | S47: =IF(ISERROR(ROUNDDOWN(N48,-1)),"",ROUNDDOWN(N48,-1)) -> 0.00
C48: 2. | D48: Nettoeinkommen | N48: =IF(ISERROR(SUM(L18,L34,L46)),"",SUM(L18,L34,L46)) -> 0.00 € | R48: Ansatz | T48: =IF(ISERROR(IF(S47<S45,T45,IF(S47>S46,S46,S47))),"",IF(S47<S45,T45,IF(S47>S46,S46,S47))) -> 0
C52: 3. | D52: Pfändbarer Betrag
D54: Pfändbarer Betrag | J54: =IF(ISNUMBER(S54),S54,0) -> 0.00 € | R54: Pfändbarer Betrag | S54: =+IF(ISERROR(VLOOKUP(T48,'Tabelle pfändbarer Beträge 2024'!M6:U314,(H10+4),FALSE)),"",VLOOKUP(T48,'Tabelle pfändbarer Beträge 2024'!M6:U314,(H10+4),FALSE)) -> 0.00
D56: 4.573,10 Euro übersteigendes Nettoeinkommen | J56: =IF(ISERROR(IF(N48>4573.1,N48-4573.1,0)),"",IF(N48>4573.1,N48-4573.1,0)) -> 0.00 €
D58: Pfändbarer Betrag insgesamt | L58: =IF(ISERROR(J56+J54),"",J56+J54) -> 0.00 €
D60: Forderungsbetrag | L60: =IF(ISERROR(IF(ISNUMBER(N10),N10,0)),"",IF(ISNUMBER(N10),N10,0)) -> 0.00 € | R60: Forderungsbetrag größer | S60: =+IF(L60>L58,1,0) -> 0
D62: Abzuführender Betrag | N62: =+IF(L60>L58,-L58,-L60) -> 0.00 €
C66: 4. | D66: Auszahlungsbetrag | N66: =+IF(AND(ISNUMBER(N62),ISNUMBER(N48)),SUM(N48,N62),"") -> 0.00 €
G69: << Startseite | H69: Hilfe? | J69: Beispiel
B71: © 2024 by mediaforwork - ein Unternehmensbereich der Verlag für die Deutsche Wirtschaft AG
B72: Die Vervielfältigung, Verbreitung oder Veräußerung der Daten oder Texte ist unzulässig und
B73: ausdrücklich nur mit Genehmigung des Verlags gestattet.

Sheet Beispiel
P3: Auswahl
P4: 0 Personen
P5: 1 Person
P6: 2 Personen
P7: 3 Personen
P8: 4 Personen
P9: 5 Personen oder mehr
B50: << Startseite | G50: Hilfe?
A53: , | B53: © 2024 by mediaforwork - ein Unternehmensbereich der Verlag für die Deutsche Wirtschaft AG
B54: Die Vervielfältigung, Verbreitung oder Veräußerung der Daten oder Texte ist unzulässig und
B55: ausdrücklich nur mit Genehmigung des Verlags gestattet.

Sheet Hilfe
F2: Hilfe
B3: Lohnpfändungsrechner 2024/2025 - Hilfe
D5: Allgemeine Hinweise
D9: Hinweise zum Berechnungsbogen zur Lohnpfändung
D15: << Starseite
B18: © 2024 by mediaforwork - ein Unternehmensbereich der Verlag für die Deutsche Wirtschaft AG
B19: Die Vervielfältigung, Verbreitung oder Veräußerung der Daten oder Texte ist unzulässig und
B20: ausdrücklich nur mit Genehmigung des Verlags gestattet.

Sheet Tabelle pfändbarer Beträge 2024 (hidden)
E3: Pfändbarer Betrag bei Unterhaltspflicht für ... Personen | M3: Nettolohn | P3: Pfändbarer Betrag bei Unterhaltspflicht für ... Personen (gültig vom 01.07.2023 bis 30.06.2024)
B4: Nettolohn | E4: 0 | F4: 1 | G4: 2 | H4: 3 | I4: 4 | J4: 5 | M4: monatlich in Euro | P4: 0 | Q4: 1 | R4: 2 | S4: 3 | T4: 4 | U4: 5
B5: Add. Links | C5: Add. Rechts | J5: und mehr | M5: von | N5: bis | U5: und mehr
B6: 989.99 | E6: 0.00 | F6: 0.00 | G6: 0.00 | H6: 0.00 | I6: 0.00 | J6: 0.00 | M6: 0.00 | N6: 1,499.99 | P6: 0.00 | Q6: 0.00 | R6: 0.00 | S6: 0.00 | T6: 0.00 | U6: 0.00
B7: 0.01 | C7: 9.99 | E7: 3.40 | F7: 0.00 | G7: 0.00 | H7: 0.00 | I7: 0.00 | J7: 0.00 | M7: 1,500.00 | N7: 1,509.99 | P7: 5.78 | Q7: 0.00 | R7: 0.00 | S7: 0.00 | T7: 0.00 | U7: 0.00
B8: 0.01 | C8: 9.99 | E8: 7.00 | F8: 0.00 | G8: 0.00 | H8: 0.00 | I8: 0.00 | J8: 0.00 | M8: 1,510.00 | N8: 1,519.99 | P8: 12.78 | Q8: 0.00 | R8: 0.00 | S8: 0.00 | T8: 0.00 | U8: 0.00
B9: 0.01 | C9: 9.99 | E9: 7.00 | F9: 0.00 | G9: 0.00 | H9: 0.00 | I9: 0.00 | J9: 0.00 | M9: 1,520.00 | N9: 1,529.99 | P9: 19.78 | Q9: 0.00 | R9: 0.00 | S9: 0.00 | T9: 0.00 | U9: 0.00
B10: 0.01 | C10: 9.99 | E10: 7.00 | F10: 0.00 | G10: 0.00 | H10: 0.00 | I10: 0.00 | J10: 0.00 | M10: 1,530.00 | N10: 1,539.99 | P10: 26.78 | Q10: 0.00 | R10: 0.00 | S10: 0.00 | T10: 0.00 | U10: 0.00
B11: 0.01 | C11: 9.99 | E11: 7.00 | F11: 0.00 | G11: 0.00 | H11: 0.00 | I11: 0.00 | J11: 0.00 | M11: 1,540.00 | N11: 1,549.99 | P11: 33.78 | Q11: 0.00 | R11: 0.00 | S11: 0.00 | T11: 0.00 | U11: 0.00
B12: 0.01 | C12: 9.99 | E12: 7.00 | F12: 0.00 | G12: 0.00 | H12: 0.00 | I12: 0.00 | J12: 0.00 | M12: 1,550.00 | N12: 1,559.99 | P12: 40.78 | Q12: 0.00 | R12: 0.00 | S12: 0.00 | T12: 0.00 | U12: 0.00
B13: 0.01 | C13: 9.99 | E13: 7.00 | F13: 0.00 | G13: 0.00 | H13: 0.00 | I13: 0.00 | J13: 0.00 | M13: 1,560.00 | N13: 1,569.99 | P13: 47.78 | Q13: 0.00 | R13: 0.00 | S13: 0.00 | T13: 0.00 | U13: 0.00
B14: 0.01 | C14: 9.99 | E14: 7.00 | F14: 0.00 | G14: 0.00 | H14: 0.00 | I14: 0.00 | J14: 0.00 | M14: 1,570.00 | N14: 1,579.99 | P14: 54.78 | Q14: 0.00 | R14: 0.00 | S14: 0.00 | T14: 0.00 | U14: 0.00
B15: 0.01 | C15: 9.99 | E15: 7.00 | F15: 0.00 | G15: 0.00 | H15: 0.00 | I15: 0.00 | J15: 0.00 | M15: 1,580.00 | N15: 1,589.99 | P15: 61.78 | Q15: 0.00 | R15: 0.00 | S15: 0.00 | T15: 0.00 | U15: 0.00
B16: 0.01 | C16: 9.99 | E16: 7.00 | F16: 0.00 | G16: 0.00 | H16: 0.00 | I16: 0.00 | J16: 0.00 | M16: 1,590.00 | N16: 1,599.99 | P16: 68.78 | Q16: 0.00 | R16: 0.00 | S16: 0.00 | T16: 0.00 | U16: 0.00
B17: 0.01 | C17: 9.99 | E17: 7.00 | F17: 0.00 | G17: 0.00 | H17: 0.00 | I17: 0.00 | J17: 0.00 | M17: 1,600.00 | N17: 1,609.99 | P17: 75.78 | Q17: 0.00 | R17: 0.00 | S17: 0.00 | T17: 0.00 | U17: 0.00
B18: 0.01 | C18: 9.99 | E18: 7.00 | F18: 0.00 | G18: 0.00 | H18: 0.00 | I18: 0.00 | J18: 0.00 | M18: 1,610.00 | N18: 1,619.99 | P18: 82.78 | Q18: 0.00 | R18: 0.00 | S18: 0.00 | T18: 0.00 | U18: 0.00
B19: 0.01 | C19: 9.99 | E19: 7.00 | F19: 0.00 | G19: 0.00 | H19: 0.00 | I19: 0.00 | J19: 0.00 | M19: 1,620.00 | N19: 1,629.99 | P19: 89.78 | Q19: 0.00 | R19: 0.00 | S19: 0.00 | T19: 0.00 | U19: 0.00
B20: 0.01 | C20: 9.99 | E20: 7.00 | F20: 0.00 | G20: 0.00 | H20: 0.00 | I20: 0.00 | J20: 0.00 | M20: 1,630.00 | N20: 1,639.99 | P20: 96.78 | Q20: 0.00 | R20: 0.00 | S20: 0.00 | T20: 0.00 | U20: 0.00
B21: 0.01 | C21: 9.99 | E21: 7.00 | F21: 0.00 | G21: 0.00 | H21: 0.00 | I21: 0.00 | J21: 0.00 | M21: 1,640.00 | N21: 1,649.99 | P21: 103.78 | Q21: 0.00 | R21: 0.00 | S21: 0.00 | T21: 0.00 | U21: 0.00
B22: 0.01 | C22: 9.99 | E22: 7.00 | F22: 0.00 | G22: 0.00 | H22: 0.00 | I22: 0.00 | J22: 0.00 | M22: 1,650.00 | N22: 1,659.99 | P22: 110.78 | Q22: 0.00 | R22: 0.00 | S22: 0.00 | T22: 0.00 | U22: 0.00
B23: 0.01 | C23: 9.99 | E23: 7.00 | F23: 0.00 | G23: 0.00 | H23: 0.00 | I23: 0.00 | J23: 0.00 | M23: 1,660.00 | N23: 1,669.99 | P23: 117.78 | Q23: 0.00 | R23: 0.00 | S23: 0.00 | T23: 0.00 | U23: 0.00
B24: 0.01 | C24: 9.99 | E24: 7.00 | F24: 0.00 | G24: 0.00 | H24: 0.00 | I24: 0.00 | J24: 0.00 | M24: 1,670.00 | N24: 1,679.99 | P24: 124.78 | Q24: 0.00 | R24: 0.00 | S24: 0.00 | T24: 0.00 | U24: 0.00
B25: 0.01 | C25: 9.99 | E25: 7.00 | F25: 0.00 | G25: 0.00 | H25: 0.00 | I25: 0.00 | J25: 0.00 | M25: 1,680.00 | N25: 1,689.99 | P25: 131.78 | Q25: 0.00 | R25: 0.00 | S25: 0.00 | T25: 0.00 | U25: 0.00
B26: 0.01 | C26: 9.99 | E26: 7.00 | F26: 0.00 | G26: 0.00 | H26: 0.00 | I26: 0.00 | J26: 0.00 | M26: 1,690.00 | N26: 1,699.99 | P26: 138.78 | Q26: 0.00 | R26: 0.00 | S26: 0.00 | T26: 0.00 | U26: 0.00
B27: 0.01 | C27: 9.99 | E27: 7.00 | F27: 0.00 | G27: 0.00 | H27: 0.00 | I27: 0.00 | J27: 0.00 | M27: 1,700.00 | N27: 1,709.99 | P27: 145.78 | Q27: 0.00 | R27: 0.00 | S27: 0.00 | T27: 0.00 | U27: 0.00
B28: 0.01 | C28: 9.99 | E28: 7.00 | F28: 0.00 | G28: 0.00 | H28: 0.00 | I28: 0.00 | J28: 0.00 | M28: 1,710.00 | N28: 1,719.99 | P28: 152.78 | Q28: 0.00 | R28: 0.00 | S28: 0.00 | T28: 0.00 | U28: 0.00
B29: 0.01 | C29: 9.99 | E29: 7.00 | F29: 0.00 | G29: 0.00 | H29: 0.00 | I29: 0.00 | J29: 0.00 | M29: 1,720.00 | N29: 1,729.99 | P29: 159.78 | Q29: 0.00 | R29: 0.00 | S29: 0.00 | T29: 0.00 | U29: 0.00
B30: 0.01 | C30: 9.99 | E30: 7.00 | F30: 0.00 | G30: 0.00 | H30: 0.00 | I30: 0.00 | J30: 0.00 | M30: 1,730.00 | N30: 1,739.99 | P30: 166.78 | Q30: 0.00 | R30: 0.00 | S30: 0.00 | T30: 0.00 | U30: 0.00
B31: 0.01 | C31: 9.99 | E31: 7.00 | F31: 0.00 | G31: 0.00 | H31: 0.00 | I31: 0.00 | J31: 0.00 | M31: 1,740.00 | N31: 1,749.99 | P31: 173.78 | Q31: 0.00 | R31: 0.00 | S31: 0.00 | T31: 0.00 | U31: 0.00
B32: 0.01 | C32: 9.99 | E32: 7.00 | F32: 0.00 | G32: 0.00 | H32: 0.00 | I32: 0.00 | J32: 0.00 | M32: 1,750.00 | N32: 1,759.99 | P32: 180.78 | Q32: 0.00 | R32: 0.00 | S32: 0.00 | T32: 0.00 | U32: 0.00
B33: 0.01 | C33: 9.99 | E33: 7.00 | F33: 0.00 | G33: 0.00 | H33: 0.00 | I33: 0.00 | J33: 0.00 | M33: 1,760.00 | N33: 1,769.99 | P33: 187.78 | Q33: 0.00 | R33: 0.00 | S33: 0.00 | T33: 0.00 | U33: 0.00
B34: 0.01 | C34: 9.99 | E34: 7.00 | F34: 0.00 | G34: 0.00 | H34: 0.00 | I34: 0.00 | J34: 0.00 | M34: 1,770.00 | N34: 1,779.99 | P34: 194.78 | Q34: 0.00 | R34: 0.00 | S34: 0.00 | T34: 0.00 | U34: 0.00
B35: 0.01 | C35: 9.99 | E35: 7.00 | F35: 0.00 | G35: 0.00 | H35: 0.00 | I35: 0.00 | J35: 0.00 | M35: 1,780.00 | N35: 1,789.99 | P35: 201.78 | Q35: 0.00 | R35: 0.00 | S35: 0.00 | T35: 0.00 | U35: 0.00
B36: 0.01 | C36: 9.99 | E36: 7.00 | F36: 0.00 | G36: 0.00 | H36: 0.00 | I36: 0.00 | J36: 0.00 | M36: 1,790.00 | N36: 1,799.99 | P36: 208.78 | Q36: 0.00 | R36: 0.00 | S36: 0.00 | T36: 0.00 | U36: 0.00
B37: 0.01 | C37: 9.99 | E37: 7.00 | F37: 0.00 | G37: 0.00 | H37: 0.00 | I37: 0.00 | J37: 0.00 | M37: 1,800.00 | N37: 1,809.99 | P37: 215.78 | Q37: 0.00 | R37: 0.00 | S37: 0.00 | T37: 0.00 | U37: 0.00
B38: 0.01 | C38: 9.99 | E38: 7.00 | F38: 0.00 | G38: 0.00 | H38: 0.00 | I38: 0.00 | J38: 0.00 | M38: 1,810.00 | N38: 1,819.99 | P38: 222.78 | Q38: 0.00 | R38: 0.00 | S38: 0.00 | T38: 0.00 | U38: 0.00
B39: 0.01 | C39: 9.99 | E39: 7.00 | F39: 0.00 | G39: 0.00 | H39: 0.00 | I39: 0.00 | J39: 0.00 | M39: 1,820.00 | N39: 1,829.99 | P39: 229.78 | Q39: 0.00 | R39: 0.00 | S39: 0.00 | T39: 0.00 | U39: 0.00
B40: 0.01 | C40: 9.99 | E40: 7.00 | F40: 0.00 | G40: 0.00 | H40: 0.00 | I40: 0.00 | J40: 0.00 | M40: 1,830.00 | N40: 1,839.99 | P40: 236.78 | Q40: 0.00 | R40: 0.00 | S40: 0.00 | T40: 0.00 | U40: 0.00
B41: 0.01 | C41: 9.99 | E41: 7.00 | F41: 0.00 | G41: 0.00 | H41: 0.00 | I41: 0.00 | J41: 0.00 | M41: 1,840.00 | N41: 1,849.99 | P41: 243.78 | Q41: 0.00 | R41: 0.00 | S41: 0.00 | T41: 0.00 | U41: 0.00
B42: 0.01 | C42: 9.99 | E42: 7.00 | F42: 0.00 | G42: 0.00 | H42: 0.00 | I42: 0.00 | J42: 0.00 | M42: 1,850.00 | N42: 1,859.99 | P42: 250.78 | Q42: 0.00 | R42: 0.00 | S42: 0.00 | T42: 0.00 | U42: 0.00
B43: 0.01 | C43: 9.99 | E43: 7.00 | F43: 0.00 | G43: 0.00 | H43: 0.00 | I43: 0.00 | J43: 0.00 | M43: 1,860.00 | N43: 1,869.99 | P43: 257.78 | Q43: 0.00 | R43: 0.00 | S43: 0.00 | T43: 0.00 | U43: 0.00
B44: 0.01 | C44: 9.99 | E44: 7.00 | F44: 2.05 | G44: 0.00 | H44: 0.00 | I44: 0.00 | J44: 0.00 | M44: 1,870.00 | N44: 1,879.99 | P44: 264.78 | Q44: 0.00 | R44: 0.00 | S44: 0.00 | T44: 0.00 | U44: 0.00
B45: 0.01 | C45: 9.99 | E45: 7.00 | F45: 5.00 | G45: 0.00 | H45: 0.00 | I45: 0.00 | J45: 0.00 | M45: 1,880.00 | N45: 1,889.99 | P45: 271.78 | Q45: 0.00 | R45: 0.00 | S45: 0.00 | T45: 0.00 | U45: 0.00
B46: 0.01 | C46: 9.99 | E46: 7.00 | F46: 5.00 | G46: 0.00 | H46: 0.00 | I46: 0.00 | J46: 0.00 | M46: 1,890.00 | N46: 1,899.99 | P46: 278.78 | Q46: 0.00 | R46: 0.00 | S46: 0.00 | T46: 0.00 | U46: 0.00
B47: 0.01 | C47: 9.99 | E47: 7.00 | F47: 5.00 | G47: 0.00 | H47: 0.00 | I47: 0.00 | J47: 0.00 | M47: 1,900.00 | N47: 1,909.99 | P47: 285.78 | Q47: 0.00 | R47: 0.00 | S47: 0.00 | T47: 0.00 | U47: 0.00
B48: 0.01 | C48: 9.99 | E48: 7.00 | F48: 5.00 | G48: 0.00 | H48: 0.00 | I48: 0.00 | J48: 0.00 | M48: 1,910.00 | N48: 1,919.99 | P48: 292.78 | Q48: 0.00 | R48: 0.00 | S48: 0.00 | T48: 0.00 | U48: 0.00
B49: 0.01 | C49: 9.99 | E49: 7.00 | F49: 5.00 | G49: 0.00 | H49: 0.00 | I49: 0.00 | J49: 0.00 | M49: 1,920.00 | N49: 1,929.99 | P49: 299.78 | Q49: 0.00 | R49: 0.00 | S49: 0.00 | T49: 0.00 | U49: 0.00
B50: 0.01 | C50: 9.99 | E50: 7.00 | F50: 5.00 | G50: 0.00 | H50: 0.00 | I50: 0.00 | J50: 0.00 | M50: 1,930.00 | N50: 1,939.99 | P50: 306.78 | Q50: 0.00 | R50: 0.00 | S50: 0.00 | T50: 0.00 | U50: 0.00
B51: 0.01 | C51: 9.99 | E51: 7.00 | F51: 5.00 | G51: 0.00 | H51: 0.00 | I51: 0.00 | J51: 0.00 | M51: 1,940.00 | N51: 1,949.99 | P51: 313.78 | Q51: 0.00 | R51: 0.00 | S51: 0.00 | T51: 0.00 | U51: 0.00
B52: 0.01 | C52: 9.99 | E52: 7.00 | F52: 5.00 | G52: 0.00 | H52: 0.00 | I52: 0.00 | J52: 0.00 | M52: 1,950.00 | N52: 1,959.99 | P52: 320.78 | Q52: 0.00 | R52: 0.00 | S52: 0.00 | T52: 0.00 | U52: 0.00
B53: 0.01 | C53: 9.99 | E53: 7.00 | F53: 5.00 | G53: 0.00 | H53: 0.00 | I53: 0.00 | J53: 0.00 | M53: 1,960.00 | N53: 1,969.99 | P53: 327.78 | Q53: 0.00 | R53: 0.00 | S53: 0.00 | T53: 0.00 | U53: 0.00
B54: 0.01 | C54: 9.99 | E54: 7.00 | F54: 5.00 | G54: 0.00 | H54: 0.00 | I54: 0.00 | J54: 0.00 | M54: 1,970.00 | N54: 1,979.99 | P54: 334.78 | Q54: 0.00 | R54: 0.00 | S54: 0.00 | T54: 0.00 | U54: 0.00
B55: 0.01 | C55: 9.99 | E55: 7.00 | F55: 5.00 | G55: 0.00 | H55: 0.00 | I55: 0.00 | J55: 0.00 | M55: 1,980.00 | N55: 1,989.99 | P55: 341.78 | Q55: 0.00 | R55: 0.00 | S55: 0.00 | T55: 0.00 | U55: 0.00
B56: 0.01 | C56: 9.99 | E56: 7.00 | F56: 5.00 | G56: 0.00 | H56: 0.00 | I56: 0.00 | J56: 0.00 | M56: 1,990.00 | N56: 1,999.99 | P56: 348.78 | Q56: 0.00 | R56: 0.00 | S56: 0.00 | T56: 0.00 | U56: 0.00
B57: 0.01 | C57: 9.99 | E57: 7.00 | F57: 5.00 | G57: 0.00 | H57: 0.00 | I57: 0.00 | J57: 0.00 | M57: 2,000.00 | N57: 2,009.99 | P57: 355.78 | Q57: 0.00 | R57: 0.00 | S57: 0.00 | T57: 0.00 | U57: 0.00
B58: 0.01 | C58: 9.99 | E58: 7.00 | F58: 5.00 | G58: 0.00 | H58: 0.00 | I58: 0.00 | J58: 0.00 | M58: 2,010.00 | N58: 2,019.99 | P58: 362.78 | Q58: 0.00 | R58: 0.00 | S58: 0.00 | T58: 0.00 | U58: 0.00
B59: 0.01 | C59: 9.99 | E59: 7.00 | F59: 5.00 | G59: 0.00 | H59: 0.00 | I59: 0.00 | J59: 0.00 | M59: 2,020.00 | N59: 2,029.99 | P59: 369.78 | Q59: 0.00 | R59: 0.00 | S59: 0.00 | T59: 0.00 | U59: 0.00
B60: 0.01 | C60: 9.99 | E60: 7.00 | F60: 5.00 | G60: 0.00 | H60: 0.00 | I60: 0.00 | J60: 0.00 | M60: 2,030.00 | N60: 2,039.99 | P60: 376.78 | Q60: 0.00 | R60: 0.00 | S60: 0.00 | T60: 0.00 | U60: 0.00
B61: 0.01 | C61: 9.99 | E61: 7.00 | F61: 5.00 | G61: 0.00 | H61: 0.00 | I61: 0.00 | J61: 0.00 | M61: 2,040.00 | N61: 2,049.99 | P61: 383.78 | Q61: 0.00 | R61: 0.00 | S61: 0.00 | T61: 0.00 | U61: 0.00
B62: 0.01 | C62: 9.99 | E62: 7.00 | F62: 5.00 | G62: 0.00 | H62: 0.00 | I62: 0.00 | J62: 0.00 | M62: 2,050.00 | N62: 2,059.99 | P62: 390.78 | Q62: 0.00 | R62: 0.00 | S62: 0.00 | T62: 0.00 | U62: 0.00
B63: 0.01 | C63: 9.99 | E63: 7.00 | F63: 5.00 | G63: 0.00 | H63: 0.00 | I63: 0.00 | J63: 0.00 | M63: 2,060.00 | N63: 2,069.99 | P63: 397.78 | Q63: 3.41 | R63: 0.00 | S63: 0.00 | T63: 0.00 | U63: 0.00
B64: 0.01 | C64: 9.99 | E64: 7.00 | F64: 5.00 | G64: 0.00 | H64: 0.00 | I64: 0.00 | J64: 0.00 | M64: 2,070.00 | N64: 2,079.99 | P64: 404.78 | Q64: 8.41 | R64: 0.00 | S64: 0.00 | T64: 0.00 | U64: 0.00
B65: 0.01 | C65: 9.99 | E65: 7.00 | F65: 5.00 | G65: 3.01 | H65: 0.00 | I65: 0.00 | J65: 0.00 | M65: 2,080.00 | N65: 2,089.99 | P65: 411.78 | Q65: 13.41 | R65: 0.00 | S65: 0.00 | T65: 0.00 | U65: 0.00
B66: 0.01 | C66: 9.99 | E66: 7.00 | F66: 5.00 | G66: 4.00 | H66: 0.00 | I66: 0.00 | J66: 0.00 | M66: 2,090.00 | N66: 2,099.99 | P66: 418.78 | Q66: 18.41 | R66: 0.00 | S66: 0.00 | T66: 0.00 | U66: 0.00
B67: 0.01 | C67: 9.99 | E67: 7.00 | F67: 5.00 | G67: 4.00 | H67: 0.00 | I67: 0.00 | J67: 0.00 | M67: 2,100.00 | N67: 2,109.99 | P67: 425.78 | Q67: 23.41 | R67: 0.00 | S67: 0.00 | T67: 0.00 | U67: 0.00
B68: 0.01 | C68: 9.99 | E68: 7.00 | F68: 5.00 | G68: 4.00 | H68: 0.00 | I68: 0.00 | J68: 0.00 | M68: 2,110.00 | N68: 2,119.99 | P68: 432.78 | Q68: 28.41 | R68: 0.00 | S68: 0.00 | T68: 0.00 | U68: 0.00
B69: 0.01 | C69: 9.99 | E69: 7.00 | F69: 5.00 | G69: 4.00 | H69: 0.00 | I69: 0.00 | J69: 0.00 | M69: 2,120.00 | N69: 2,129.99 | P69: 439.78 | Q69: 33.41 | R69: 0.00 | S69: 0.00 | T69: 0.00 | U69: 0.00
B70: 0.01 | C70: 9.99 | E70: 7.00 | F70: 5.00 | G70: 4.00 | H70: 0.00 | I70: 0.00 | J70: 0.00 | M70: 2,130.00 | N70: 2,139.99 | P70: 446.78 | Q70: 38.41 | R70: 0.00 | S70: 0.00 | T70: 0.00 | U70: 0.00
B71: 0.01 | C71: 9.99 | E71: 7.00 | F71: 5.00 | G71: 4.00 | H71: 0.00 | I71: 0.00 | J71: 0.00 | M71: 2,140.00 | N71: 2,149.99 | P71: 453.78 | Q71: 43.41 | R71: 0.00 | S71: 0.00 | T71: 0.00 | U71: 0.00
B72: 0.01 | C72: 9.99 | E72: 7.00 | F72: 5.00 | G72: 4.00 | H72: 0.00 | I72: 0.00 | J72: 0.00 | M72: 2,150.00 | N72: 2,159.99 | P72: 460.78 | Q72: 48.41 | R72: 0.00 | S72: 0.00 | T72: 0.00 | U72: 0.00
B73: 0.01 | C73: 9.99 | E73: 7.00 | F73: 5.00 | G73: 4.00 | H73: 0.00 | I73: 0.00 | J73: 0.00 | M73: 2,160.00 | N73: 2,169.99 | P73: 467.78 | Q73: 53.41 | R73: 0.00 | S73: 0.00 | T73: 0.00 | U73: 0.00
B74: 0.01 | C74: 9.99 | E74: 7.00 | F74: 5.00 | G74: 4.00 | H74: 0.00 | I74: 0.00 | J74: 0.00 | M74: 2,170.00 | N74: 2,179.99 | P74: 474.78 | Q74: 58.41 | R74: 0.00 | S74: 0.00 | T74: 0.00 | U74: 0.00
B75: 0.01 | C75: 9.99 | E75: 7.00 | F75: 5.00 | G75: 4.00 | H75: 0.00 | I75: 0.00 | J75: 0.00 | M75: 2,180.00 | N75: 2,189.99 | P75: 481.78 | Q75: 63.41 | R75: 0.00 | S75: 0.00 | T75: 0.00 | U75: 0.00
B76: 0.01 | C76: 9.99 | E76: 7.00 | F76: 5.00 | G76: 4.00 | H76: 0.00 | I76: 0.00 | J76: 0.00 | M76: 2,190.00 | N76: 2,199.99 | P76: 488.78 | Q76: 68.41 | R76: 0.00 | S76: 0.00 | T76: 0.00 | U76: 0.00
B77: 0.01 | C77: 9.99 | E77: 7.00 | F77: 5.00 | G77: 4.00 | H77: 0.00 | I77: 0.00 | J77: 0.00 | M77: 2,200.00 | N77: 2,209.99 | P77: 495.78 | Q77: 73.41 | R77: 0.00 | S77: 0.00 | T77: 0.00 | U77: 0.00
B78: 0.01 | C78: 9.99 | E78: 7.00 | F78: 5.00 | G78: 4.00 | H78: 0.00 | I78: 0.00 | J78: 0.00 | M78: 2,210.00 | N78: 2,219.99 | P78: 502.78 | Q78: 78.41 | R78: 0.00 | S78: 0.00 | T78: 0.00 | U78: 0.00
B79: 0.01 | C79: 9.99 | E79: 7.00 | F79: 5.00 | G79: 4.00 | H79: 0.00 | I79: 0.00 | J79: 0.00 | M79: 2,220.00 | N79: 2,229.99 | P79: 509.78 | Q79: 83.41 | R79: 0.00 | S79: 0.00 | T79: 0.00 | U79: 0.00
B80: 0.01 | C80: 9.99 | E80: 7.00 | F80: 5.00 | G80: 4.00 | H80: 0.00 | I80: 0.00 | J80: 0.00 | M80: 2,230.00 | N80: 2,239.99 | P80: 516.78 | Q80: 88.41 | R80: 0.00 | S80: 0.00 | T80: 0.00 | U80: 0.00
B81: 0.01 | C81: 9.99 | E81: 7.00 | F81: 5.00 | G81: 4.00 | H81: 0.00 | I81: 0.00 | J81: 0.00 | M81: 2,240.00 | N81: 2,249.99 | P81: 523.78 | Q81: 93.41 | R81: 0.00 | S81: 0.00 | T81: 0.00 | U81: 0.00
B82: 0.01 | C82: 9.99 | E82: 7.00 | F82: 5.00 | G82: 4.00 | H82: 0.00 | I82: 0.00 | J82: 0.00 | M82: 2,250.00 | N82: 2,259.99 | P82: 530.78 | Q82: 98.41 | R82: 0.00 | S82: 0.00 | T82: 0.00 | U82: 0.00
B83: 0.01 | C83: 9.99 | E83: 7.00 | F83: 5.00 | G83: 4.00 | H83: 0.00 | I83: 0.00 | J83: 0.00 | M83: 2,260.00 | N83: 2,269.99 | P83: 537.78 | Q83: 103.41 | R83: 0.00 | S83: 0.00 | T83: 0.00 | U83: 0.00
B84: 0.01 | C84: 9.99 | E84: 7.00 | F84: 5.00 | G84: 4.00 | H84: 0.00 | I84: 0.00 | J84: 0.00 | M84: 2,270.00 | N84: 2,279.99 | P84: 544.78 | Q84: 108.41 | R84: 0.00 | S84: 0.00 | T84: 0.00 | U84: 0.00
B85: 0.01 | C85: 9.99 | E85: 7.00 | F85: 5.00 | G85: 4.00 | H85: 0.29 | I85: 0.00 | J85: 0.00 | M85: 2,280.00 | N85: 2,289.99 | P85: 551.78 | Q85: 113.41 | R85: 0.00 | S85: 0.00 | T85: 0.00 | U85: 0.00
B86: 0.01 | C86: 9.99 | E86: 7.00 | F86: 5.00 | G86: 4.00 | H86: 3.00 | I86: 0.00 | J86: 0.00 | M86: 2,290.00 | N86: 2,299.99 | P86: 558.78 | Q86: 118.41 | R86: 0.00 | S86: 0.00 | T86: 0.00 | U86: 0.00
B87: 0.01 | C87: 9.99 | E87: 7.00 | F87: 5.00 | G87: 4.00 | H87: 3.00 | I87: 0.00 | J87: 0.00 | M87: 2,300.00 | N87: 2,309.99 | P87: 565.78 | Q87: 123.41 | R87: 0.00 | S87: 0.00 | T87: 0.00 | U87: 0.00
B88: 0.01 | C88: 9.99 | E88: 7.00 | F88: 5.00 | G88: 4.00 | H88: 3.00 | I88: 0.00 | J88: 0.00 | M88: 2,310.00 | N88: 2,319.99 | P88: 572.78 | Q88: 128.41 | R88: 0.00 | S88: 0.00 | T88: 0.00 | U88: 0.00
B89: 0.01 | C89: 9.99 | E89: 7.00 | F89: 5.00 | G89: 4.00 | H89: 3.00 | I89: 0.00 | J89: 0.00 | M89: 2,320.00 | N89: 2,329.99 | P89: 579.78 | Q89: 133.41 | R89: 0.00 | S89: 0.00 | T89: 0.00 | U89: 0.00
B90: 0.01 | C90: 9.99 | E90: 7.00 | F90: 5.00 | G90: 4.00 | H90: 3.00 | I90: 0.00 | J90: 0.00 | M90: 2,330.00 | N90: 2,339.99 | P90: 586.78 | Q90: 138.41 | R90: 0.00 | S90: 0.00 | T90: 0.00 | U90: 0.00
B91: 0.01 | C91: 9.99 | E91: 7.00 | F91: 5.00 | G91: 4.00 | H91: 3.00 | I91: 0.00 | J91: 0.00 | M91: 2,340.00 | N91: 2,349.99 | P91: 593.78 | Q91: 143.41 | R91: 0.00 | S91: 0.00 | T91: 0.00 | U91: 0.00
B92: 0.01 | C92: 9.99 | E92: 7.00 | F92: 5.00 | G92: 4.00 | H92: 3.00 | I92: 0.00 | J92: 0.00 | M92: 2,350.00 | N92: 2,359.99 | P92: 600.78 | Q92: 148.41 | R92: 0.00 | S92: 0.00 | T92: 0.00 | U92: 0.00
B93: 0.01 | C93: 9.99 | E93: 7.00 | F93: 5.00 | G93: 4.00 | H93: 3.00 | I93: 0.00 | J93: 0.00 | M93: 2,360.00 | N93: 2,369.99 | P93: 607.78 | Q93: 153.41 | R93: 0.00 | S93: 0.00 | T93: 0.00 | U93: 0.00
B94: 0.01 | C94: 9.99 | E94: 7.00 | F94: 5.00 | G94: 4.00 | H94: 3.00 | I94: 0.00 | J94: 0.00 | M94: 2,370.00 | N94: 2,379.99 | P94: 614.78 | Q94: 158.41 | R94: 1.62 | S94: 0.00 | T94: 0.00 | U94: 0.00
B95: 0.01 | C95: 9.99 | E95: 7.00 | F95: 5.00 | G95: 4.00 | H95: 3.00 | I95: 0.00 | J95: 0.00 | M95: 2,380.00 | N95: 2,389.99 | P95: 621.78 | Q95: 163.41 | R95: 5.62 | S95: 0.00 | T95: 0.00 | U95: 0.00
B96: 0.01 | C96: 9.99 | E96: 7.00 | F96: 5.00 | G96: 4.00 | H96: 3.00 | I96: 0.00 | J96: 0.00 | M96: 2,390.00 | N96: 2,399.99 | P96: 628.78 | Q96: 168.41 | R96: 9.62 | S96: 0.00 | T96: 0.00 | U96: 0.00
B97: 0.01 | C97: 9.99 | E97: 7.00 | F97: 5.00 | G97: 4.00 | H97: 3.00 | I97: 0.00 | J97: 0.00 | M97: 2,400.00 | N97: 2,409.99 | P97: 635.78 | Q97: 173.41 | R97: 13.62 | S97: 0.00 | T97: 0.00 | U97: 0.00
B98: 0.01 | C98: 9.99 | E98: 7.00 | F98: 5.00 | G98: 4.00 | H98: 3.00 | I98: 0.00 | J98: 0.00 | M98: 2,410.00 | N98: 2,419.99 | P98: 642.78 | Q98: 178.41 | R98: 17.62 | S98: 0.00 | T98: 0.00 | U98: 0.00
B99: 0.01 | C99: 9.99 | E99: 7.00 | F99: 5.00 | G99: 4.00 | H99: 3.00 | I99: 0.00 | J99: 0.00 | M99: 2,420.00 | N99: 2,429.99 | P99: 649.78 | Q99: 183.41 | R99: 21.62 | S99: 0.00 | T99: 0.00 | U99: 0.00
B100: 0.01 | C100: 9.99 | E100: 7.00 | F100: 5.00 | G100: 4.00 | H100: 3.00 | I100: 0.00 | J100: 0.00 | M100: 2,430.00 | N100: 2,439.99 | P100: 656.78 | Q100: 188.41 | R100: 25.62 | S100: 0.00 | T100: 0.00 | U100: 0.00
B101: 0.01 | C101: 9.99 | E101: 7.00 | F101: 5.00 | G101: 4.00 | H101: 3.00 | I101: 0.00 | J101: 0.00 | M101: 2,440.00 | N101: 2,449.99 | P101: 663.78 | Q101: 193.41 | R101: 29.62 | S101: 0.00 | T101: 0.00 | U101: 0.00
B102: 0.01 | C102: 9.99 | E102: 7.00 | F102: 5.00 | G102: 4.00 | H102: 3.00 | I102: 0.00 | J102: 0.00 | M102: 2,450.00 | N102: 2,459.99 | P102: 670.78 | Q102: 198.41 | R102: 33.62 | S102: 0.00 | T102: 0.00 | U102: 0.00
B103: 0.01 | C103: 9.99 | E103: 7.00 | F103: 5.00 | G103: 4.00 | H103: 3.00 | I103: 0.00 | J103: 0.00 | M103: 2,460.00 | N103: 2,469.99 | P103: 677.78 | Q103: 203.41 | R103: 37.62 | S103: 0.00 | T103: 0.00 | U103: 0.00
B104: 0.01 | C104: 9.99 | E104: 7.00 | F104: 5.00 | G104: 4.00 | H104: 3.00 | I104: 0.00 | J104: 0.00 | M104: 2,470.00 | N104: 2,479.99 | P104: 684.78 | Q104: 208.41 | R104: 41.62 | S104: 0.00 | T104: 0.00 | U104: 0.00
B105: 0.01 | C105: 9.99 | E105: 7.00 | F105: 5.00 | G105: 4.00 | H105: 3.00 | I105: 0.00 | J105: 0.00 | M105: 2,480.00 | N105: 2,489.99 | P105: 691.78 | Q105: 213.41 | R105: 45.62 | S105: 0.00 | T105: 0.00 | U105: 0.00
B106: 0.01 | C106: 9.99 | E106: 7.00 | F106: 5.00 | G106: 4.00 | H106: 3.00 | I106: 0.88 | J106: 0.00 | M106: 2,490.00 | N106: 2,499.99 | P106: 698.78 | Q106: 218.41 | R106: 49.62 | S106: 0.00 | T106: 0.00 | U106: 0.00
B107: 0.01 | C107: 9.99 | E107: 7.00 | F107: 5.00 | G107: 4.00 | H107: 3.00 | I107: 2.00 | J107: 0.00 | M107: 2,500.00 | N107: 2,509.99 | P107: 705.78 | Q107: 223.41 | R107: 53.62 | S107: 0.00 | T107: 0.00 | U107: 0.00
B108: 0.01 | C108: 9.99 | E108: 7.00 | F108: 5.00 | G108: 4.00 | H108: 3.00 | I108: 2.00 | J108: 0.00 | M108: 2,510.00 | N108: 2,519.99 | P108: 712.78 | Q108: 228.41 | R108: 57.62 | S108: 0.00 | T108: 0.00 | U108: 0.00
B109: 0.01 | C109: 9.99 | E109: 7.00 | F109: 5.00 | G109: 4.00 | H109: 3.00 | I109: 2.00 | J109: 0.00 | M109: 2,520.00 | N109: 2,529.99 | P109: 719.78 | Q109: 233.41 | R109: 61.62 | S109: 0.00 | T109: 0.00 | U109: 0.00
B110: 0.01 | C110: 9.99 | E110: 7.00 | F110: 5.00 | G110: 4.00 | H110: 3.00 | I110: 2.00 | J110: 0.00 | M110: 2,530.00 | N110: 2,539.99 | P110: 726.78 | Q110: 238.41 | R110: 65.62 | S110: 0.00 | T110: 0.00 | U110: 0.00
B111: 0.01 | C111: 9.99 | E111: 7.00 | F111: 5.00 | G111: 4.00 | H111: 3.00 | I111: 2.00 | J111: 0.00 | M111: 2,540.00 | N111: 2,549.99 | P111: 733.78 | Q111: 243.41 | R111: 69.62 | S111: 0.00 | T111: 0.00 | U111: 0.00
B112: 0.01 | C112: 9.99 | E112: 7.00 | F112: 5.00 | G112: 4.00 | H112: 3.00 | I112: 2.00 | J112: 0.00 | M112: 2,550.00 | N112: 2,559.99 | P112: 740.78 | Q112: 248.41 | R112: 73.62 | S112: 0.00 | T112: 0.00 | U112: 0.00
B113: 0.01 | C113: 9.99 | E113: 7.00 | F113: 5.00 | G113: 4.00 | H113: 3.00 | I113: 2.00 | J113: 0.00 | M113: 2,560.00 | N113: 2,569.99 | P113: 747.78 | Q113: 253.41 | R113: 77.62 | S113: 0.00 | T113: 0.00 | U113: 0.00
B114: 0.01 | C114: 9.99 | E114: 7.00 | F114: 5.00 | G114: 4.00 | H114: 3.00 | I114: 2.00 | J114: 0.00 | M114: 2,570.00 | N114: 2,579.99 | P114: 754.78 | Q114: 258.41 | R114: 81.62 | S114: 0.00 | T114: 0.00 | U114: 0.00
B115: 0.01 | C115: 9.99 | E115: 7.00 | F115: 5.00 | G115: 4.00 | H115: 3.00 | I115: 2.00 | J115: 0.00 | M115: 2,580.00 | N115: 2,589.99 | P115: 761.78 | Q115: 263.41 | R115: 85.62 | S115: 0.00 | T115: 0.00 | U115: 0.00
B116: 0.01 | C116: 9.99 | E116: 7.00 | F116: 5.00 | G116: 4.00 | H116: 3.00 | I116: 2.00 | J116: 0.00 | M116: 2,590.00 | N116: 2,599.99 | P116: 768.78 | Q116: 268.41 | R116: 89.62 | S116: 0.00 | T116: 0.00 | U116: 0.00
B117: 0.01 | C117: 9.99 | E117: 7.00 | F117: 5.00 | G117: 4.00 | H117: 3.00 | I117: 2.00 | J117: 0.00 | M117: 2,600.00 | N117: 2,609.99 | P117: 775.78 | Q117: 273.41 | R117: 93.62 | S117: 0.00 | T117: 0.00 | U117: 0.00
B118: 0.01 | C118: 9.99 | E118: 7.00 | F118: 5.00 | G118: 4.00 | H118: 3.00 | I118: 2.00 | J118: 0.00 | M118: 2,610.00 | N118: 2,619.99 | P118: 782.78 | Q118: 278.41 | R118: 97.62 | S118: 0.00 | T118: 0.00 | U118: 0.00
B119: 0.01 | C119: 9.99 | E119: 7.00 | F119: 5.00 | G119: 4.00 | H119: 3.00 | I119: 2.00 | J119: 0.00 | M119: 2,620.00 | N119: 2,629.99 | P119: 789.78 | Q119: 283.41 | R119: 101.62 | S119: 0.00 | T119: 0.00 | U119: 0.00
B120: 0.01 | C120: 9.99 | E120: 7.00 | F120: 5.00 | G120: 4.00 | H120: 3.00 | I120: 2.00 | J120: 0.00 | M120: 2,630.00 | N120: 2,639.99 | P120: 796.78 | Q120: 288.41 | R120: 105.62 | S120: 0.00 | T120: 0.00 | U120: 0.00
B121: 0.01 | C121: 9.99 | E121: 7.00 | F121: 5.00 | G121: 4.00 | H121: 3.00 | I121: 2.00 | J121: 0.00 | M121: 2,640.00 | N121: 2,649.99 | P121: 803.78 | Q121: 293.41 | R121: 109.62 | S121: 0.00 | T121: 0.00 | U121: 0.00
B122: 0.01 | C122: 9.99 | E122: 7.00 | F122: 5.00 | G122: 4.00 | H122: 3.00 | I122: 2.00 | J122: 0.00 | M122: 2,650.00 | N122: 2,659.99 | P122: 810.78 | Q122: 298.41 | R122: 113.62 | S122: 0.00 | T122: 0.00 | U122: 0.00
B123: 0.01 | C123: 9.99 | E123: 7.00 | F123: 5.00 | G123: 4.00 | H123: 3.00 | I123: 2.00 | J123: 0.00 | M123: 2,660.00 | N123: 2,669.99 | P123: 817.78 | Q123: 303.41 | R123: 117.62 | S123: 0.00 | T123: 0.00 | U123: 0.00
B124: 0.01 | C124: 9.99 | E124: 7.00 | F124: 5.00 | G124: 4.00 | H124: 3.00 | I124: 2.00 | J124: 0.00 | M124: 2,670.00 | N124: 2,679.99 | P124: 824.78 | Q124: 308.41 | R124: 121.62 | S124: 0.00 | T124: 0.00 | U124: 0.00
B125: 0.01 | C125: 9.99 | E125: 7.00 | F125: 5.00 | G125: 4.00 | H125: 3.00 | I125: 2.00 | J125: 0.00 | M125: 2,680.00 | N125: 2,689.99 | P125: 831.78 | Q125: 313.41 | R125: 125.62 | S125: 0.38 | T125: 0.00 | U125: 0.00
B126: 0.01 | C126: 9.99 | E126: 7.00 | F126: 5.00 | G126: 4.00 | H126: 3.00 | I126: 2.00 | J126: 0.00 | M126: 2,690.00 | N126: 2,699.99 | P126: 838.78 | Q126: 318.41 | R126: 129.62 | S126: 3.38 | T126: 0.00 | U126: 0.00
B127: 0.01 | C127: 9.99 | E127: 7.00 | F127: 5.00 | G127: 4.00 | H127: 3.00 | I127: 2.00 | J127: 0.79 | M127: 2,700.00 | N127: 2,709.99 | P127: 845.78 | Q127: 323.41 | R127: 133.62 | S127: 6.38 | T127: 0.00 | U127: 0.00
B128: 0.01 | C128: 9.99 | E128: 7.00 | F128: 5.00 | G128: 4.00 | H128: 3.00 | I128: 2.00 | J128: 1.00 | M128: 2,710.00 | N128: 2,719.99 | P128: 852.78 | Q128: 328.41 | R128: 137.62 | S128: 9.38 | T128: 0.00 | U128: 0.00
B129: 0.01 | C129: 9.99 | E129: 7.00 | F129: 5.00 | G129: 4.00 | H129: 3.00 | I129: 2.00 | J129: 1.00 | M129: 2,720.00 | N129: 2,729.99 | P129: 859.78 | Q129: 333.41 | R129: 141.62 | S129: 12.38 | T129: 0.00 | U129: 0.00
B130: 0.01 | C130: 9.99 | E130: 7.00 | F130: 5.00 | G130: 4.00 | H130: 3.00 | I130: 2.00 | J130: 1.00 | M130: 2,730.00 | N130: 2,739.99 | P130: 866.78 | Q130: 338.41 | R130: 145.62 | S130: 15.38 | T130: 0.00 | U130: 0.00
B131: 0.01 | C131: 9.99 | E131: 7.00 | F131: 5.00 | G131: 4.00 | H131: 3.00 | I131: 2.00 | J131: 1.00 | M131: 2,740.00 | N131: 2,749.99 | P131: 873.78 | Q131: 343.41 | R131: 149.62 | S131: 18.38 | T131: 0.00 | U131: 0.00
B132: 0.01 | C132: 9.99 | E132: 7.00 | F132: 5.00 | G132: 4.00 | H132: 3.00 | I132: 2.00 | J132: 1.00 | M132: 2,750.00 | N132: 2,759.99 | P132: 880.78 | Q132: 348.41 | R132: 153.62 | S132: 21.38 | T132: 0.00 | U132: 0.00
B133: 0.01 | C133: 9.99 | E133: 7.00 | F133: 5.00 | G133: 4.00 | H133: 3.00 | I133: 2.00 | J133: 1.00 | M133: 2,760.00 | N133: 2,769.99 | P133: 887.78 | Q133: 353.41 | R133: 157.62 | S133: 24.38 | T133: 0.00 | U133: 0.00
B134: 0.01 | C134: 9.99 | E134: 7.00 | F134: 5.00 | G134: 4.00 | H134: 3.00 | I134: 2.00 | J134: 1.00 | M134: 2,770.00 | N134: 2,779.99 | P134: 894.78 | Q134: 358.41 | R134: 161.62 | S134: 27.38 | T134: 0.00 | U134: 0.00
B135: 0.01 | C135: 9.99 | E135: 7.00 | F135: 5.00 | G135: 4.00 | H135: 3.00 | I135: 2.00 | J135: 1.00 | M135: 2,780.00 | N135: 2,789.99 | P135: 901.78 | Q135: 363.41 | R135: 165.62 | S135: 30.38 | T135: 0.00 | U135: 0.00
B136: 0.01 | C136: 9.99 | E136: 7.00 | F136: 5.00 | G136: 4.00 | H136: 3.00 | I136: 2.00 | J136: 1.00 | M136: 2,790.00 | N136: 2,799.99 | P136: 908.78 | Q136: 368.41 | R136: 169.62 | S136: 33.38 | T136: 0.00 | U136: 0.00
B137: 0.01 | C137: 9.99 | E137: 7.00 | F137: 5.00 | G137: 4.00 | H137: 3.00 | I137: 2.00 | J137: 1.00 | M137: 2,800.00 | N137: 2,809.99 | P137: 915.78 | Q137: 373.41 | R137: 173.62 | S137: 36.38 | T137: 0.00 | U137: 0.00
B138: 0.01 | C138: 9.99 | E138: 7.00 | F138: 5.00 | G138: 4.00 | H138: 3.00 | I138: 2.00 | J138: 1.00 | M138: 2,810.00 | N138: 2,819.99 | P138: 922.78 | Q138: 378.41 | R138: 177.62 | S138: 39.38 | T138: 0.00 | U138: 0.00
B139: 0.01 | C139: 9.99 | E139: 7.00 | F139: 5.00 | G139: 4.00 | H139: 3.00 | I139: 2.00 | J139: 1.00 | M139: 2,820.00 | N139: 2,829.99 | P139: 929.78 | Q139: 383.41 | R139: 181.62 | S139: 42.38 | T139: 0.00 | U139: 0.00
B140: 0.01 | C140: 9.99 | E140: 7.00 | F140: 5.00 | G140: 4.00 | H140: 3.00 | I140: 2.00 | J140: 1.00 | M140: 2,830.00 | N140: 2,839.99 | P140: 936.78 | Q140: 388.41 | R140: 185.62 | S140: 45.38 | T140: 0.00 | U140: 0.00
B141: 0.01 | C141: 9.99 | E141: 7.00 | F141: 5.00 | G141: 4.00 | H141: 3.00 | I141: 2.00 | J141: 1.00 | M141: 2,840.00 | N141: 2,849.99 | P141: 943.78 | Q141: 393.41 | R141: 189.62 | S141: 48.38 | T141: 0.00 | U141: 0.00
B142: 0.01 | C142: 9.99 | E142: 7.00 | F142: 5.00 | G142: 4.00 | H142: 3.00 | I142: 2.00 | J142: 1.00 | M142: 2,850.00 | N142: 2,859.99 | P142: 950.78 | Q142: 398.41 | R142: 193.62 | S142: 51.38 | T142: 0.00 | U142: 0.00
B143: 0.01 | C143: 9.99 | E143: 7.00 | F143: 5.00 | G143: 4.00 | H143: 3.00 | I143: 2.00 | J143: 1.00 | M143: 2,860.00 | N143: 2,869.99 | P143: 957.78 | Q143: 403.41 | R143: 197.62 | S143: 54.38 | T143: 0.00 | U143: 0.00
B144: 0.01 | C144: 9.99 | E144: 7.00 | F144: 5.00 | G144: 4.00 | H144: 3.00 | I144: 2.00 | J144: 1.00 | M144: 2,870.00 | N144: 2,879.99 | P144: 964.78 | Q144: 408.41 | R144: 201.62 | S144: 57.38 | T144: 0.00 | U144: 0.00
B145: 0.01 | C145: 9.99 | E145: 7.00 | F145: 5.00 | G145: 4.00 | H145: 3.00 | I145: 2.00 | J145: 1.00 | M145: 2,880.00 | N145: 2,889.99 | P145: 971.78 | Q145: 413.41 | R145: 205.62 | S145: 60.38 | T145: 0.00 | U145: 0.00
B146: 0.01 | C146: 9.99 | E146: 7.00 | F146: 5.00 | G146: 4.00 | H146: 3.00 | I146: 2.00 | J146: 1.00 | M146: 2,890.00 | N146: 2,899.99 | P146: 978.78 | Q146: 418.41 | R146: 209.62 | S146: 63.38 | T146: 0.00 | U146: 0.00
B147: 0.01 | C147: 9.99 | E147: 7.00 | F147: 5.00 | G147: 4.00 | H147: 3.00 | I147: 2.00 | J147: 1.00 | M147: 2,900.00 | N147: 2,909.99 | P147: 985.78 | Q147: 423.41 | R147: 213.62 | S147: 66.38 | T147: 0.00 | U147: 0.00
B148: 0.01 | C148: 9.99 | E148: 7.00 | F148: 5.00 | G148: 4.00 | H148: 3.00 | I148: 2.00 | J148: 1.00 | M148: 2,910.00 | N148: 2,919.99 | P148: 992.78 | Q148: 428.41 | R148: 217.62 | S148: 69.38 | T148: 0.00 | U148: 0.00
B149: 0.01 | C149: 9.99 | E149: 7.00 | F149: 5.00 | G149: 4.00 | H149: 3.00 | I149: 2.00 | J149: 1.00 | M149: 2,920.00 | N149: 2,929.99 | P149: 999.78 | Q149: 433.41 | R149: 221.62 | S149: 72.38 | T149: 0.00 | U149: 0.00
B150: 0.01 | C150: 9.99 | E150: 7.00 | F150: 5.00 | G150: 4.00 | H150: 3.00 | I150: 2.00 | J150: 1.00 | M150: 2,930.00 | N150: 2,939.99 | P150: 1,006.78 | Q150: 438.41 | R150: 225.62 | S150: 75.38 | T150: 0.00 | U150: 0.00
B151: 0.01 | C151: 9.99 | E151: 7.00 | F151: 5.00 | G151: 4.00 | H151: 3.00 | I151: 2.00 | J151: 1.00 | M151: 2,940.00 | N151: 2,949.99 | P151: 1,013.78 | Q151: 443.41 | R151: 229.62 | S151: 78.38 | T151: 0.00 | U151: 0.00
B152: 0.01 | C152: 9.99 | E152: 7.00 | F152: 5.00 | G152: 4.00 | H152: 3.00 | I152: 2.00 | J152: 1.00 | M152: 2,950.00 | N152: 2,959.99 | P152: 1,020.78 | Q152: 448.41 | R152: 233.62 | S152: 81.38 | T152: 0.00 | U152: 0.00
B153: 0.01 | C153: 9.99 | E153: 7.00 | F153: 5.00 | G153: 4.00 | H153: 3.00 | I153: 2.00 | J153: 1.00 | M153: 2,960.00 | N153: 2,969.99 | P153: 1,027.78 | Q153: 453.41 | R153: 237.62 | S153: 84.38 | T153: 0.00 | U153: 0.00
B154: 0.01 | C154: 9.99 | E154: 7.00 | F154: 5.00 | G154: 4.00 | H154: 3.00 | I154: 2.00 | J154: 1.00 | M154: 2,970.00 | N154: 2,979.99 | P154: 1,034.78 | Q154: 458.41 | R154: 241.62 | S154: 87.38 | T154: 0.00 | U154: 0.00
B155: 0.01 | C155: 9.99 | E155: 7.00 | F155: 5.00 | G155: 4.00 | H155: 3.00 | I155: 2.00 | J155: 1.00 | M155: 2,980.00 | N155: 2,989.99 | P155: 1,041.78 | Q155: 463.41 | R155: 245.62 | S155: 90.38 | T155: 0.00 | U155: 0.00
B156: 0.01 | C156: 9.99 | E156: 7.00 | F156: 5.00 | G156: 4.00 | H156: 3.00 | I156: 2.00 | J156: 1.00 | M156: 2,990.00 | N156: 2,999.99 | P156: 1,048.78 | Q156: 468.41 | R156: 249.62 | S156: 93.38 | T156: 0.00 | U156: 0.00
B157: 0.01 | C157: 9.99 | E157: 7.00 | F157: 5.00 | G157: 4.00 | H157: 3.00 | I157: 2.00 | J157: 1.00 | M157: 3,000.00 | N157: 3,009.99 | P157: 1,055.78 | Q157: 473.41 | R157: 253.62 | S157: 96.38 | T157: 1.70 | U157: 0.00
B158: 0.01 | C158: 9.99 | E158: 7.00 | F158: 5.00 | G158: 4.00 | H158: 3.00 | I158: 2.00 | J158: 1.00 | M158: 3,010.00 | N158: 3,019.99 | P158: 1,062.78 | Q158: 478.41 | R158: 257.62 | S158: 99.38 | T158: 3.70 | U158: 0.00
B159: 0.01 | C159: 9.99 | E159: 7.00 | F159: 5.00 | G159: 4.00 | H159: 3.00 | I159: 2.00 | J159: 1.00 | M159: 3,020.00 | N159: 3,029.99 | P159: 1,069.78 | Q159: 483.41 | R159: 261.62 | S159: 102.38 | T159: 5.70 | U159: 0.00
B160: 0.01 | C160: 9.99 | E160: 7.00 | F160: 5.00 | G160: 4.00 | H160: 3.00 | I160: 2.00 | J160: 1.00 | M160: 3,030.00 | N160: 3,039.99 | P160: 1,076.78 | Q160: 488.41 | R160: 265.62 | S160: 105.38 | T160: 7.70 | U160: 0.00
B161: 0.01 | C161: 9.99 | E161: 7.00 | F161: 5.00 | G161: 4.00 | H161: 3.00 | I161: 2.00 | J161: 1.00 | M161: 3,040.00 | N161: 3,049.99 | P161: 1,083.78 | Q161: 493.41 | R161: 269.62 | S161: 108.38 | T161: 9.70 | U161: 0.00
B162: 0.01 | C162: 9.99 | E162: 7.00 | F162: 5.00 | G162: 4.00 | H162: 3.00 | I162: 2.00 | J162: 1.00 | M162: 3,050.00 | N162: 3,059.99 | P162: 1,090.78 | Q162: 498.41 | R162: 273.62 | S162: 111.38 | T162: 11.70 | U162: 0.00
B163: 0.01 | C163: 9.99 | E163: 7.00 | F163: 5.00 | G163: 4.00 | H163: 3.00 | I163: 2.00 | J163: 1.00 | M163: 3,060.00 | N163: 3,069.99 | P163: 1,097.78 | Q163: 503.41 | R163: 277.62 | S163: 114.38 | T163: 13.70 | U163: 0.00
B164: 0.01 | C164: 9.99 | E164: 7.00 | F164: 5.00 | G164: 4.00 | H164: 3.00 | I164: 2.00 | J164: 1.00 | M164: 3,070.00 | N164: 3,079.99 | P164: 1,104.78 | Q164: 508.41 | R164: 281.62 | S164: 117.38 | T164: 15.70 | U164: 0.00
B165: 0.01 | C165: 9.99 | E165: 7.00 | F165: 5.00 | G165: 4.00 | H165: 3.00 | I165: 2.00 | J165: 1.00 | M165: 3,080.00 | N165: 3,089.99 | P165: 1,111.78 | Q165: 513.41 | R165: 285.62 | S165: 120.38 | T165: 17.70 | U165: 0.00
B166: 0.01 | C166: 9.99 | E166: 7.00 | F166: 5.00 | G166: 4.00 | H166: 3.00 | I166: 2.00 | J166: 1.00 | M166: 3,090.00 | N166: 3,099.99 | P166: 1,118.78 | Q166: 518.41 | R166: 289.62 | S166: 123.38 | T166: 19.70 | U166: 0.00
B167: 0.01 | C167: 9.99 | E167: 7.00 | F167: 5.00 | G167: 4.00 | H167: 3.00 | I167: 2.00 | J167: 1.00 | M167: 3,100.00 | N167: 3,109.99 | P167: 1,125.78 | Q167: 523.41 | R167: 293.62 | S167: 126.38 | T167: 21.70 | U167: 0.00
B168: 0.01 | C168: 9.99 | E168: 7.00 | F168: 5.00 | G168: 4.00 | H168: 3.00 | I168: 2.00 | J168: 1.00 | M168: 3,110.00 | N168: 3,119.99 | P168: 1,132.78 | Q168: 528.41 | R168: 297.62 | S168: 129.38 | T168: 23.70 | U168: 0.00
B169: 0.01 | C169: 9.99 | E169: 7.00 | F169: 5.00 | G169: 4.00 | H169: 3.00 | I169: 2.00 | J169: 1.00 | M169: 3,120.00 | N169: 3,129.99 | P169: 1,139.78 | Q169: 533.41 | R169: 301.62 | S169: 132.38 | T169: 25.70 | U169: 0.00
B170: 0.01 | C170: 9.99 | E170: 7.00 | F170: 5.00 | G170: 4.00 | H170: 3.00 | I170: 2.00 | J170: 1.00 | M170: 3,130.00 | N170: 3,139.99 | P170: 1,146.78 | Q170: 538.41 | R170: 305.62 | S170: 135.38 | T170: 27.70 | U170: 0.00
B171: 0.01 | C171: 9.99 | E171: 7.00 | F171: 5.00 | G171: 4.00 | H171: 3.00 | I171: 2.00 | J171: 1.00 | M171: 3,140.00 | N171: 3,149.99 | P171: 1,153.78 | Q171: 543.41 | R171: 309.62 | S171: 138.38 | T171: 29.70 | U171: 0.00
B172: 0.01 | C172: 9.99 | E172: 7.00 | F172: 5.00 | G172: 4.00 | H172: 3.00 | I172: 2.00 | J172: 1.00 | M172: 3,150.00 | N172: 3,159.99 | P172: 1,160.78 | Q172: 548.41 | R172: 313.62 | S172: 141.38 | T172: 31.70 | U172: 0.00
B173: 0.01 | C173: 9.99 | E173: 7.00 | F173: 5.00 | G173: 4.00 | H173: 3.00 | I173: 2.00 | J173: 1.00 | M173: 3,160.00 | N173: 3,169.99 | P173: 1,167.78 | Q173: 553.41 | R173: 317.62 | S173: 144.38 | T173: 33.70 | U173: 0.00
B174: 0.01 | C174: 9.99 | E174: 7.00 | F174: 5.00 | G174: 4.00 | H174: 3.00 | I174: 2.00 | J174: 1.00 | M174: 3,170.00 | N174: 3,179.99 | P174: 1,174.78 | Q174: 558.41 | R174: 321.62 | S174: 147.38 | T174: 35.70 | U174: 0.00
B175: 0.01 | C175: 9.99 | E175: 7.00 | F175: 5.00 | G175: 4.00 | H175: 3.00 | I175: 2.00 | J175: 1.00 | M175: 3,180.00 | N175: 3,189.99 | P175: 1,181.78 | Q175: 563.41 | R175: 325.62 | S175: 150.38 | T175: 37.70 | U175: 0.00
B176: 0.01 | C176: 9.99 | E176: 7.00 | F176: 5.00 | G176: 4.00 | H176: 3.00 | I176: 2.00 | J176: 1.00 | M176: 3,190.00 | N176: 3,199.99 | P176: 1,188.78 | Q176: 568.41 | R176: 329.62 | S176: 153.38 | T176: 39.70 | U176: 0.00
B177: 0.01 | C177: 9.99 | E177: 7.00 | F177: 5.00 | G177: 4.00 | H177: 3.00 | I177: 2.00 | J177: 1.00 | M177: 3,200.00 | N177: 3,209.99 | P177: 1,195.78 | Q177: 573.41 | R177: 333.62 | S177: 156.38 | T177: 41.70 | U177: 0.00
B178: 0.01 | C178: 9.99 | E178: 7.00 | F178: 5.00 | G178: 4.00 | H178: 3.00 | I178: 2.00 | J178: 1.00 | M178: 3,210.00 | N178: 3,219.99 | P178: 1,202.78 | Q178: 578.41 | R178: 337.62 | S178: 159.38 | T178: 43.70 | U178: 0.00
B179: 0.01 | C179: 9.99 | E179: 7.00 | F179: 5.00 | G179: 4.00 | H179: 3.00 | I179: 2.00 | J179: 1.00 | M179: 3,220.00 | N179: 3,229.99 | P179: 1,209.78 | Q179: 583.41 | R179: 341.62 | S179: 162.38 | T179: 45.70 | U179: 0.00
B180: 0.01 | C180: 9.99 | E180: 7.00 | F180: 5.00 | G180: 4.00 | H180: 3.00 | I180: 2.00 | J180: 1.00 | M180: 3,230.00 | N180: 3,239.99 | P180: 1,216.78 | Q180: 588.41 | R180: 345.62 | S180: 165.38 | T180: 47.70 | U180: 0.00
B181: 0.01 | C181: 9.99 | E181: 7.00 | F181: 5.00 | G181: 4.00 | H181: 3.00 | I181: 2.00 | J181: 1.00 | M181: 3,240.00 | N181: 3,249.99 | P181: 1,223.78 | Q181: 593.41 | R181: 349.62 | S181: 168.38 | T181: 49.70 | U181: 0.00
B182: 0.01 | C182: 9.99 | E182: 7.00 | F182: 5.00 | G182: 4.00 | H182: 3.00 | I182: 2.00 | J182: 1.00 | M182: 3,250.00 | N182: 3,259.99 | P182: 1,230.78 | Q182: 598.41 | R182: 353.62 | S182: 171.38 | T182: 51.70 | U182: 0.00
B183: 0.01 | C183: 9.99 | E183: 7.00 | F183: 5.00 | G183: 4.00 | H183: 3.00 | I183: 2.00 | J183: 1.00 | M183: 3,260.00 | N183: 3,269.99 | P183: 1,237.78 | Q183: 603.41 | R183: 357.62 | S183: 174.38 | T183: 53.70 | U183: 0.00
B184: 0.01 | C184: 9.99 | E184: 7.00 | F184: 5.00 | G184: 4.00 | H184: 3.00 | I184: 2.00 | J184: 1.00 | M184: 3,270.00 | N184: 3,279.99 | P184: 1,244.78 | Q184: 608.41 | R184: 361.62 | S184: 177.38 | T184: 55.70 | U184: 0.00
B185: 0.01 | C185: 9.99 | E185: 7.00 | F185: 5.00 | G185: 4.00 | H185: 3.00 | I185: 2.00 | J185: 1.00 | M185: 3,280.00 | N185: 3,289.99 | P185: 1,251.78 | Q185: 613.41 | R185: 365.62 | S185: 180.38 | T185: 57.70 | U185: 0.00
B186: 0.01 | C186: 9.99 | E186: 7.00 | F186: 5.00 | G186: 4.00 | H186: 3.00 | I186: 2.00 | J186: 1.00 | M186: 3,290.00 | N186: 3,299.99 | P186: 1,258.78 | Q186: 618.41 | R186: 369.62 | S186: 183.38 | T186: 59.70 | U186: 0.00
B187: 0.01 | C187: 9.99 | E187: 7.00 | F187: 5.00 | G187: 4.00 | H187: 3.00 | I187: 2.00 | J187: 1.00 | M187: 3,300.00 | N187: 3,309.99 | P187: 1,265.78 | Q187: 623.41 | R187: 373.62 | S187: 186.38 | T187: 61.70 | U187: 0.00
B188: 0.01 | C188: 9.99 | E188: 7.00 | F188: 5.00 | G188: 4.00 | H188: 3.00 | I188: 2.00 | J188: 1.00 | M188: 3,310.00 | N188: 3,319.99 | P188: 1,272.78 | Q188: 628.41 | R188: 377.62 | S188: 189.38 | T188: 63.70 | U188: 0.57
B189: 0.01 | C189: 9.99 | E189: 7.00 | F189: 5.00 | G189: 4.00 | H189: 3.00 | I189: 2.00 | J189: 1.00 | M189: 3,320.00 | N189: 3,329.99 | P189: 1,279.78 | Q189: 633.41 | R189: 381.62 | S189: 192.38 | T189: 65.70 | U189: 1.57
B190: 0.01 | C190: 9.99 | E190: 7.00 | F190: 5.00 | G190: 4.00 | H190: 3.00 | I190: 2.00 | J190: 1.00 | M190: 3,330.00 | N190: 3,339.99 | P190: 1,286.78 | Q190: 638.41 | R190: 385.62 | S190: 195.38 | T190: 67.70 | U190: 2.57
B191: 0.01 | C191: 9.99 | E191: 7.00 | F191: 5.00 | G191: 4.00 | H191: 3.00 | I191: 2.00 | J191: 1.00 | M191: 3,340.00 | N191: 3,349.99 | P191: 1,293.78 | Q191: 643.41 | R191: 389.62 | S191: 198.38 | T191: 69.70 | U191: 3.57
B192: 0.01 | C192: 9.99 | E192: 7.00 | F192: 5.00 | G192: 4.00 | H192: 3.00 | I192: 2.00 | J192: 1.00 | M192: 3,350.00 | N192: 3,359.99 | P192: 1,300.78 | Q192: 648.41 | R192: 393.62 | S192: 201.38 | T192: 71.70 | U192: 4.57
B193: 0.01 | C193: 9.99 | E193: 7.00 | F193: 5.00 | G193: 4.00 | H193: 3.00 | I193: 2.00 | J193: 1.00 | M193: 3,360.00 | N193: 3,369.99 | P193: 1,307.78 | Q193: 653.41 | R193: 397.62 | S193: 204.38 | T193: 73.70 | U193: 5.57
B194: 0.01 | C194: 9.99 | E194: 7.00 | F194: 5.00 | G194: 4.00 | H194: 3.00 | I194: 2.00 | J194: 1.00 | M194: 3,370.00 | N194: 3,379.99 | P194: 1,314.78 | Q194: 658.41 | R194: 401.62 | S194: 207.38 | T194: 75.70 | U194: 6.57
B195: 0.01 | C195: 9.99 | E195: 7.00 | F195: 5.00 | G195: 4.00 | H195: 3.00 | I195: 2.00 | J195: 1.00 | M195: 3,380.00 | N195: 3,389.99 | P195: 1,321.78 | Q195: 663.41 | R195: 405.62 | S195: 210.38 | T195: 77.70 | U195: 7.57
B196: 0.01 | C196: 9.99 | E196: 7.00 | F196: 5.00 | G196: 4.00 | H196: 3.00 | I196: 2.00 | J196: 1.00 | M196: 3,390.00 | N196: 3,399.99 | P196: 1,328.78 | Q196: 668.41 | R196: 409.62 | S196: 213.38 | T196: 79.70 | U196: 8.57
B197: 0.01 | C197: 9.99 | E197: 7.00 | F197: 5.00 | G197: 4.00 | H197: 3.00 | I197: 2.00 | J197: 1.00 | M197: 3,400.00 | N197: 3,409.99 | P197: 1,335.78 | Q197: 673.41 | R197: 413.62 | S197: 216.38 | T197: 81.70 | U197: 9.57
B198: 0.01 | C198: 9.99 | E198: 7.00 | F198: 5.00 | G198: 4.00 | H198: 3.00 | I198: 2.00 | J198: 1.00 | M198: 3,410.00 | N198: 3,419.99 | P198: 1,342.78 | Q198: 678.41 | R198: 417.62 | S198: 219.38 | T198: 83.70 | U198: 10.57
B199: 0.01 | C199: 9.99 | E199: 7.00 | F199: 5.00 | G199: 4.00 | H199: 3.00 | I199: 2.00 | J199: 1.00 | M199: 3,420.00 | N199: 3,429.99 | P199: 1,349.78 | Q199: 683.41 | R199: 421.62 | S199: 222.38 | T199: 85.70 | U199: 11.57
B200: 0.01 | C200: 9.99 | E200: 7.00 | F200: 5.00 | G200: 4.00 | H200: 3.00 | I200: 2.00 | J200: 1.00 | M200: 3,430.00 | N200: 3,439.99 | P200: 1,356.78 | Q200: 688.41 | R200: 425.62 | S200: 225.38 | T200: 87.70 | U200: 12.57
M201: 3,440.00 | N201: 3,449.99 | P201: 1,363.78 | Q201: 693.41 | R201: 429.62 | S201: 228.38 | T201: 89.70 | U201: 13.57
M202: 3,450.00 | N202: 3,459.99 | P202: 1,370.78 | Q202: 698.41 | R202: 433.62 | S202: 231.38 | T202: 91.70 | U202: 14.57
... 113 more rows

Sheet Tabelle pfändbarer Beträge 2023 (hidden)
E3: Pfändbarer Betrag bei Unterhaltspflicht für ... Personen | M3: Nettolohn | P3: Pfändbarer Betrag bei Unterhaltspflicht für ... Personen (gültig vom 01.07.2023 bis 30.06.2024)
B4: Nettolohn | E4: 0 | F4: 1 | G4: 2 | H4: 3 | I4: 4 | J4: 5 | M4: monatlich in Euro | P4: 0 | Q4: 1 | R4: 2 | S4: 3 | T4: 4 | U4: 5
B5: Add. Links | C5: Add. Rechts | J5: und mehr | M5: von | N5: bis | U5: und mehr
B6: 989.99 | E6: 0.00 | F6: 0.00 | G6: 0.00 | H6: 0.00 | I6: 0.00 | J6: 0.00 | N6: 1,409.99 | P6: 0.00 | Q6: 0.00 | R6: 0.00 | S6: 0.00 | T6: 0.00 | U6: 0.00
B7: 0.01 | C7: 9.99 | E7: 3.40 | F7: 0.00 | G7: 0.00 | H7: 0.00 | I7: 0.00 | J7: 0.00 | M7: 1,410.00 | N7: 1,419.99 | P7: 5.40 | Q7: 0.00 | R7: 0.00 | S7: 0.00 | T7: 0.00 | U7: 0.00
B8: 0.01 | C8: 9.99 | E8: 7.00 | F8: 0.00 | G8: 0.00 | H8: 0.00 | I8: 0.00 | J8: 0.00 | M8: 1,420.00 | N8: 1,429.99 | P8: 12.40 | Q8: 0.00 | R8: 0.00 | S8: 0.00 | T8: 0.00 | U8: 0.00
B9: 0.01 | C9: 9.99 | E9: 7.00 | F9: 0.00 | G9: 0.00 | H9: 0.00 | I9: 0.00 | J9: 0.00 | M9: 1,430.00 | N9: 1,439.99 | P9: 19.40 | Q9: 0.00 | R9: 0.00 | S9: 0.00 | T9: 0.00 | U9: 0.00
B10: 0.01 | C10: 9.99 | E10: 7.00 | F10: 0.00 | G10: 0.00 | H10: 0.00 | I10: 0.00 | J10: 0.00 | M10: 1,440.00 | N10: 1,449.99 | P10: 26.40 | Q10: 0.00 | R10: 0.00 | S10: 0.00 | T10: 0.00 | U10: 0.00
B11: 0.01 | C11: 9.99 | E11: 7.00 | F11: 0.00 | G11: 0.00 | H11: 0.00 | I11: 0.00 | J11: 0.00 | M11: 1,450.00 | N11: 1,459.99 | P11: 33.40 | Q11: 0.00 | R11: 0.00 | S11: 0.00 | T11: 0.00 | U11: 0.00
B12: 0.01 | C12: 9.99 | E12: 7.00 | F12: 0.00 | G12: 0.00 | H12: 0.00 | I12: 0.00 | J12: 0.00 | M12: 1,460.00 | N12: 1,469.99 | P12: 40.40 | Q12: 0.00 | R12: 0.00 | S12: 0.00 | T12: 0.00 | U12: 0.00
B13: 0.01 | C13: 9.99 | E13: 7.00 | F13: 0.00 | G13: 0.00 | H13: 0.00 | I13: 0.00 | J13: 0.00 | M13: 1,470.00 | N13: 1,479.99 | P13: 47.40 | Q13: 0.00 | R13: 0.00 | S13: 0.00 | T13: 0.00 | U13: 0.00
B14: 0.01 | C14: 9.99 | E14: 7.00 | F14: 0.00 | G14: 0.00 | H14: 0.00 | I14: 0.00 | J14: 0.00 | M14: 1,480.00 | N14: 1,489.99 | P14: 54.40 | Q14: 0.00 | R14: 0.00 | S14: 0.00 | T14: 0.00 | U14: 0.00
B15: 0.01 | C15: 9.99 | E15: 7.00 | F15: 0.00 | G15: 0.00 | H15: 0.00 | I15: 0.00 | J15: 0.00 | M15: 1,490.00 | N15: 1,499.99 | P15: 61.40 | Q15: 0.00 | R15: 0.00 | S15: 0.00 | T15: 0.00 | U15: 0.00
B16: 0.01 | C16: 9.99 | E16: 7.00 | F16: 0.00 | G16: 0.00 | H16: 0.00 | I16: 0.00 | J16: 0.00 | M16: 1,500.00 | N16: 1,509.99 | P16: 68.40 | Q16: 0.00 | R16: 0.00 | S16: 0.00 | T16: 0.00 | U16: 0.00
B17: 0.01 | C17: 9.99 | E17: 7.00 | F17: 0.00 | G17: 0.00 | H17: 0.00 | I17: 0.00 | J17: 0.00 | M17: 1,510.00 | N17: 1,519.99 | P17: 75.40 | Q17: 0.00 | R17: 0.00 | S17: 0.00 | T17: 0.00 | U17: 0.00
B18: 0.01 | C18: 9.99 | E18: 7.00 | F18: 0.00 | G18: 0.00 | H18: 0.00 | I18: 0.00 | J18: 0.00 | M18: 1,520.00 | N18: 1,529.99 | P18: 82.40 | Q18: 0.00 | R18: 0.00 | S18: 0.00 | T18: 0.00 | U18: 0.00
B19: 0.01 | C19: 9.99 | E19: 7.00 | F19: 0.00 | G19: 0.00 | H19: 0.00 | I19: 0.00 | J19: 0.00 | M19: 1,530.00 | N19: 1,539.99 | P19: 89.40 | Q19: 0.00 | R19: 0.00 | S19: 0.00 | T19: 0.00 | U19: 0.00
B20: 0.01 | C20: 9.99 | E20: 7.00 | F20: 0.00 | G20: 0.00 | H20: 0.00 | I20: 0.00 | J20: 0.00 | M20: 1,540.00 | N20: 1,549.99 | P20: 96.40 | Q20: 0.00 | R20: 0.00 | S20: 0.00 | T20: 0.00 | U20: 0.00
B21: 0.01 | C21: 9.99 | E21: 7.00 | F21: 0.00 | G21: 0.00 | H21: 0.00 | I21: 0.00 | J21: 0.00 | M21: 1,550.00 | N21: 1,559.99 | P21: 103.40 | Q21: 0.00 | R21: 0.00 | S21: 0.00 | T21: 0.00 | U21: 0.00
B22: 0.01 | C22: 9.99 | E22: 7.00 | F22: 0.00 | G22: 0.00 | H22: 0.00 | I22: 0.00 | J22: 0.00 | M22: 1,560.00 | N22: 1,569.99 | P22: 110.40 | Q22: 0.00 | R22: 0.00 | S22: 0.00 | T22: 0.00 | U22: 0.00
B23: 0.01 | C23: 9.99 | E23: 7.00 | F23: 0.00 | G23: 0.00 | H23: 0.00 | I23: 0.00 | J23: 0.00 | M23: 1,570.00 | N23: 1,579.99 | P23: 117.40 | Q23: 0.00 | R23: 0.00 | S23: 0.00 | T23: 0.00 | U23: 0.00
B24: 0.01 | C24: 9.99 | E24: 7.00 | F24: 0.00 | G24: 0.00 | H24: 0.00 | I24: 0.00 | J24: 0.00 | M24: 1,580.00 | N24: 1,589.99 | P24: 124.40 | Q24: 0.00 | R24: 0.00 | S24: 0.00 | T24: 0.00 | U24: 0.00
B25: 0.01 | C25: 9.99 | E25: 7.00 | F25: 0.00 | G25: 0.00 | H25: 0.00 | I25: 0.00 | J25: 0.00 | M25: 1,590.00 | N25: 1,599.99 | P25: 131.40 | Q25: 0.00 | R25: 0.00 | S25: 0.00 | T25: 0.00 | U25: 0.00
B26: 0.01 | C26: 9.99 | E26: 7.00 | F26: 0.00 | G26: 0.00 | H26: 0.00 | I26: 0.00 | J26: 0.00 | M26: 1,600.00 | N26: 1,609.99 | P26: 138.40 | Q26: 0.00 | R26: 0.00 | S26: 0.00 | T26: 0.00 | U26: 0.00
B27: 0.01 | C27: 9.99 | E27: 7.00 | F27: 0.00 | G27: 0.00 | H27: 0.00 | I27: 0.00 | J27: 0.00 | M27: 1,610.00 | N27: 1,619.99 | P27: 145.40 | Q27: 0.00 | R27: 0.00 | S27: 0.00 | T27: 0.00 | U27: 0.00
B28: 0.01 | C28: 9.99 | E28: 7.00 | F28: 0.00 | G28: 0.00 | H28: 0.00 | I28: 0.00 | J28: 0.00 | M28: 1,620.00 | N28: 1,629.99 | P28: 152.40 | Q28: 0.00 | R28: 0.00 | S28: 0.00 | T28: 0.00 | U28: 0.00
B29: 0.01 | C29: 9.99 | E29: 7.00 | F29: 0.00 | G29: 0.00 | H29: 0.00 | I29: 0.00 | J29: 0.00 | M29: 1,630.00 | N29: 1,639.99 | P29: 159.40 | Q29: 0.00 | R29: 0.00 | S29: 0.00 | T29: 0.00 | U29: 0.00
B30: 0.01 | C30: 9.99 | E30: 7.00 | F30: 0.00 | G30: 0.00 | H30: 0.00 | I30: 0.00 | J30: 0.00 | M30: 1,640.00 | N30: 1,649.99 | P30: 166.40 | Q30: 0.00 | R30: 0.00 | S30: 0.00 | T30: 0.00 | U30: 0.00
B31: 0.01 | C31: 9.99 | E31: 7.00 | F31: 0.00 | G31: 0.00 | H31: 0.00 | I31: 0.00 | J31: 0.00 | M31: 1,650.00 | N31: 1,659.99 | P31: 173.40 | Q31: 0.00 | R31: 0.00 | S31: 0.00 | T31: 0.00 | U31: 0.00
B32: 0.01 | C32: 9.99 | E32: 7.00 | F32: 0.00 | G32: 0.00 | H32: 0.00 | I32: 0.00 | J32: 0.00 | M32: 1,660.00 | N32: 1,669.99 | P32: 180.40 | Q32: 0.00 | R32: 0.00 | S32: 0.00 | T32: 0.00 | U32: 0.00
B33: 0.01 | C33: 9.99 | E33: 7.00 | F33: 0.00 | G33: 0.00 | H33: 0.00 | I33: 0.00 | J33: 0.00 | M33: 1,670.00 | N33: 1,679.99 | P33: 187.40 | Q33: 0.00 | R33: 0.00 | S33: 0.00 | T33: 0.00 | U33: 0.00
B34: 0.01 | C34: 9.99 | E34: 7.00 | F34: 0.00 | G34: 0.00 | H34: 0.00 | I34: 0.00 | J34: 0.00 | M34: 1,680.00 | N34: 1,689.99 | P34: 194.40 | Q34: 0.00 | R34: 0.00 | S34: 0.00 | T34: 0.00 | U34: 0.00
B35: 0.01 | C35: 9.99 | E35: 7.00 | F35: 0.00 | G35: 0.00 | H35: 0.00 | I35: 0.00 | J35: 0.00 | M35: 1,690.00 | N35: 1,699.99 | P35: 201.40 | Q35: 0.00 | R35: 0.00 | S35: 0.00 | T35: 0.00 | U35: 0.00
B36: 0.01 | C36: 9.99 | E36: 7.00 | F36: 0.00 | G36: 0.00 | H36: 0.00 | I36: 0.00 | J36: 0.00 | M36: 1,700.00 | N36: 1,709.99 | P36: 208.40 | Q36: 0.00 | R36: 0.00 | S36: 0.00 | T36: 0.00 | U36: 0.00
B37: 0.01 | C37: 9.99 | E37: 7.00 | F37: 0.00 | G37: 0.00 | H37: 0.00 | I37: 0.00 | J37: 0.00 | M37: 1,710.00 | N37: 1,719.99 | P37: 215.40 | Q37: 0.00 | R37: 0.00 | S37: 0.00 | T37: 0.00 | U37: 0.00
B38: 0.01 | C38: 9.99 | E38: 7.00 | F38: 0.00 | G38: 0.00 | H38: 0.00 | I38: 0.00 | J38: 0.00 | M38: 1,720.00 | N38: 1,729.99 | P38: 222.40 | Q38: 0.00 | R38: 0.00 | S38: 0.00 | T38: 0.00 | U38: 0.00
B39: 0.01 | C39: 9.99 | E39: 7.00 | F39: 0.00 | G39: 0.00 | H39: 0.00 | I39: 0.00 | J39: 0.00 | M39: 1,730.00 | N39: 1,739.99 | P39: 229.40 | Q39: 0.00 | R39: 0.00 | S39: 0.00 | T39: 0.00 | U39: 0.00
B40: 0.01 | C40: 9.99 | E40: 7.00 | F40: 0.00 | G40: 0.00 | H40: 0.00 | I40: 0.00 | J40: 0.00 | M40: 1,740.00 | N40: 1,749.99 | P40: 236.40 | Q40: 0.00 | R40: 0.00 | S40: 0.00 | T40: 0.00 | U40: 0.00
B41: 0.01 | C41: 9.99 | E41: 7.00 | F41: 0.00 | G41: 0.00 | H41: 0.00 | I41: 0.00 | J41: 0.00 | M41: 1,750.00 | N41: 1,759.99 | P41: 243.40 | Q41: 0.00 | R41: 0.00 | S41: 0.00 | T41: 0.00 | U41: 0.00
B42: 0.01 | C42: 9.99 | E42: 7.00 | F42: 0.00 | G42: 0.00 | H42: 0.00 | I42: 0.00 | J42: 0.00 | M42: 1,760.00 | N42: 1,769.99 | P42: 250.40 | Q42: 0.00 | R42: 0.00 | S42: 0.00 | T42: 0.00 | U42: 0.00
B43: 0.01 | C43: 9.99 | E43: 7.00 | F43: 0.00 | G43: 0.00 | H43: 0.00 | I43: 0.00 | J43: 0.00 | M43: 1,770.00 | N43: 1,779.99 | P43: 257.40 | Q43: 0.00 | R43: 0.00 | S43: 0.00 | T43: 0.00 | U43: 0.00
B44: 0.01 | C44: 9.99 | E44: 7.00 | F44: 2.05 | G44: 0.00 | H44: 0.00 | I44: 0.00 | J44: 0.00 | M44: 1,780.00 | N44: 1,789.99 | P44: 264.40 | Q44: 0.00 | R44: 0.00 | S44: 0.00 | T44: 0.00 | U44: 0.00
B45: 0.01 | C45: 9.99 | E45: 7.00 | F45: 5.00 | G45: 0.00 | H45: 0.00 | I45: 0.00 | J45: 0.00 | M45: 1,790.00 | N45: 1,799.99 | P45: 271.40 | Q45: 0.00 | R45: 0.00 | S45: 0.00 | T45: 0.00 | U45: 0.00
B46: 0.01 | C46: 9.99 | E46: 7.00 | F46: 5.00 | G46: 0.00 | H46: 0.00 | I46: 0.00 | J46: 0.00 | M46: 1,800.00 | N46: 1,809.99 | P46: 278.40 | Q46: 0.00 | R46: 0.00 | S46: 0.00 | T46: 0.00 | U46: 0.00
B47: 0.01 | C47: 9.99 | E47: 7.00 | F47: 5.00 | G47: 0.00 | H47: 0.00 | I47: 0.00 | J47: 0.00 | M47: 1,810.00 | N47: 1,819.99 | P47: 285.40 | Q47: 0.00 | R47: 0.00 | S47: 0.00 | T47: 0.00 | U47: 0.00
B48: 0.01 | C48: 9.99 | E48: 7.00 | F48: 5.00 | G48: 0.00 | H48: 0.00 | I48: 0.00 | J48: 0.00 | M48: 1,820.00 | N48: 1,829.99 | P48: 292.40 | Q48: 0.00 | R48: 0.00 | S48: 0.00 | T48: 0.00 | U48: 0.00
B49: 0.01 | C49: 9.99 | E49: 7.00 | F49: 5.00 | G49: 0.00 | H49: 0.00 | I49: 0.00 | J49: 0.00 | M49: 1,830.00 | N49: 1,839.99 | P49: 299.40 | Q49: 0.00 | R49: 0.00 | S49: 0.00 | T49: 0.00 | U49: 0.00
B50: 0.01 | C50: 9.99 | E50: 7.00 | F50: 5.00 | G50: 0.00 | H50: 0.00 | I50: 0.00 | J50: 0.00 | M50: 1,840.00 | N50: 1,849.99 | P50: 306.40 | Q50: 0.00 | R50: 0.00 | S50: 0.00 | T50: 0.00 | U50: 0.00
B51: 0.01 | C51: 9.99 | E51: 7.00 | F51: 5.00 | G51: 0.00 | H51: 0.00 | I51: 0.00 | J51: 0.00 | M51: 1,850.00 | N51: 1,859.99 | P51: 313.40 | Q51: 0.00 | R51: 0.00 | S51: 0.00 | T51: 0.00 | U51: 0.00
B52: 0.01 | C52: 9.99 | E52: 7.00 | F52: 5.00 | G52: 0.00 | H52: 0.00 | I52: 0.00 | J52: 0.00 | M52: 1,860.00 | N52: 1,869.99 | P52: 320.40 | Q52: 0.00 | R52: 0.00 | S52: 0.00 | T52: 0.00 | U52: 0.00
B53: 0.01 | C53: 9.99 | E53: 7.00 | F53: 5.00 | G53: 0.00 | H53: 0.00 | I53: 0.00 | J53: 0.00 | M53: 1,870.00 | N53: 1,879.99 | P53: 327.40 | Q53: 0.00 | R53: 0.00 | S53: 0.00 | T53: 0.00 | U53: 0.00
B54: 0.01 | C54: 9.99 | E54: 7.00 | F54: 5.00 | G54: 0.00 | H54: 0.00 | I54: 0.00 | J54: 0.00 | M54: 1,880.00 | N54: 1,889.99 | P54: 334.40 | Q54: 0.00 | R54: 0.00 | S54: 0.00 | T54: 0.00 | U54: 0.00
B55: 0.01 | C55: 9.99 | E55: 7.00 | F55: 5.00 | G55: 0.00 | H55: 0.00 | I55: 0.00 | J55: 0.00 | M55: 1,890.00 | N55: 1,899.99 | P55: 341.40 | Q55: 0.00 | R55: 0.00 | S55: 0.00 | T55: 0.00 | U55: 0.00
B56: 0.01 | C56: 9.99 | E56: 7.00 | F56: 5.00 | G56: 0.00 | H56: 0.00 | I56: 0.00 | J56: 0.00 | M56: 1,900.00 | N56: 1,909.99 | P56: 348.40 | Q56: 0.00 | R56: 0.00 | S56: 0.00 | T56: 0.00 | U56: 0.00
B57: 0.01 | C57: 9.99 | E57: 7.00 | F57: 5.00 | G57: 0.00 | H57: 0.00 | I57: 0.00 | J57: 0.00 | M57: 1,910.00 | N57: 1,919.99 | P57: 355.40 | Q57: 0.00 | R57: 0.00 | S57: 0.00 | T57: 0.00 | U57: 0.00
B58: 0.01 | C58: 9.99 | E58: 7.00 | F58: 5.00 | G58: 0.00 | H58: 0.00 | I58: 0.00 | J58: 0.00 | M58: 1,920.00 | N58: 1,929.99 | P58: 362.40 | Q58: 0.00 | R58: 0.00 | S58: 0.00 | T58: 0.00 | U58: 0.00
B59: 0.01 | C59: 9.99 | E59: 7.00 | F59: 5.00 | G59: 0.00 | H59: 0.00 | I59: 0.00 | J59: 0.00 | M59: 1,930.00 | N59: 1,939.99 | P59: 369.40 | Q59: 0.00 | R59: 0.00 | S59: 0.00 | T59: 0.00 | U59: 0.00
B60: 0.01 | C60: 9.99 | E60: 7.00 | F60: 5.00 | G60: 0.00 | H60: 0.00 | I60: 0.00 | J60: 0.00 | M60: 1,940.00 | N60: 1,949.99 | P60: 376.40 | Q60: 4.98 | R60: 0.00 | S60: 0.00 | T60: 0.00 | U60: 0.00
B61: 0.01 | C61: 9.99 | E61: 7.00 | F61: 5.00 | G61: 0.00 | H61: 0.00 | I61: 0.00 | J61: 0.00 | M61: 1,950.00 | N61: 1,959.99 | P61: 383.40 | Q61: 9.98 | R61: 0.00 | S61: 0.00 | T61: 0.00 | U61: 0.00
B62: 0.01 | C62: 9.99 | E62: 7.00 | F62: 5.00 | G62: 0.00 | H62: 0.00 | I62: 0.00 | J62: 0.00 | M62: 1,960.00 | N62: 1,969.99 | P62: 390.40 | Q62: 14.98 | R62: 0.00 | S62: 0.00 | T62: 0.00 | U62: 0.00
B63: 0.01 | C63: 9.99 | E63: 7.00 | F63: 5.00 | G63: 0.00 | H63: 0.00 | I63: 0.00 | J63: 0.00 | M63: 1,970.00 | N63: 1,979.99 | P63: 397.40 | Q63: 19.98 | R63: 0.00 | S63: 0.00 | T63: 0.00 | U63: 0.00
B64: 0.01 | C64: 9.99 | E64: 7.00 | F64: 5.00 | G64: 0.00 | H64: 0.00 | I64: 0.00 | J64: 0.00 | M64: 1,980.00 | N64: 1,989.99 | P64: 404.40 | Q64: 24.98 | R64: 0.00 | S64: 0.00 | T64: 0.00 | U64: 0.00
B65: 0.01 | C65: 9.99 | E65: 7.00 | F65: 5.00 | G65: 3.01 | H65: 0.00 | I65: 0.00 | J65: 0.00 | M65: 1,990.00 | N65: 1,999.99 | P65: 411.40 | Q65: 29.98 | R65: 0.00 | S65: 0.00 | T65: 0.00 | U65: 0.00
B66: 0.01 | C66: 9.99 | E66: 7.00 | F66: 5.00 | G66: 4.00 | H66: 0.00 | I66: 0.00 | J66: 0.00 | M66: 2,000.00 | N66: 2,009.99 | P66: 418.40 | Q66: 34.98 | R66: 0.00 | S66: 0.00 | T66: 0.00 | U66: 0.00
B67: 0.01 | C67: 9.99 | E67: 7.00 | F67: 5.00 | G67: 4.00 | H67: 0.00 | I67: 0.00 | J67: 0.00 | M67: 2,010.00 | N67: 2,019.99 | P67: 425.40 | Q67: 39.98 | R67: 0.00 | S67: 0.00 | T67: 0.00 | U67: 0.00
B68: 0.01 | C68: 9.99 | E68: 7.00 | F68: 5.00 | G68: 4.00 | H68: 0.00 | I68: 0.00 | J68: 0.00 | M68: 2,020.00 | N68: 2,029.99 | P68: 432.40 | Q68: 44.98 | R68: 0.00 | S68: 0.00 | T68: 0.00 | U68: 0.00
B69: 0.01 | C69: 9.99 | E69: 7.00 | F69: 5.00 | G69: 4.00 | H69: 0.00 | I69: 0.00 | J69: 0.00 | M69: 2,030.00 | N69: 2,039.99 | P69: 439.40 | Q69: 49.98 | R69: 0.00 | S69: 0.00 | T69: 0.00 | U69: 0.00
B70: 0.01 | C70: 9.99 | E70: 7.00 | F70: 5.00 | G70: 4.00 | H70: 0.00 | I70: 0.00 | J70: 0.00 | M70: 2,040.00 | N70: 2,049.99 | P70: 446.40 | Q70: 54.98 | R70: 0.00 | S70: 0.00 | T70: 0.00 | U70: 0.00
B71: 0.01 | C71: 9.99 | E71: 7.00 | F71: 5.00 | G71: 4.00 | H71: 0.00 | I71: 0.00 | J71: 0.00 | M71: 2,050.00 | N71: 2,059.99 | P71: 453.40 | Q71: 59.98 | R71: 0.00 | S71: 0.00 | T71: 0.00 | U71: 0.00
B72: 0.01 | C72: 9.99 | E72: 7.00 | F72: 5.00 | G72: 4.00 | H72: 0.00 | I72: 0.00 | J72: 0.00 | M72: 2,060.00 | N72: 2,069.99 | P72: 460.40 | Q72: 64.98 | R72: 0.00 | S72: 0.00 | T72: 0.00 | U72: 0.00
B73: 0.01 | C73: 9.99 | E73: 7.00 | F73: 5.00 | G73: 4.00 | H73: 0.00 | I73: 0.00 | J73: 0.00 | M73: 2,070.00 | N73: 2,079.99 | P73: 467.40 | Q73: 69.98 | R73: 0.00 | S73: 0.00 | T73: 0.00 | U73: 0.00
B74: 0.01 | C74: 9.99 | E74: 7.00 | F74: 5.00 | G74: 4.00 | H74: 0.00 | I74: 0.00 | J74: 0.00 | M74: 2,080.00 | N74: 2,089.99 | P74: 474.40 | Q74: 74.98 | R74: 0.00 | S74: 0.00 | T74: 0.00 | U74: 0.00
B75: 0.01 | C75: 9.99 | E75: 7.00 | F75: 5.00 | G75: 4.00 | H75: 0.00 | I75: 0.00 | J75: 0.00 | M75: 2,090.00 | N75: 2,099.99 | P75: 481.40 | Q75: 79.98 | R75: 0.00 | S75: 0.00 | T75: 0.00 | U75: 0.00
B76: 0.01 | C76: 9.99 | E76: 7.00 | F76: 5.00 | G76: 4.00 | H76: 0.00 | I76: 0.00 | J76: 0.00 | M76: 2,100.00 | N76: 2,109.99 | P76: 488.40 | Q76: 84.98 | R76: 0.00 | S76: 0.00 | T76: 0.00 | U76: 0.00
B77: 0.01 | C77: 9.99 | E77: 7.00 | F77: 5.00 | G77: 4.00 | H77: 0.00 | I77: 0.00 | J77: 0.00 | M77: 2,110.00 | N77: 2,119.99 | P77: 495.40 | Q77: 89.98 | R77: 0.00 | S77: 0.00 | T77: 0.00 | U77: 0.00
B78: 0.01 | C78: 9.99 | E78: 7.00 | F78: 5.00 | G78: 4.00 | H78: 0.00 | I78: 0.00 | J78: 0.00 | M78: 2,120.00 | N78: 2,129.99 | P78: 502.40 | Q78: 94.98 | R78: 0.00 | S78: 0.00 | T78: 0.00 | U78: 0.00
B79: 0.01 | C79: 9.99 | E79: 7.00 | F79: 5.00 | G79: 4.00 | H79: 0.00 | I79: 0.00 | J79: 0.00 | M79: 2,130.00 | N79: 2,139.99 | P79: 509.40 | Q79: 99.98 | R79: 0.00 | S79: 0.00 | T79: 0.00 | U79: 0.00
B80: 0.01 | C80: 9.99 | E80: 7.00 | F80: 5.00 | G80: 4.00 | H80: 0.00 | I80: 0.00 | J80: 0.00 | M80: 2,140.00 | N80: 2,149.99 | P80: 516.40 | Q80: 104.98 | R80: 0.00 | S80: 0.00 | T80: 0.00 | U80: 0.00
B81: 0.01 | C81: 9.99 | E81: 7.00 | F81: 5.00 | G81: 4.00 | H81: 0.00 | I81: 0.00 | J81: 0.00 | M81: 2,150.00 | N81: 2,159.99 | P81: 523.40 | Q81: 109.98 | R81: 0.00 | S81: 0.00 | T81: 0.00 | U81: 0.00
B82: 0.01 | C82: 9.99 | E82: 7.00 | F82: 5.00 | G82: 4.00 | H82: 0.00 | I82: 0.00 | J82: 0.00 | M82: 2,160.00 | N82: 2,169.99 | P82: 530.40 | Q82: 114.98 | R82: 0.00 | S82: 0.00 | T82: 0.00 | U82: 0.00
B83: 0.01 | C83: 9.99 | E83: 7.00 | F83: 5.00 | G83: 4.00 | H83: 0.00 | I83: 0.00 | J83: 0.00 | M83: 2,170.00 | N83: 2,179.99 | P83: 537.40 | Q83: 119.98 | R83: 0.00 | S83: 0.00 | T83: 0.00 | U83: 0.00
B84: 0.01 | C84: 9.99 | E84: 7.00 | F84: 5.00 | G84: 4.00 | H84: 0.00 | I84: 0.00 | J84: 0.00 | M84: 2,180.00 | N84: 2,189.99 | P84: 544.40 | Q84: 124.98 | R84: 0.00 | S84: 0.00 | T84: 0.00 | U84: 0.00
B85: 0.01 | C85: 9.99 | E85: 7.00 | F85: 5.00 | G85: 4.00 | H85: 0.29 | I85: 0.00 | J85: 0.00 | M85: 2,190.00 | N85: 2,199.99 | P85: 551.40 | Q85: 129.98 | R85: 0.00 | S85: 0.00 | T85: 0.00 | U85: 0.00
B86: 0.01 | C86: 9.99 | E86: 7.00 | F86: 5.00 | G86: 4.00 | H86: 3.00 | I86: 0.00 | J86: 0.00 | M86: 2,200.00 | N86: 2,209.99 | P86: 558.40 | Q86: 134.98 | R86: 0.00 | S86: 0.00 | T86: 0.00 | U86: 0.00
B87: 0.01 | C87: 9.99 | E87: 7.00 | F87: 5.00 | G87: 4.00 | H87: 3.00 | I87: 0.00 | J87: 0.00 | M87: 2,210.00 | N87: 2,219.99 | P87: 565.40 | Q87: 139.98 | R87: 0.00 | S87: 0.00 | T87: 0.00 | U87: 0.00
B88: 0.01 | C88: 9.99 | E88: 7.00 | F88: 5.00 | G88: 4.00 | H88: 3.00 | I88: 0.00 | J88: 0.00 | M88: 2,220.00 | N88: 2,229.99 | P88: 572.40 | Q88: 144.98 | R88: 0.00 | S88: 0.00 | T88: 0.00 | U88: 0.00
B89: 0.01 | C89: 9.99 | E89: 7.00 | F89: 5.00 | G89: 4.00 | H89: 3.00 | I89: 0.00 | J89: 0.00 | M89: 2,230.00 | N89: 2,239.99 | P89: 579.40 | Q89: 149.98 | R89: 2.38 | S89: 0.00 | T89: 0.00 | U89: 0.00
B90: 0.01 | C90: 9.99 | E90: 7.00 | F90: 5.00 | G90: 4.00 | H90: 3.00 | I90: 0.00 | J90: 0.00 | M90: 2,240.00 | N90: 2,249.99 | P90: 586.40 | Q90: 154.98 | R90: 6.38 | S90: 0.00 | T90: 0.00 | U90: 0.00
B91: 0.01 | C91: 9.99 | E91: 7.00 | F91: 5.00 | G91: 4.00 | H91: 3.00 | I91: 0.00 | J91: 0.00 | M91: 2,250.00 | N91: 2,259.99 | P91: 593.40 | Q91: 159.98 | R91: 10.38 | S91: 0.00 | T91: 0.00 | U91: 0.00
B92: 0.01 | C92: 9.99 | E92: 7.00 | F92: 5.00 | G92: 4.00 | H92: 3.00 | I92: 0.00 | J92: 0.00 | M92: 2,260.00 | N92: 2,269.99 | P92: 600.40 | Q92: 164.98 | R92: 14.38 | S92: 0.00 | T92: 0.00 | U92: 0.00
B93: 0.01 | C93: 9.99 | E93: 7.00 | F93: 5.00 | G93: 4.00 | H93: 3.00 | I93: 0.00 | J93: 0.00 | M93: 2,270.00 | N93: 2,279.99 | P93: 607.40 | Q93: 169.98 | R93: 18.38 | S93: 0.00 | T93: 0.00 | U93: 0.00
B94: 0.01 | C94: 9.99 | E94: 7.00 | F94: 5.00 | G94: 4.00 | H94: 3.00 | I94: 0.00 | J94: 0.00 | M94: 2,280.00 | N94: 2,289.99 | P94: 614.40 | Q94: 174.98 | R94: 22.38 | S94: 0.00 | T94: 0.00 | U94: 0.00
B95: 0.01 | C95: 9.99 | E95: 7.00 | F95: 5.00 | G95: 4.00 | H95: 3.00 | I95: 0.00 | J95: 0.00 | M95: 2,290.00 | N95: 2,299.99 | P95: 621.40 | Q95: 179.98 | R95: 26.38 | S95: 0.00 | T95: 0.00 | U95: 0.00
B96: 0.01 | C96: 9.99 | E96: 7.00 | F96: 5.00 | G96: 4.00 | H96: 3.00 | I96: 0.00 | J96: 0.00 | M96: 2,300.00 | N96: 2,309.99 | P96: 628.40 | Q96: 184.98 | R96: 30.38 | S96: 0.00 | T96: 0.00 | U96: 0.00
B97: 0.01 | C97: 9.99 | E97: 7.00 | F97: 5.00 | G97: 4.00 | H97: 3.00 | I97: 0.00 | J97: 0.00 | M97: 2,310.00 | N97: 2,319.99 | P97: 635.40 | Q97: 189.98 | R97: 34.38 | S97: 0.00 | T97: 0.00 | U97: 0.00
B98: 0.01 | C98: 9.99 | E98: 7.00 | F98: 5.00 | G98: 4.00 | H98: 3.00 | I98: 0.00 | J98: 0.00 | M98: 2,320.00 | N98: 2,329.99 | P98: 642.40 | Q98: 194.98 | R98: 38.38 | S98: 0.00 | T98: 0.00 | U98: 0.00
B99: 0.01 | C99: 9.99 | E99: 7.00 | F99: 5.00 | G99: 4.00 | H99: 3.00 | I99: 0.00 | J99: 0.00 | M99: 2,330.00 | N99: 2,339.99 | P99: 649.40 | Q99: 199.98 | R99: 42.38 | S99: 0.00 | T99: 0.00 | U99: 0.00
B100: 0.01 | C100: 9.99 | E100: 7.00 | F100: 5.00 | G100: 4.00 | H100: 3.00 | I100: 0.00 | J100: 0.00 | M100: 2,340.00 | N100: 2,349.99 | P100: 656.40 | Q100: 204.98 | R100: 46.38 | S100: 0.00 | T100: 0.00 | U100: 0.00
B101: 0.01 | C101: 9.99 | E101: 7.00 | F101: 5.00 | G101: 4.00 | H101: 3.00 | I101: 0.00 | J101: 0.00 | M101: 2,350.00 | N101: 2,359.99 | P101: 663.40 | Q101: 209.98 | R101: 50.38 | S101: 0.00 | T101: 0.00 | U101: 0.00
B102: 0.01 | C102: 9.99 | E102: 7.00 | F102: 5.00 | G102: 4.00 | H102: 3.00 | I102: 0.00 | J102: 0.00 | M102: 2,360.00 | N102: 2,369.99 | P102: 670.40 | Q102: 214.98 | R102: 54.38 | S102: 0.00 | T102: 0.00 | U102: 0.00
B103: 0.01 | C103: 9.99 | E103: 7.00 | F103: 5.00 | G103: 4.00 | H103: 3.00 | I103: 0.00 | J103: 0.00 | M103: 2,370.00 | N103: 2,379.99 | P103: 677.40 | Q103: 219.98 | R103: 58.38 | S103: 0.00 | T103: 0.00 | U103: 0.00
B104: 0.01 | C104: 9.99 | E104: 7.00 | F104: 5.00 | G104: 4.00 | H104: 3.00 | I104: 0.00 | J104: 0.00 | M104: 2,380.00 | N104: 2,389.99 | P104: 684.40 | Q104: 224.98 | R104: 62.38 | S104: 0.00 | T104: 0.00 | U104: 0.00
B105: 0.01 | C105: 9.99 | E105: 7.00 | F105: 5.00 | G105: 4.00 | H105: 3.00 | I105: 0.00 | J105: 0.00 | M105: 2,390.00 | N105: 2,399.99 | P105: 691.40 | Q105: 229.98 | R105: 66.38 | S105: 0.00 | T105: 0.00 | U105: 0.00
B106: 0.01 | C106: 9.99 | E106: 7.00 | F106: 5.00 | G106: 4.00 | H106: 3.00 | I106: 0.88 | J106: 0.00 | M106: 2,400.00 | N106: 2,409.99 | P106: 698.40 | Q106: 234.98 | R106: 70.38 | S106: 0.00 | T106: 0.00 | U106: 0.00
B107: 0.01 | C107: 9.99 | E107: 7.00 | F107: 5.00 | G107: 4.00 | H107: 3.00 | I107: 2.00 | J107: 0.00 | M107: 2,410.00 | N107: 2,419.99 | P107: 705.40 | Q107: 239.98 | R107: 74.38 | S107: 0.00 | T107: 0.00 | U107: 0.00
B108: 0.01 | C108: 9.99 | E108: 7.00 | F108: 5.00 | G108: 4.00 | H108: 3.00 | I108: 2.00 | J108: 0.00 | M108: 2,420.00 | N108: 2,429.99 | P108: 712.40 | Q108: 244.98 | R108: 78.38 | S108: 0.00 | T108: 0.00 | U108: 0.00
B109: 0.01 | C109: 9.99 | E109: 7.00 | F109: 5.00 | G109: 4.00 | H109: 3.00 | I109: 2.00 | J109: 0.00 | M109: 2,430.00 | N109: 2,439.99 | P109: 719.40 | Q109: 249.98 | R109: 82.38 | S109: 0.00 | T109: 0.00 | U109: 0.00
B110: 0.01 | C110: 9.99 | E110: 7.00 | F110: 5.00 | G110: 4.00 | H110: 3.00 | I110: 2.00 | J110: 0.00 | M110: 2,440.00 | N110: 2,449.99 | P110: 726.40 | Q110: 254.98 | R110: 86.38 | S110: 0.00 | T110: 0.00 | U110: 0.00
B111: 0.01 | C111: 9.99 | E111: 7.00 | F111: 5.00 | G111: 4.00 | H111: 3.00 | I111: 2.00 | J111: 0.00 | M111: 2,450.00 | N111: 2,459.99 | P111: 733.40 | Q111: 259.98 | R111: 90.38 | S111: 0.00 | T111: 0.00 | U111: 0.00
B112: 0.01 | C112: 9.99 | E112: 7.00 | F112: 5.00 | G112: 4.00 | H112: 3.00 | I112: 2.00 | J112: 0.00 | M112: 2,460.00 | N112: 2,469.99 | P112: 740.40 | Q112: 264.98 | R112: 94.38 | S112: 0.00 | T112: 0.00 | U112: 0.00
B113: 0.01 | C113: 9.99 | E113: 7.00 | F113: 5.00 | G113: 4.00 | H113: 3.00 | I113: 2.00 | J113: 0.00 | M113: 2,470.00 | N113: 2,479.99 | P113: 747.40 | Q113: 269.98 | R113: 98.38 | S113: 0.00 | T113: 0.00 | U113: 0.00
B114: 0.01 | C114: 9.99 | E114: 7.00 | F114: 5.00 | G114: 4.00 | H114: 3.00 | I114: 2.00 | J114: 0.00 | M114: 2,480.00 | N114: 2,489.99 | P114: 754.40 | Q114: 274.98 | R114: 102.38 | S114: 0.00 | T114: 0.00 | U114: 0.00
B115: 0.01 | C115: 9.99 | E115: 7.00 | F115: 5.00 | G115: 4.00 | H115: 3.00 | I115: 2.00 | J115: 0.00 | M115: 2,490.00 | N115: 2,499.99 | P115: 761.40 | Q115: 279.98 | R115: 106.38 | S115: 0.00 | T115: 0.00 | U115: 0.00
B116: 0.01 | C116: 9.99 | E116: 7.00 | F116: 5.00 | G116: 4.00 | H116: 3.00 | I116: 2.00 | J116: 0.00 | M116: 2,500.00 | N116: 2,509.99 | P116: 768.40 | Q116: 284.98 | R116: 110.38 | S116: 0.00 | T116: 0.00 | U116: 0.00
B117: 0.01 | C117: 9.99 | E117: 7.00 | F117: 5.00 | G117: 4.00 | H117: 3.00 | I117: 2.00 | J117: 0.00 | M117: 2,510.00 | N117: 2,519.99 | P117: 775.40 | Q117: 289.98 | R117: 114.38 | S117: 0.00 | T117: 0.00 | U117: 0.00
B118: 0.01 | C118: 9.99 | E118: 7.00 | F118: 5.00 | G118: 4.00 | H118: 3.00 | I118: 2.00 | J118: 0.00 | M118: 2,520.00 | N118: 2,529.99 | P118: 782.40 | Q118: 294.98 | R118: 118.38 | S118: 0.58 | T118: 0.00 | U118: 0.00
B119: 0.01 | C119: 9.99 | E119: 7.00 | F119: 5.00 | G119: 4.00 | H119: 3.00 | I119: 2.00 | J119: 0.00 | M119: 2,530.00 | N119: 2,539.99 | P119: 789.40 | Q119: 299.98 | R119: 122.38 | S119: 3.58 | T119: 0.00 | U119: 0.00
B120: 0.01 | C120: 9.99 | E120: 7.00 | F120: 5.00 | G120: 4.00 | H120: 3.00 | I120: 2.00 | J120: 0.00 | M120: 2,540.00 | N120: 2,549.99 | P120: 796.40 | Q120: 304.98 | R120: 126.38 | S120: 6.58 | T120: 0.00 | U120: 0.00
B121: 0.01 | C121: 9.99 | E121: 7.00 | F121: 5.00 | G121: 4.00 | H121: 3.00 | I121: 2.00 | J121: 0.00 | M121: 2,550.00 | N121: 2,559.99 | P121: 803.40 | Q121: 309.98 | R121: 130.38 | S121: 9.58 | T121: 0.00 | U121: 0.00
B122: 0.01 | C122: 9.99 | E122: 7.00 | F122: 5.00 | G122: 4.00 | H122: 3.00 | I122: 2.00 | J122: 0.00 | M122: 2,560.00 | N122: 2,569.99 | P122: 810.40 | Q122: 314.98 | R122: 134.38 | S122: 12.58 | T122: 0.00 | U122: 0.00
B123: 0.01 | C123: 9.99 | E123: 7.00 | F123: 5.00 | G123: 4.00 | H123: 3.00 | I123: 2.00 | J123: 0.00 | M123: 2,570.00 | N123: 2,579.99 | P123: 817.40 | Q123: 319.98 | R123: 138.38 | S123: 15.58 | T123: 0.00 | U123: 0.00
B124: 0.01 | C124: 9.99 | E124: 7.00 | F124: 5.00 | G124: 4.00 | H124: 3.00 | I124: 2.00 | J124: 0.00 | M124: 2,580.00 | N124: 2,589.99 | P124: 824.40 | Q124: 324.98 | R124: 142.38 | S124: 18.58 | T124: 0.00 | U124: 0.00
B125: 0.01 | C125: 9.99 | E125: 7.00 | F125: 5.00 | G125: 4.00 | H125: 3.00 | I125: 2.00 | J125: 0.00 | M125: 2,590.00 | N125: 2,599.99 | P125: 831.40 | Q125: 329.98 | R125: 146.38 | S125: 21.58 | T125: 0.00 | U125: 0.00
B126: 0.01 | C126: 9.99 | E126: 7.00 | F126: 5.00 | G126: 4.00 | H126: 3.00 | I126: 2.00 | J126: 0.00 | M126: 2,600.00 | N126: 2,609.99 | P126: 838.40 | Q126: 334.98 | R126: 150.38 | S126: 24.58 | T126: 0.00 | U126: 0.00
B127: 0.01 | C127: 9.99 | E127: 7.00 | F127: 5.00 | G127: 4.00 | H127: 3.00 | I127: 2.00 | J127: 0.79 | M127: 2,610.00 | N127: 2,619.99 | P127: 845.40 | Q127: 339.98 | R127: 154.38 | S127: 27.58 | T127: 0.00 | U127: 0.00
B128: 0.01 | C128: 9.99 | E128: 7.00 | F128: 5.00 | G128: 4.00 | H128: 3.00 | I128: 2.00 | J128: 1.00 | M128: 2,620.00 | N128: 2,629.99 | P128: 852.40 | Q128: 344.98 | R128: 158.38 | S128: 30.58 | T128: 0.00 | U128: 0.00
B129: 0.01 | C129: 9.99 | E129: 7.00 | F129: 5.00 | G129: 4.00 | H129: 3.00 | I129: 2.00 | J129: 1.00 | M129: 2,630.00 | N129: 2,639.99 | P129: 859.40 | Q129: 349.98 | R129: 162.38 | S129: 33.58 | T129: 0.00 | U129: 0.00
B130: 0.01 | C130: 9.99 | E130: 7.00 | F130: 5.00 | G130: 4.00 | H130: 3.00 | I130: 2.00 | J130: 1.00 | M130: 2,640.00 | N130: 2,649.99 | P130: 866.40 | Q130: 354.98 | R130: 166.38 | S130: 36.58 | T130: 0.00 | U130: 0.00
B131: 0.01 | C131: 9.99 | E131: 7.00 | F131: 5.00 | G131: 4.00 | H131: 3.00 | I131: 2.00 | J131: 1.00 | M131: 2,650.00 | N131: 2,659.99 | P131: 873.40 | Q131: 359.98 | R131: 170.38 | S131: 39.58 | T131: 0.00 | U131: 0.00
B132: 0.01 | C132: 9.99 | E132: 7.00 | F132: 5.00 | G132: 4.00 | H132: 3.00 | I132: 2.00 | J132: 1.00 | M132: 2,660.00 | N132: 2,669.99 | P132: 880.40 | Q132: 364.98 | R132: 174.38 | S132: 42.58 | T132: 0.00 | U132: 0.00
B133: 0.01 | C133: 9.99 | E133: 7.00 | F133: 5.00 | G133: 4.00 | H133: 3.00 | I133: 2.00 | J133: 1.00 | M133: 2,670.00 | N133: 2,679.99 | P133: 887.40 | Q133: 369.98 | R133: 178.38 | S133: 45.58 | T133: 0.00 | U133: 0.00
B134: 0.01 | C134: 9.99 | E134: 7.00 | F134: 5.00 | G134: 4.00 | H134: 3.00 | I134: 2.00 | J134: 1.00 | M134: 2,680.00 | N134: 2,689.99 | P134: 894.40 | Q134: 374.98 | R134: 182.38 | S134: 48.58 | T134: 0.00 | U134: 0.00
B135: 0.01 | C135: 9.99 | E135: 7.00 | F135: 5.00 | G135: 4.00 | H135: 3.00 | I135: 2.00 | J135: 1.00 | M135: 2,690.00 | N135: 2,699.99 | P135: 901.40 | Q135: 379.98 | R135: 186.38 | S135: 51.58 | T135: 0.00 | U135: 0.00
B136: 0.01 | C136: 9.99 | E136: 7.00 | F136: 5.00 | G136: 4.00 | H136: 3.00 | I136: 2.00 | J136: 1.00 | M136: 2,700.00 | N136: 2,709.99 | P136: 908.40 | Q136: 384.98 | R136: 190.38 | S136: 54.58 | T136: 0.00 | U136: 0.00
B137: 0.01 | C137: 9.99 | E137: 7.00 | F137: 5.00 | G137: 4.00 | H137: 3.00 | I137: 2.00 | J137: 1.00 | M137: 2,710.00 | N137: 2,719.99 | P137: 915.40 | Q137: 389.98 | R137: 194.38 | S137: 57.58 | T137: 0.00 | U137: 0.00
B138: 0.01 | C138: 9.99 | E138: 7.00 | F138: 5.00 | G138: 4.00 | H138: 3.00 | I138: 2.00 | J138: 1.00 | M138: 2,720.00 | N138: 2,729.99 | P138: 922.40 | Q138: 394.98 | R138: 198.38 | S138: 60.58 | T138: 0.00 | U138: 0.00
B139: 0.01 | C139: 9.99 | E139: 7.00 | F139: 5.00 | G139: 4.00 | H139: 3.00 | I139: 2.00 | J139: 1.00 | M139: 2,730.00 | N139: 2,739.99 | P139: 929.40 | Q139: 399.98 | R139: 202.38 | S139: 63.58 | T139: 0.00 | U139: 0.00
B140: 0.01 | C140: 9.99 | E140: 7.00 | F140: 5.00 | G140: 4.00 | H140: 3.00 | I140: 2.00 | J140: 1.00 | M140: 2,740.00 | N140: 2,749.99 | P140: 936.40 | Q140: 404.98 | R140: 206.38 | S140: 66.58 | T140: 0.00 | U140: 0.00
B141: 0.01 | C141: 9.99 | E141: 7.00 | F141: 5.00 | G141: 4.00 | H141: 3.00 | I141: 2.00 | J141: 1.00 | M141: 2,750.00 | N141: 2,759.99 | P141: 943.40 | Q141: 409.98 | R141: 210.38 | S141: 69.58 | T141: 0.00 | U141: 0.00
B142: 0.01 | C142: 9.99 | E142: 7.00 | F142: 5.00 | G142: 4.00 | H142: 3.00 | I142: 2.00 | J142: 1.00 | M142: 2,760.00 | N142: 2,769.99 | P142: 950.40 | Q142: 414.98 | R142: 214.38 | S142: 72.58 | T142: 0.00 | U142: 0.00
B143: 0.01 | C143: 9.99 | E143: 7.00 | F143: 5.00 | G143: 4.00 | H143: 3.00 | I143: 2.00 | J143: 1.00 | M143: 2,770.00 | N143: 2,779.99 | P143: 957.40 | Q143: 419.98 | R143: 218.38 | S143: 75.58 | T143: 0.00 | U143: 0.00
B144: 0.01 | C144: 9.99 | E144: 7.00 | F144: 5.00 | G144: 4.00 | H144: 3.00 | I144: 2.00 | J144: 1.00 | M144: 2,780.00 | N144: 2,789.99 | P144: 964.40 | Q144: 424.98 | R144: 222.38 | S144: 78.58 | T144: 0.00 | U144: 0.00
B145: 0.01 | C145: 9.99 | E145: 7.00 | F145: 5.00 | G145: 4.00 | H145: 3.00 | I145: 2.00 | J145: 1.00 | M145: 2,790.00 | N145: 2,799.99 | P145: 971.40 | Q145: 429.98 | R145: 226.38 | S145: 81.58 | T145: 0.00 | U145: 0.00
B146: 0.01 | C146: 9.99 | E146: 7.00 | F146: 5.00 | G146: 4.00 | H146: 3.00 | I146: 2.00 | J146: 1.00 | M146: 2,800.00 | N146: 2,809.99 | P146: 978.40 | Q146: 434.98 | R146: 230.38 | S146: 84.58 | T146: 0.00 | U146: 0.00
B147: 0.01 | C147: 9.99 | E147: 7.00 | F147: 5.00 | G147: 4.00 | H147: 3.00 | I147: 2.00 | J147: 1.00 | M147: 2,810.00 | N147: 2,819.99 | P147: 985.40 | Q147: 439.98 | R147: 234.38 | S147: 87.58 | T147: 0.00 | U147: 0.00
B148: 0.01 | C148: 9.99 | E148: 7.00 | F148: 5.00 | G148: 4.00 | H148: 3.00 | I148: 2.00 | J148: 1.00 | M148: 2,820.00 | N148: 2,829.99 | P148: 992.40 | Q148: 444.98 | R148: 238.38 | S148: 90.58 | T148: 1.58 | U148: 0.00
B149: 0.01 | C149: 9.99 | E149: 7.00 | F149: 5.00 | G149: 4.00 | H149: 3.00 | I149: 2.00 | J149: 1.00 | M149: 2,830.00 | N149: 2,839.99 | P149: 999.40 | Q149: 449.98 | R149: 242.38 | S149: 93.58 | T149: 3.58 | U149: 0.00
B150: 0.01 | C150: 9.99 | E150: 7.00 | F150: 5.00 | G150: 4.00 | H150: 3.00 | I150: 2.00 | J150: 1.00 | M150: 2,840.00 | N150: 2,849.99 | P150: 1,006.40 | Q150: 454.98 | R150: 246.38 | S150: 96.58 | T150: 5.58 | U150: 0.00
B151: 0.01 | C151: 9.99 | E151: 7.00 | F151: 5.00 | G151: 4.00 | H151: 3.00 | I151: 2.00 | J151: 1.00 | M151: 2,850.00 | N151: 2,859.99 | P151: 1,013.40 | Q151: 459.98 | R151: 250.38 | S151: 99.58 | T151: 7.58 | U151: 0.00
B152: 0.01 | C152: 9.99 | E152: 7.00 | F152: 5.00 | G152: 4.00 | H152: 3.00 | I152: 2.00 | J152: 1.00 | M152: 2,860.00 | N152: 2,869.99 | P152: 1,020.40 | Q152: 464.98 | R152: 254.38 | S152: 102.58 | T152: 9.58 | U152: 0.00
B153: 0.01 | C153: 9.99 | E153: 7.00 | F153: 5.00 | G153: 4.00 | H153: 3.00 | I153: 2.00 | J153: 1.00 | M153: 2,870.00 | N153: 2,879.99 | P153: 1,027.40 | Q153: 469.98 | R153: 258.38 | S153: 105.58 | T153: 11.58 | U153: 0.00
B154: 0.01 | C154: 9.99 | E154: 7.00 | F154: 5.00 | G154: 4.00 | H154: 3.00 | I154: 2.00 | J154: 1.00 | M154: 2,880.00 | N154: 2,889.99 | P154: 1,034.40 | Q154: 474.98 | R154: 262.38 | S154: 108.58 | T154: 13.58 | U154: 0.00
B155: 0.01 | C155: 9.99 | E155: 7.00 | F155: 5.00 | G155: 4.00 | H155: 3.00 | I155: 2.00 | J155: 1.00 | M155: 2,890.00 | N155: 2,899.99 | P155: 1,041.40 | Q155: 479.98 | R155: 266.38 | S155: 111.58 | T155: 15.58 | U155: 0.00
B156: 0.01 | C156: 9.99 | E156: 7.00 | F156: 5.00 | G156: 4.00 | H156: 3.00 | I156: 2.00 | J156: 1.00 | M156: 2,900.00 | N156: 2,909.99 | P156: 1,048.40 | Q156: 484.98 | R156: 270.38 | S156: 114.58 | T156: 17.58 | U156: 0.00
B157: 0.01 | C157: 9.99 | E157: 7.00 | F157: 5.00 | G157: 4.00 | H157: 3.00 | I157: 2.00 | J157: 1.00 | M157: 2,910.00 | N157: 2,919.99 | P157: 1,055.40 | Q157: 489.98 | R157: 274.38 | S157: 117.58 | T157: 19.58 | U157: 0.00
B158: 0.01 | C158: 9.99 | E158: 7.00 | F158: 5.00 | G158: 4.00 | H158: 3.00 | I158: 2.00 | J158: 1.00 | M158: 2,920.00 | N158: 2,929.99 | P158: 1,062.40 | Q158: 494.98 | R158: 278.38 | S158: 120.58 | T158: 21.58 | U158: 0.00
B159: 0.01 | C159: 9.99 | E159: 7.00 | F159: 5.00 | G159: 4.00 | H159: 3.00 | I159: 2.00 | J159: 1.00 | M159: 2,930.00 | N159: 2,939.99 | P159: 1,069.40 | Q159: 499.98 | R159: 282.38 | S159: 123.58 | T159: 23.58 | U159: 0.00
B160: 0.01 | C160: 9.99 | E160: 7.00 | F160: 5.00 | G160: 4.00 | H160: 3.00 | I160: 2.00 | J160: 1.00 | M160: 2,940.00 | N160: 2,949.99 | P160: 1,076.40 | Q160: 504.98 | R160: 286.38 | S160: 126.58 | T160: 25.58 | U160: 0.00
B161: 0.01 | C161: 9.99 | E161: 7.00 | F161: 5.00 | G161: 4.00 | H161: 3.00 | I161: 2.00 | J161: 1.00 | M161: 2,950.00 | N161: 2,959.99 | P161: 1,083.40 | Q161: 509.98 | R161: 290.38 | S161: 129.58 | T161: 27.58 | U161: 0.00
B162: 0.01 | C162: 9.99 | E162: 7.00 | F162: 5.00 | G162: 4.00 | H162: 3.00 | I162: 2.00 | J162: 1.00 | M162: 2,960.00 | N162: 2,969.99 | P162: 1,090.40 | Q162: 514.98 | R162: 294.38 | S162: 132.58 | T162: 29.58 | U162: 0.00
B163: 0.01 | C163: 9.99 | E163: 7.00 | F163: 5.00 | G163: 4.00 | H163: 3.00 | I163: 2.00 | J163: 1.00 | M163: 2,970.00 | N163: 2,979.99 | P163: 1,097.40 | Q163: 519.98 | R163: 298.38 | S163: 135.58 | T163: 31.58 | U163: 0.00
B164: 0.01 | C164: 9.99 | E164: 7.00 | F164: 5.00 | G164: 4.00 | H164: 3.00 | I164: 2.00 | J164: 1.00 | M164: 2,980.00 | N164: 2,989.99 | P164: 1,104.40 | Q164: 524.98 | R164: 302.38 | S164: 138.58 | T164: 33.58 | U164: 0.00
B165: 0.01 | C165: 9.99 | E165: 7.00 | F165: 5.00 | G165: 4.00 | H165: 3.00 | I165: 2.00 | J165: 1.00 | M165: 2,990.00 | N165: 2,999.99 | P165: 1,111.40 | Q165: 529.98 | R165: 306.38 | S165: 141.58 | T165: 35.58 | U165: 0.00
B166: 0.01 | C166: 9.99 | E166: 7.00 | F166: 5.00 | G166: 4.00 | H166: 3.00 | I166: 2.00 | J166: 1.00 | M166: 3,000.00 | N166: 3,009.99 | P166: 1,118.40 | Q166: 534.98 | R166: 310.38 | S166: 144.58 | T166: 37.58 | U166: 0.00
B167: 0.01 | C167: 9.99 | E167: 7.00 | F167: 5.00 | G167: 4.00 | H167: 3.00 | I167: 2.00 | J167: 1.00 | M167: 3,010.00 | N167: 3,019.99 | P167: 1,125.40 | Q167: 539.98 | R167: 314.38 | S167: 147.58 | T167: 39.58 | U167: 0.00
B168: 0.01 | C168: 9.99 | E168: 7.00 | F168: 5.00 | G168: 4.00 | H168: 3.00 | I168: 2.00 | J168: 1.00 | M168: 3,020.00 | N168: 3,029.99 | P168: 1,132.40 | Q168: 544.98 | R168: 318.38 | S168: 150.58 | T168: 41.58 | U168: 0.00
B169: 0.01 | C169: 9.99 | E169: 7.00 | F169: 5.00 | G169: 4.00 | H169: 3.00 | I169: 2.00 | J169: 1.00 | M169: 3,030.00 | N169: 3,039.99 | P169: 1,139.40 | Q169: 549.98 | R169: 322.38 | S169: 153.58 | T169: 43.58 | U169: 0.00
B170: 0.01 | C170: 9.99 | E170: 7.00 | F170: 5.00 | G170: 4.00 | H170: 3.00 | I170: 2.00 | J170: 1.00 | M170: 3,040.00 | N170: 3,049.99 | P170: 1,146.40 | Q170: 554.98 | R170: 326.38 | S170: 156.58 | T170: 45.58 | U170: 0.00
B171: 0.01 | C171: 9.99 | E171: 7.00 | F171: 5.00 | G171: 4.00 | H171: 3.00 | I171: 2.00 | J171: 1.00 | M171: 3,050.00 | N171: 3,059.99 | P171: 1,153.40 | Q171: 559.98 | R171: 330.38 | S171: 159.58 | T171: 47.58 | U171: 0.00
B172: 0.01 | C172: 9.99 | E172: 7.00 | F172: 5.00 | G172: 4.00 | H172: 3.00 | I172: 2.00 | J172: 1.00 | M172: 3,060.00 | N172: 3,069.99 | P172: 1,160.40 | Q172: 564.98 | R172: 334.38 | S172: 162.58 | T172: 49.58 | U172: 0.00
B173: 0.01 | C173: 9.99 | E173: 7.00 | F173: 5.00 | G173: 4.00 | H173: 3.00 | I173: 2.00 | J173: 1.00 | M173: 3,070.00 | N173: 3,079.99 | P173: 1,167.40 | Q173: 569.98 | R173: 338.38 | S173: 165.58 | T173: 51.58 | U173: 0.00
B174: 0.01 | C174: 9.99 | E174: 7.00 | F174: 5.00 | G174: 4.00 | H174: 3.00 | I174: 2.00 | J174: 1.00 | M174: 3,080.00 | N174: 3,089.99 | P174: 1,174.40 | Q174: 574.98 | R174: 342.38 | S174: 168.58 | T174: 53.58 | U174: 0.00
B175: 0.01 | C175: 9.99 | E175: 7.00 | F175: 5.00 | G175: 4.00 | H175: 3.00 | I175: 2.00 | J175: 1.00 | M175: 3,090.00 | N175: 3,099.99 | P175: 1,181.40 | Q175: 579.98 | R175: 346.38 | S175: 171.58 | T175: 55.58 | U175: 0.00
B176: 0.01 | C176: 9.99 | E176: 7.00 | F176: 5.00 | G176: 4.00 | H176: 3.00 | I176: 2.00 | J176: 1.00 | M176: 3,100.00 | N176: 3,109.99 | P176: 1,188.40 | Q176: 584.98 | R176: 350.38 | S176: 174.58 | T176: 57.58 | U176: 0.00
B177: 0.01 | C177: 9.99 | E177: 7.00 | F177: 5.00 | G177: 4.00 | H177: 3.00 | I177: 2.00 | J177: 1.00 | M177: 3,110.00 | N177: 3,119.99 | P177: 1,195.40 | Q177: 589.98 | R177: 354.38 | S177: 177.58 | T177: 59.58 | U177: 0.39
B178: 0.01 | C178: 9.99 | E178: 7.00 | F178: 5.00 | G178: 4.00 | H178: 3.00 | I178: 2.00 | J178: 1.00 | M178: 3,120.00 | N178: 3,129.99 | P178: 1,202.40 | Q178: 594.98 | R178: 358.38 | S178: 180.58 | T178: 61.58 | U178: 1.39
B179: 0.01 | C179: 9.99 | E179: 7.00 | F179: 5.00 | G179: 4.00 | H179: 3.00 | I179: 2.00 | J179: 1.00 | M179: 3,130.00 | N179: 3,139.99 | P179: 1,209.40 | Q179: 599.98 | R179: 362.38 | S179: 183.58 | T179: 63.58 | U179: 2.39
B180: 0.01 | C180: 9.99 | E180: 7.00 | F180: 5.00 | G180: 4.00 | H180: 3.00 | I180: 2.00 | J180: 1.00 | M180: 3,140.00 | N180: 3,149.99 | P180: 1,216.40 | Q180: 604.98 | R180: 366.38 | S180: 186.58 | T180: 65.58 | U180: 3.39
B181: 0.01 | C181: 9.99 | E181: 7.00 | F181: 5.00 | G181: 4.00 | H181: 3.00 | I181: 2.00 | J181: 1.00 | M181: 3,150.00 | N181: 3,159.99 | P181: 1,223.40 | Q181: 609.98 | R181: 370.38 | S181: 189.58 | T181: 67.58 | U181: 4.39
B182: 0.01 | C182: 9.99 | E182: 7.00 | F182: 5.00 | G182: 4.00 | H182: 3.00 | I182: 2.00 | J182: 1.00 | M182: 3,160.00 | N182: 3,169.99 | P182: 1,230.40 | Q182: 614.98 | R182: 374.38 | S182: 192.58 | T182: 69.58 | U182: 5.39
B183: 0.01 | C183: 9.99 | E183: 7.00 | F183: 5.00 | G183: 4.00 | H183: 3.00 | I183: 2.00 | J183: 1.00 | M183: 3,170.00 | N183: 3,179.99 | P183: 1,237.40 | Q183: 619.98 | R183: 378.38 | S183: 195.58 | T183: 71.58 | U183: 6.39
B184: 0.01 | C184: 9.99 | E184: 7.00 | F184: 5.00 | G184: 4.00 | H184: 3.00 | I184: 2.00 | J184: 1.00 | M184: 3,180.00 | N184: 3,189.99 | P184: 1,244.40 | Q184: 624.98 | R184: 382.38 | S184: 198.58 | T184: 73.58 | U184: 7.39
B185: 0.01 | C185: 9.99 | E185: 7.00 | F185: 5.00 | G185: 4.00 | H185: 3.00 | I185: 2.00 | J185: 1.00 | M185: 3,190.00 | N185: 3,199.99 | P185: 1,251.40 | Q185: 629.98 | R185: 386.38 | S185: 201.58 | T185: 75.58 | U185: 8.39
B186: 0.01 | C186: 9.99 | E186: 7.00 | F186: 5.00 | G186: 4.00 | H186: 3.00 | I186: 2.00 | J186: 1.00 | M186: 3,200.00 | N186: 3,209.99 | P186: 1,258.40 | Q186: 634.98 | R186: 390.38 | S186: 204.58 | T186: 77.58 | U186: 9.39
B187: 0.01 | C187: 9.99 | E187: 7.00 | F187: 5.00 | G187: 4.00 | H187: 3.00 | I187: 2.00 | J187: 1.00 | M187: 3,210.00 | N187: 3,219.99 | P187: 1,265.40 | Q187: 639.98 | R187: 394.38 | S187: 207.58 | T187: 79.58 | U187: 10.39
B188: 0.01 | C188: 9.99 | E188: 7.00 | F188: 5.00 | G188: 4.00 | H188: 3.00 | I188: 2.00 | J188: 1.00 | M188: 3,220.00 | N188: 3,229.99 | P188: 1,272.40 | Q188: 644.98 | R188: 398.38 | S188: 210.58 | T188: 81.58 | U188: 11.39
B189: 0.01 | C189: 9.99 | E189: 7.00 | F189: 5.00 | G189: 4.00 | H189: 3.00 | I189: 2.00 | J189: 1.00 | M189: 3,230.00 | N189: 3,239.99 | P189: 1,279.40 | Q189: 649.98 | R189: 402.38 | S189: 213.58 | T189: 83.58 | U189: 12.39
B190: 0.01 | C190: 9.99 | E190: 7.00 | F190: 5.00 | G190: 4.00 | H190: 3.00 | I190: 2.00 | J190: 1.00 | M190: 3,240.00 | N190: 3,249.99 | P190: 1,286.40 | Q190: 654.98 | R190: 406.38 | S190: 216.58 | T190: 85.58 | U190: 13.39
B191: 0.01 | C191: 9.99 | E191: 7.00 | F191: 5.00 | G191: 4.00 | H191: 3.00 | I191: 2.00 | J191: 1.00 | M191: 3,250.00 | N191: 3,259.99 | P191: 1,293.40 | Q191: 659.98 | R191: 410.38 | S191: 219.58 | T191: 87.58 | U191: 14.39
B192: 0.01 | C192: 9.99 | E192: 7.00 | F192: 5.00 | G192: 4.00 | H192: 3.00 | I192: 2.00 | J192: 1.00 | M192: 3,260.00 | N192: 3,269.99 | P192: 1,300.40 | Q192: 664.98 | R192: 414.38 | S192: 222.58 | T192: 89.58 | U192: 15.39
B193: 0.01 | C193: 9.99 | E193: 7.00 | F193: 5.00 | G193: 4.00 | H193: 3.00 | I193: 2.00 | J193: 1.00 | M193: 3,270.00 | N193: 3,279.99 | P193: 1,307.40 | Q193: 669.98 | R193: 418.38 | S193: 225.58 | T193: 91.58 | U193: 16.39
B194: 0.01 | C194: 9.99 | E194: 7.00 | F194: 5.00 | G194: 4.00 | H194: 3.00 | I194: 2.00 | J194: 1.00 | M194: 3,280.00 | N194: 3,289.99 | P194: 1,314.40 | Q194: 674.98 | R194: 422.38 | S194: 228.58 | T194: 93.58 | U194: 17.39
B195: 0.01 | C195: 9.99 | E195: 7.00 | F195: 5.00 | G195: 4.00 | H195: 3.00 | I195: 2.00 | J195: 1.00 | M195: 3,290.00 | N195: 3,299.99 | P195: 1,321.40 | Q195: 679.98 | R195: 426.38 | S195: 231.58 | T195: 95.58 | U195: 18.39
B196: 0.01 | C196: 9.99 | E196: 7.00 | F196: 5.00 | G196: 4.00 | H196: 3.00 | I196: 2.00 | J196: 1.00 | M196: 3,300.00 | N196: 3,309.99 | P196: 1,328.40 | Q196: 684.98 | R196: 430.38 | S196: 234.58 | T196: 97.58 | U196: 19.39
B197: 0.01 | C197: 9.99 | E197: 7.00 | F197: 5.00 | G197: 4.00 | H197: 3.00 | I197: 2.00 | J197: 1.00 | M197: 3,310.00 | N197: 3,319.99 | P197: 1,335.40 | Q197: 689.98 | R197: 434.38 | S197: 237.58 | T197: 99.58 | U197: 20.39
B198: 0.01 | C198: 9.99 | E198: 7.00 | F198: 5.00 | G198: 4.00 | H198: 3.00 | I198: 2.00 | J198: 1.00 | M198: 3,320.00 | N198: 3,329.99 | P198: 1,342.40 | Q198: 694.98 | R198: 438.38 | S198: 240.58 | T198: 101.58 | U198: 21.39
B199: 0.01 | C199: 9.99 | E199: 7.00 | F199: 5.00 | G199: 4.00 | H199: 3.00 | I199: 2.00 | J199: 1.00 | M199: 3,330.00 | N199: 3,339.99 | P199: 1,349.40 | Q199: 699.98 | R199: 442.38 | S199: 243.58 | T199: 103.58 | U199: 22.39
B200: 0.01 | C200: 9.99 | E200: 7.00 | F200: 5.00 | G200: 4.00 | H200: 3.00 | I200: 2.00 | J200: 1.00 | M200: 3,340.00 | N200: 3,349.99 | P200: 1,356.40 | Q200: 704.98 | R200: 446.38 | S200: 246.58 | T200: 105.58 | U200: 23.39
M201: 3,350.00 | N201: 3,359.99 | P201: 1,363.40 | Q201: 709.98 | R201: 450.38 | S201: 249.58 | T201: 107.58 | U201: 24.39
M202: 3,360.00 | N202: 3,369.99 | P202: 1,370.40 | Q202: 714.98 | R202: 454.38 | S202: 252.58 | T202: 109.58 | U202: 25.39
... 94 more rows

Sheet Tabelle pfändbarer Beträge 2022 (hidden)
E3: Pfändbarer Betrag bei Unterhaltspflicht für ... Personen | M3: Nettolohn | P3: Pfändbarer Betrag bei Unterhaltspflicht für ... Personen (gültig vom 01.07.2022 bis 30.06.2023)
B4: Nettolohn | E4: 0 | F4: 1 | G4: 2 | H4: 3 | I4: 4 | J4: 5 | M4: monatlich in Euro | P4: 0 | Q4: 1 | R4: 2 | S4: 3 | T4: 4 | U4: 5
B5: Add. Links | C5: Add. Rechts | J5: und mehr | M5: von | N5: bis | U5: und mehr
B6: 989.99 | E6: 0.00 | F6: 0.00 | G6: 0.00 | H6: 0.00 | I6: 0.00 | J6: 0.00 | N6: 1,339.99 | P6: 0.00 | Q6: 0.00 | R6: 0.00 | S6: 0.00 | T6: 0.00 | U6: 0.00
B7: 0.01 | C7: 9.99 | E7: 3.40 | F7: 0.00 | G7: 0.00 | H7: 0.00 | I7: 0.00 | J7: 0.00 | M7: 1,340.00 | N7: =10+N6 -> 1,349.99 | P7: 6.89 | Q7: 0.00 | R7: 0.00 | S7: 0.00 | T7: 0.00 | U7: 0.00
B8: 0.01 | C8: 9.99 | E8: 7.00 | F8: 0.00 | G8: 0.00 | H8: 0.00 | I8: 0.00 | J8: 0.00 | M8: =10+M7 -> 1,350.00 | N8: =10+N7 -> 1,359.99 | P8: 13.89 | Q8: 0.00 | R8: 0.00 | S8: 0.00 | T8: 0.00 | U8: 0.00
B9: 0.01 | C9: 9.99 | E9: 7.00 | F9: 0.00 | G9: 0.00 | H9: 0.00 | I9: 0.00 | J9: 0.00 | M9: =10+M8 -> 1,360.00 | N9: 1,369.99 | P9: 20.89 | Q9: 0.00 | R9: 0.00 | S9: 0.00 | T9: 0.00 | U9: 0.00
B10: 0.01 | C10: 9.99 | E10: 7.00 | F10: 0.00 | G10: 0.00 | H10: 0.00 | I10: 0.00 | J10: 0.00 | M10: 1,370.00 | N10: 1,379.99 | P10: 27.89 | Q10: 0.00 | R10: 0.00 | S10: 0.00 | T10: 0.00 | U10: 0.00
B11: 0.01 | C11: 9.99 | E11: 7.00 | F11: 0.00 | G11: 0.00 | H11: 0.00 | I11: 0.00 | J11: 0.00 | M11: 1,380.00 | N11: 1,389.99 | P11: 34.89 | Q11: 0.00 | R11: 0.00 | S11: 0.00 | T11: 0.00 | U11: 0.00
B12: 0.01 | C12: 9.99 | E12: 7.00 | F12: 0.00 | G12: 0.00 | H12: 0.00 | I12: 0.00 | J12: 0.00 | M12: 1,390.00 | N12: 1,399.99 | P12: 41.89 | Q12: 0.00 | R12: 0.00 | S12: 0.00 | T12: 0.00 | U12: 0.00
B13: 0.01 | C13: 9.99 | E13: 7.00 | F13: 0.00 | G13: 0.00 | H13: 0.00 | I13: 0.00 | J13: 0.00 | M13: 1,400.00 | N13: 1,409.99 | P13: 48.89 | Q13: 0.00 | R13: 0.00 | S13: 0.00 | T13: 0.00 | U13: 0.00
B14: 0.01 | C14: 9.99 | E14: 7.00 | F14: 0.00 | G14: 0.00 | H14: 0.00 | I14: 0.00 | J14: 0.00 | M14: 1,410.00 | N14: 1,419.99 | P14: 55.89 | Q14: 0.00 | R14: 0.00 | S14: 0.00 | T14: 0.00 | U14: 0.00
B15: 0.01 | C15: 9.99 | E15: 7.00 | F15: 0.00 | G15: 0.00 | H15: 0.00 | I15: 0.00 | J15: 0.00 | M15: 1,420.00 | N15: 1,429.99 | P15: 62.89 | Q15: 0.00 | R15: 0.00 | S15: 0.00 | T15: 0.00 | U15: 0.00
B16: 0.01 | C16: 9.99 | E16: 7.00 | F16: 0.00 | G16: 0.00 | H16: 0.00 | I16: 0.00 | J16: 0.00 | M16: 1,430.00 | N16: 1,439.99 | P16: 69.89 | Q16: 0.00 | R16: 0.00 | S16: 0.00 | T16: 0.00 | U16: 0.00
B17: 0.01 | C17: 9.99 | E17: 7.00 | F17: 0.00 | G17: 0.00 | H17: 0.00 | I17: 0.00 | J17: 0.00 | M17: 1,440.00 | N17: 1,449.99 | P17: 76.89 | Q17: 0.00 | R17: 0.00 | S17: 0.00 | T17: 0.00 | U17: 0.00
B18: 0.01 | C18: 9.99 | E18: 7.00 | F18: 0.00 | G18: 0.00 | H18: 0.00 | I18: 0.00 | J18: 0.00 | M18: 1,450.00 | N18: 1,459.99 | P18: 83.89 | Q18: 0.00 | R18: 0.00 | S18: 0.00 | T18: 0.00 | U18: 0.00
B19: 0.01 | C19: 9.99 | E19: 7.00 | F19: 0.00 | G19: 0.00 | H19: 0.00 | I19: 0.00 | J19: 0.00 | M19: 1,460.00 | N19: 1,469.99 | P19: 90.89 | Q19: 0.00 | R19: 0.00 | S19: 0.00 | T19: 0.00 | U19: 0.00
B20: 0.01 | C20: 9.99 | E20: 7.00 | F20: 0.00 | G20: 0.00 | H20: 0.00 | I20: 0.00 | J20: 0.00 | M20: 1,470.00 | N20: 1,479.99 | P20: 97.89 | Q20: 0.00 | R20: 0.00 | S20: 0.00 | T20: 0.00 | U20: 0.00
B21: 0.01 | C21: 9.99 | E21: 7.00 | F21: 0.00 | G21: 0.00 | H21: 0.00 | I21: 0.00 | J21: 0.00 | M21: 1,480.00 | N21: 1,489.99 | P21: 104.89 | Q21: 0.00 | R21: 0.00 | S21: 0.00 | T21: 0.00 | U21: 0.00
B22: 0.01 | C22: 9.99 | E22: 7.00 | F22: 0.00 | G22: 0.00 | H22: 0.00 | I22: 0.00 | J22: 0.00 | M22: 1,490.00 | N22: 1,499.99 | P22: 111.89 | Q22: 0.00 | R22: 0.00 | S22: 0.00 | T22: 0.00 | U22: 0.00
B23: 0.01 | C23: 9.99 | E23: 7.00 | F23: 0.00 | G23: 0.00 | H23: 0.00 | I23: 0.00 | J23: 0.00 | M23: 1,500.00 | N23: 1,509.99 | P23: 118.89 | Q23: 0.00 | R23: 0.00 | S23: 0.00 | T23: 0.00 | U23: 0.00
B24: 0.01 | C24: 9.99 | E24: 7.00 | F24: 0.00 | G24: 0.00 | H24: 0.00 | I24: 0.00 | J24: 0.00 | M24: 1,510.00 | N24: 1,519.99 | P24: 125.89 | Q24: 0.00 | R24: 0.00 | S24: 0.00 | T24: 0.00 | U24: 0.00
B25: 0.01 | C25: 9.99 | E25: 7.00 | F25: 0.00 | G25: 0.00 | H25: 0.00 | I25: 0.00 | J25: 0.00 | M25: 1,520.00 | N25: 1,529.99 | P25: 132.89 | Q25: 0.00 | R25: 0.00 | S25: 0.00 | T25: 0.00 | U25: 0.00
B26: 0.01 | C26: 9.99 | E26: 7.00 | F26: 0.00 | G26: 0.00 | H26: 0.00 | I26: 0.00 | J26: 0.00 | M26: 1,530.00 | N26: 1,539.99 | P26: 139.89 | Q26: 0.00 | R26: 0.00 | S26: 0.00 | T26: 0.00 | U26: 0.00
B27: 0.01 | C27: 9.99 | E27: 7.00 | F27: 0.00 | G27: 0.00 | H27: 0.00 | I27: 0.00 | J27: 0.00 | M27: 1,540.00 | N27: 1,549.99 | P27: 146.89 | Q27: 0.00 | R27: 0.00 | S27: 0.00 | T27: 0.00 | U27: 0.00
B28: 0.01 | C28: 9.99 | E28: 7.00 | F28: 0.00 | G28: 0.00 | H28: 0.00 | I28: 0.00 | J28: 0.00 | M28: 1,550.00 | N28: 1,559.99 | P28: 153.89 | Q28: 0.00 | R28: 0.00 | S28: 0.00 | T28: 0.00 | U28: 0.00
B29: 0.01 | C29: 9.99 | E29: 7.00 | F29: 0.00 | G29: 0.00 | H29: 0.00 | I29: 0.00 | J29: 0.00 | M29: 1,560.00 | N29: 1,569.99 | P29: 160.89 | Q29: 0.00 | R29: 0.00 | S29: 0.00 | T29: 0.00 | U29: 0.00
B30: 0.01 | C30: 9.99 | E30: 7.00 | F30: 0.00 | G30: 0.00 | H30: 0.00 | I30: 0.00 | J30: 0.00 | M30: 1,570.00 | N30: 1,579.99 | P30: 167.89 | Q30: 0.00 | R30: 0.00 | S30: 0.00 | T30: 0.00 | U30: 0.00
B31: 0.01 | C31: 9.99 | E31: 7.00 | F31: 0.00 | G31: 0.00 | H31: 0.00 | I31: 0.00 | J31: 0.00 | M31: 1,580.00 | N31: 1,589.99 | P31: 174.89 | Q31: 0.00 | R31: 0.00 | S31: 0.00 | T31: 0.00 | U31: 0.00
B32: 0.01 | C32: 9.99 | E32: 7.00 | F32: 0.00 | G32: 0.00 | H32: 0.00 | I32: 0.00 | J32: 0.00 | M32: 1,590.00 | N32: 1,599.99 | P32: 181.89 | Q32: 0.00 | R32: 0.00 | S32: 0.00 | T32: 0.00 | U32: 0.00
B33: 0.01 | C33: 9.99 | E33: 7.00 | F33: 0.00 | G33: 0.00 | H33: 0.00 | I33: 0.00 | J33: 0.00 | M33: 1,600.00 | N33: 1,609.99 | P33: 188.89 | Q33: 0.00 | R33: 0.00 | S33: 0.00 | T33: 0.00 | U33: 0.00
B34: 0.01 | C34: 9.99 | E34: 7.00 | F34: 0.00 | G34: 0.00 | H34: 0.00 | I34: 0.00 | J34: 0.00 | M34: 1,610.00 | N34: 1,619.99 | P34: 195.89 | Q34: 0.00 | R34: 0.00 | S34: 0.00 | T34: 0.00 | U34: 0.00
B35: 0.01 | C35: 9.99 | E35: 7.00 | F35: 0.00 | G35: 0.00 | H35: 0.00 | I35: 0.00 | J35: 0.00 | M35: 1,620.00 | N35: 1,629.99 | P35: 202.89 | Q35: 0.00 | R35: 0.00 | S35: 0.00 | T35: 0.00 | U35: 0.00
B36: 0.01 | C36: 9.99 | E36: 7.00 | F36: 0.00 | G36: 0.00 | H36: 0.00 | I36: 0.00 | J36: 0.00 | M36: 1,630.00 | N36: 1,639.99 | P36: 209.89 | Q36: 0.00 | R36: 0.00 | S36: 0.00 | T36: 0.00 | U36: 0.00
B37: 0.01 | C37: 9.99 | E37: 7.00 | F37: 0.00 | G37: 0.00 | H37: 0.00 | I37: 0.00 | J37: 0.00 | M37: 1,640.00 | N37: 1,649.99 | P37: 216.89 | Q37: 0.00 | R37: 0.00 | S37: 0.00 | T37: 0.00 | U37: 0.00
B38: 0.01 | C38: 9.99 | E38: 7.00 | F38: 0.00 | G38: 0.00 | H38: 0.00 | I38: 0.00 | J38: 0.00 | M38: 1,650.00 | N38: 1,659.99 | P38: 223.89 | Q38: 0.00 | R38: 0.00 | S38: 0.00 | T38: 0.00 | U38: 0.00
B39: 0.01 | C39: 9.99 | E39: 7.00 | F39: 0.00 | G39: 0.00 | H39: 0.00 | I39: 0.00 | J39: 0.00 | M39: 1,660.00 | N39: 1,669.99 | P39: 230.89 | Q39: 0.00 | R39: 0.00 | S39: 0.00 | T39: 0.00 | U39: 0.00
B40: 0.01 | C40: 9.99 | E40: 7.00 | F40: 0.00 | G40: 0.00 | H40: 0.00 | I40: 0.00 | J40: 0.00 | M40: 1,670.00 | N40: 1,679.99 | P40: 237.89 | Q40: 0.00 | R40: 0.00 | S40: 0.00 | T40: 0.00 | U40: 0.00
B41: 0.01 | C41: 9.99 | E41: 7.00 | F41: 0.00 | G41: 0.00 | H41: 0.00 | I41: 0.00 | J41: 0.00 | M41: 1,680.00 | N41: 1,689.99 | P41: 244.89 | Q41: 0.00 | R41: 0.00 | S41: 0.00 | T41: 0.00 | U41: 0.00
B42: 0.01 | C42: 9.99 | E42: 7.00 | F42: 0.00 | G42: 0.00 | H42: 0.00 | I42: 0.00 | J42: 0.00 | M42: 1,690.00 | N42: 1,699.99 | P42: 251.89 | Q42: 0.00 | R42: 0.00 | S42: 0.00 | T42: 0.00 | U42: 0.00
B43: 0.01 | C43: 9.99 | E43: 7.00 | F43: 0.00 | G43: 0.00 | H43: 0.00 | I43: 0.00 | J43: 0.00 | M43: 1,700.00 | N43: 1,709.99 | P43: 258.89 | Q43: 0.00 | R43: 0.00 | S43: 0.00 | T43: 0.00 | U43: 0.00
B44: 0.01 | C44: 9.99 | E44: 7.00 | F44: 2.05 | G44: 0.00 | H44: 0.00 | I44: 0.00 | J44: 0.00 | M44: 1,710.00 | N44: 1,719.99 | P44: 265.89 | Q44: 0.00 | R44: 0.00 | S44: 0.00 | T44: 0.00 | U44: 0.00
B45: 0.01 | C45: 9.99 | E45: 7.00 | F45: 5.00 | G45: 0.00 | H45: 0.00 | I45: 0.00 | J45: 0.00 | M45: 1,720.00 | N45: 1,729.99 | P45: 272.89 | Q45: 0.00 | R45: 0.00 | S45: 0.00 | T45: 0.00 | U45: 0.00
B46: 0.01 | C46: 9.99 | E46: 7.00 | F46: 5.00 | G46: 0.00 | H46: 0.00 | I46: 0.00 | J46: 0.00 | M46: 1,730.00 | N46: 1,739.99 | P46: 279.89 | Q46: 0.00 | R46: 0.00 | S46: 0.00 | T46: 0.00 | U46: 0.00
B47: 0.01 | C47: 9.99 | E47: 7.00 | F47: 5.00 | G47: 0.00 | H47: 0.00 | I47: 0.00 | J47: 0.00 | M47: 1,740.00 | N47: 1,749.99 | P47: 286.89 | Q47: 0.00 | R47: 0.00 | S47: 0.00 | T47: 0.00 | U47: 0.00
B48: 0.01 | C48: 9.99 | E48: 7.00 | F48: 5.00 | G48: 0.00 | H48: 0.00 | I48: 0.00 | J48: 0.00 | M48: 1,750.00 | N48: 1,759.99 | P48: 293.89 | Q48: 0.00 | R48: 0.00 | S48: 0.00 | T48: 0.00 | U48: 0.00
B49: 0.01 | C49: 9.99 | E49: 7.00 | F49: 5.00 | G49: 0.00 | H49: 0.00 | I49: 0.00 | J49: 0.00 | M49: 1,760.00 | N49: 1,769.99 | P49: 300.89 | Q49: 0.00 | R49: 0.00 | S49: 0.00 | T49: 0.00 | U49: 0.00
B50: 0.01 | C50: 9.99 | E50: 7.00 | F50: 5.00 | G50: 0.00 | H50: 0.00 | I50: 0.00 | J50: 0.00 | M50: 1,770.00 | N50: 1,779.99 | P50: 307.89 | Q50: 0.00 | R50: 0.00 | S50: 0.00 | T50: 0.00 | U50: 0.00
B51: 0.01 | C51: 9.99 | E51: 7.00 | F51: 5.00 | G51: 0.00 | H51: 0.00 | I51: 0.00 | J51: 0.00 | M51: 1,780.00 | N51: 1,789.99 | P51: 314.89 | Q51: 0.00 | R51: 0.00 | S51: 0.00 | T51: 0.00 | U51: 0.00
B52: 0.01 | C52: 9.99 | E52: 7.00 | F52: 5.00 | G52: 0.00 | H52: 0.00 | I52: 0.00 | J52: 0.00 | M52: 1,790.00 | N52: 1,799.99 | P52: 321.89 | Q52: 0.00 | R52: 0.00 | S52: 0.00 | T52: 0.00 | U52: 0.00
B53: 0.01 | C53: 9.99 | E53: 7.00 | F53: 5.00 | G53: 0.00 | H53: 0.00 | I53: 0.00 | J53: 0.00 | M53: 1,800.00 | N53: 1,809.99 | P53: 328.89 | Q53: 0.00 | R53: 0.00 | S53: 0.00 | T53: 0.00 | U53: 0.00
B54: 0.01 | C54: 9.99 | E54: 7.00 | F54: 5.00 | G54: 0.00 | H54: 0.00 | I54: 0.00 | J54: 0.00 | M54: 1,810.00 | N54: 1,819.99 | P54: 335.89 | Q54: 0.00 | R54: 0.00 | S54: 0.00 | T54: 0.00 | U54: 0.00
B55: 0.01 | C55: 9.99 | E55: 7.00 | F55: 5.00 | G55: 0.00 | H55: 0.00 | I55: 0.00 | J55: 0.00 | M55: 1,820.00 | N55: 1,829.99 | P55: 342.89 | Q55: 0.00 | R55: 0.00 | S55: 0.00 | T55: 0.00 | U55: 0.00
B56: 0.01 | C56: 9.99 | E56: 7.00 | F56: 5.00 | G56: 0.00 | H56: 0.00 | I56: 0.00 | J56: 0.00 | M56: 1,830.00 | N56: 1,839.99 | P56: 349.89 | Q56: 0.00 | R56: 0.00 | S56: 0.00 | T56: 0.00 | U56: 0.00
B57: 0.01 | C57: 9.99 | E57: 7.00 | F57: 5.00 | G57: 0.00 | H57: 0.00 | I57: 0.00 | J57: 0.00 | M57: 1,840.00 | N57: 1,849.99 | P57: 356.89 | Q57: 4.61 | R57: 0.00 | S57: 0.00 | T57: 0.00 | U57: 0.00
B58: 0.01 | C58: 9.99 | E58: 7.00 | F58: 5.00 | G58: 0.00 | H58: 0.00 | I58: 0.00 | J58: 0.00 | M58: 1,850.00 | N58: 1,859.99 | P58: 363.89 | Q58: 9.61 | R58: 0.00 | S58: 0.00 | T58: 0.00 | U58: 0.00
B59: 0.01 | C59: 9.99 | E59: 7.00 | F59: 5.00 | G59: 0.00 | H59: 0.00 | I59: 0.00 | J59: 0.00 | M59: 1,860.00 | N59: 1,869.99 | P59: 370.89 | Q59: 14.61 | R59: 0.00 | S59: 0.00 | T59: 0.00 | U59: 0.00
B60: 0.01 | C60: 9.99 | E60: 7.00 | F60: 5.00 | G60: 0.00 | H60: 0.00 | I60: 0.00 | J60: 0.00 | M60: 1,870.00 | N60: 1,879.99 | P60: 377.89 | Q60: 19.61 | R60: 0.00 | S60: 0.00 | T60: 0.00 | U60: 0.00
B61: 0.01 | C61: 9.99 | E61: 7.00 | F61: 5.00 | G61: 0.00 | H61: 0.00 | I61: 0.00 | J61: 0.00 | M61: 1,880.00 | N61: 1,889.99 | P61: 384.89 | Q61: 24.61 | R61: 0.00 | S61: 0.00 | T61: 0.00 | U61: 0.00
B62: 0.01 | C62: 9.99 | E62: 7.00 | F62: 5.00 | G62: 0.00 | H62: 0.00 | I62: 0.00 | J62: 0.00 | M62: 1,890.00 | N62: 1,899.99 | P62: 391.89 | Q62: 29.61 | R62: 0.00 | S62: 0.00 | T62: 0.00 | U62: 0.00
B63: 0.01 | C63: 9.99 | E63: 7.00 | F63: 5.00 | G63: 0.00 | H63: 0.00 | I63: 0.00 | J63: 0.00 | M63: 1,900.00 | N63: 1,909.99 | P63: 398.89 | Q63: 34.61 | R63: 0.00 | S63: 0.00 | T63: 0.00 | U63: 0.00
B64: 0.01 | C64: 9.99 | E64: 7.00 | F64: 5.00 | G64: 0.00 | H64: 0.00 | I64: 0.00 | J64: 0.00 | M64: 1,910.00 | N64: 1,919.99 | P64: 405.89 | Q64: 39.61 | R64: 0.00 | S64: 0.00 | T64: 0.00 | U64: 0.00
B65: 0.01 | C65: 9.99 | E65: 7.00 | F65: 5.00 | G65: 3.01 | H65: 0.00 | I65: 0.00 | J65: 0.00 | M65: 1,920.00 | N65: 1,929.99 | P65: 412.89 | Q65: 44.61 | R65: 0.00 | S65: 0.00 | T65: 0.00 | U65: 0.00
B66: 0.01 | C66: 9.99 | E66: 7.00 | F66: 5.00 | G66: 4.00 | H66: 0.00 | I66: 0.00 | J66: 0.00 | M66: 1,930.00 | N66: 1,939.99 | P66: 419.89 | Q66: 49.61 | R66: 0.00 | S66: 0.00 | T66: 0.00 | U66: 0.00
B67: 0.01 | C67: 9.99 | E67: 7.00 | F67: 5.00 | G67: 4.00 | H67: 0.00 | I67: 0.00 | J67: 0.00 | M67: 1,940.00 | N67: 1,949.99 | P67: 426.89 | Q67: 54.61 | R67: 0.00 | S67: 0.00 | T67: 0.00 | U67: 0.00
B68: 0.01 | C68: 9.99 | E68: 7.00 | F68: 5.00 | G68: 4.00 | H68: 0.00 | I68: 0.00 | J68: 0.00 | M68: 1,950.00 | N68: 1,959.99 | P68: 433.89 | Q68: 59.61 | R68: 0.00 | S68: 0.00 | T68: 0.00 | U68: 0.00
B69: 0.01 | C69: 9.99 | E69: 7.00 | F69: 5.00 | G69: 4.00 | H69: 0.00 | I69: 0.00 | J69: 0.00 | M69: 1,960.00 | N69: 1,969.99 | P69: 440.89 | Q69: 64.61 | R69: 0.00 | S69: 0.00 | T69: 0.00 | U69: 0.00
B70: 0.01 | C70: 9.99 | E70: 7.00 | F70: 5.00 | G70: 4.00 | H70: 0.00 | I70: 0.00 | J70: 0.00 | M70: 1,970.00 | N70: 1,979.99 | P70: 447.89 | Q70: 69.61 | R70: 0.00 | S70: 0.00 | T70: 0.00 | U70: 0.00
B71: 0.01 | C71: 9.99 | E71: 7.00 | F71: 5.00 | G71: 4.00 | H71: 0.00 | I71: 0.00 | J71: 0.00 | M71: 1,980.00 | N71: 1,989.99 | P71: 454.89 | Q71: 74.61 | R71: 0.00 | S71: 0.00 | T71: 0.00 | U71: 0.00
B72: 0.01 | C72: 9.99 | E72: 7.00 | F72: 5.00 | G72: 4.00 | H72: 0.00 | I72: 0.00 | J72: 0.00 | M72: 1,990.00 | N72: =10+N71 -> 1,999.99 | P72: 461.89 | Q72: 79.61 | R72: 0.00 | S72: 0.00 | T72: 0.00 | U72: 0.00
B73: 0.01 | C73: 9.99 | E73: 7.00 | F73: 5.00 | G73: 4.00 | H73: 0.00 | I73: 0.00 | J73: 0.00 | M73: =10+M72 -> 2,000.00 | N73: 2,009.99 | P73: 468.89 | Q73: 84.61 | R73: 0.00 | S73: 0.00 | T73: 0.00 | U73: 0.00
B74: 0.01 | C74: 9.99 | E74: 7.00 | F74: 5.00 | G74: 4.00 | H74: 0.00 | I74: 0.00 | J74: 0.00 | M74: 2,010.00 | N74: 2,019.99 | P74: 475.89 | Q74: 89.61 | R74: 0.00 | S74: 0.00 | T74: 0.00 | U74: 0.00
B75: 0.01 | C75: 9.99 | E75: 7.00 | F75: 5.00 | G75: 4.00 | H75: 0.00 | I75: 0.00 | J75: 0.00 | M75: 2,020.00 | N75: 2,029.99 | P75: 482.89 | Q75: 94.61 | R75: 0.00 | S75: 0.00 | T75: 0.00 | U75: 0.00
B76: 0.01 | C76: 9.99 | E76: 7.00 | F76: 5.00 | G76: 4.00 | H76: 0.00 | I76: 0.00 | J76: 0.00 | M76: 2,030.00 | N76: 2,039.99 | P76: 489.89 | Q76: 99.61 | R76: 0.00 | S76: 0.00 | T76: 0.00 | U76: 0.00
B77: 0.01 | C77: 9.99 | E77: 7.00 | F77: 5.00 | G77: 4.00 | H77: 0.00 | I77: 0.00 | J77: 0.00 | M77: 2,040.00 | N77: 2,049.99 | P77: 496.89 | Q77: 104.61 | R77: 0.00 | S77: 0.00 | T77: 0.00 | U77: 0.00
B78: 0.01 | C78: 9.99 | E78: 7.00 | F78: 5.00 | G78: 4.00 | H78: 0.00 | I78: 0.00 | J78: 0.00 | M78: 2,050.00 | N78: 2,059.99 | P78: 503.89 | Q78: 109.61 | R78: 0.00 | S78: 0.00 | T78: 0.00 | U78: 0.00
B79: 0.01 | C79: 9.99 | E79: 7.00 | F79: 5.00 | G79: 4.00 | H79: 0.00 | I79: 0.00 | J79: 0.00 | M79: 2,060.00 | N79: 2,069.99 | P79: 510.89 | Q79: 114.61 | R79: 0.00 | S79: 0.00 | T79: 0.00 | U79: 0.00
B80: 0.01 | C80: 9.99 | E80: 7.00 | F80: 5.00 | G80: 4.00 | H80: 0.00 | I80: 0.00 | J80: 0.00 | M80: 2,070.00 | N80: 2,079.99 | P80: 517.89 | Q80: 119.61 | R80: 0.00 | S80: 0.00 | T80: 0.00 | U80: 0.00
B81: 0.01 | C81: 9.99 | E81: 7.00 | F81: 5.00 | G81: 4.00 | H81: 0.00 | I81: 0.00 | J81: 0.00 | M81: 2,080.00 | N81: 2,089.99 | P81: 524.89 | Q81: 124.61 | R81: 0.00 | S81: 0.00 | T81: 0.00 | U81: 0.00
B82: 0.01 | C82: 9.99 | E82: 7.00 | F82: 5.00 | G82: 4.00 | H82: 0.00 | I82: 0.00 | J82: 0.00 | M82: 2,090.00 | N82: 2,099.99 | P82: 531.89 | Q82: 129.61 | R82: 0.00 | S82: 0.00 | T82: 0.00 | U82: 0.00
B83: 0.01 | C83: 9.99 | E83: 7.00 | F83: 5.00 | G83: 4.00 | H83: 0.00 | I83: 0.00 | J83: 0.00 | M83: 2,100.00 | N83: 2,109.99 | P83: 538.89 | Q83: 134.61 | R83: 0.00 | S83: 0.00 | T83: 0.00 | U83: 0.00
B84: 0.01 | C84: 9.99 | E84: 7.00 | F84: 5.00 | G84: 4.00 | H84: 0.00 | I84: 0.00 | J84: 0.00 | M84: 2,110.00 | N84: 2,119.99 | P84: 545.89 | Q84: 139.61 | R84: 0.13 | S84: 0.00 | T84: 0.00 | U84: 0.00
B85: 0.01 | C85: 9.99 | E85: 7.00 | F85: 5.00 | G85: 4.00 | H85: 0.29 | I85: 0.00 | J85: 0.00 | M85: 2,120.00 | N85: 2,129.99 | P85: 552.89 | Q85: 144.61 | R85: 4.13 | S85: 0.00 | T85: 0.00 | U85: 0.00
B86: 0.01 | C86: 9.99 | E86: 7.00 | F86: 5.00 | G86: 4.00 | H86: 3.00 | I86: 0.00 | J86: 0.00 | M86: 2,130.00 | N86: 2,139.99 | P86: 559.89 | Q86: 149.61 | R86: 8.13 | S86: 0.00 | T86: 0.00 | U86: 0.00
B87: 0.01 | C87: 9.99 | E87: 7.00 | F87: 5.00 | G87: 4.00 | H87: 3.00 | I87: 0.00 | J87: 0.00 | M87: 2,140.00 | N87: 2,149.99 | P87: 566.89 | Q87: 154.61 | R87: 12.13 | S87: 0.00 | T87: 0.00 | U87: 0.00
B88: 0.01 | C88: 9.99 | E88: 7.00 | F88: 5.00 | G88: 4.00 | H88: 3.00 | I88: 0.00 | J88: 0.00 | M88: 2,150.00 | N88: 2,159.99 | P88: 573.89 | Q88: 159.61 | R88: 16.13 | S88: 0.00 | T88: 0.00 | U88: 0.00
B89: 0.01 | C89: 9.99 | E89: 7.00 | F89: 5.00 | G89: 4.00 | H89: 3.00 | I89: 0.00 | J89: 0.00 | M89: 2,160.00 | N89: 2,169.99 | P89: 580.89 | Q89: 164.61 | R89: 20.13 | S89: 0.00 | T89: 0.00 | U89: 0.00
B90: 0.01 | C90: 9.99 | E90: 7.00 | F90: 5.00 | G90: 4.00 | H90: 3.00 | I90: 0.00 | J90: 0.00 | M90: 2,170.00 | N90: 2,179.99 | P90: 587.89 | Q90: 169.61 | R90: 24.13 | S90: 0.00 | T90: 0.00 | U90: 0.00
B91: 0.01 | C91: 9.99 | E91: 7.00 | F91: 5.00 | G91: 4.00 | H91: 3.00 | I91: 0.00 | J91: 0.00 | M91: 2,180.00 | N91: 2,189.99 | P91: 594.89 | Q91: 174.61 | R91: 28.13 | S91: 0.00 | T91: 0.00 | U91: 0.00
B92: 0.01 | C92: 9.99 | E92: 7.00 | F92: 5.00 | G92: 4.00 | H92: 3.00 | I92: 0.00 | J92: 0.00 | M92: 2,190.00 | N92: 2,199.99 | P92: 601.89 | Q92: 179.61 | R92: 32.13 | S92: 0.00 | T92: 0.00 | U92: 0.00
B93: 0.01 | C93: 9.99 | E93: 7.00 | F93: 5.00 | G93: 4.00 | H93: 3.00 | I93: 0.00 | J93: 0.00 | M93: 2,200.00 | N93: 2,209.99 | P93: 608.89 | Q93: 184.61 | R93: 36.13 | S93: 0.00 | T93: 0.00 | U93: 0.00
B94: 0.01 | C94: 9.99 | E94: 7.00 | F94: 5.00 | G94: 4.00 | H94: 3.00 | I94: 0.00 | J94: 0.00 | M94: 2,210.00 | N94: 2,219.99 | P94: 615.89 | Q94: 189.61 | R94: 40.13 | S94: 0.00 | T94: 0.00 | U94: 0.00
B95: 0.01 | C95: 9.99 | E95: 7.00 | F95: 5.00 | G95: 4.00 | H95: 3.00 | I95: 0.00 | J95: 0.00 | M95: 2,220.00 | N95: 2,229.99 | P95: 622.89 | Q95: 194.61 | R95: 44.13 | S95: 0.00 | T95: 0.00 | U95: 0.00
B96: 0.01 | C96: 9.99 | E96: 7.00 | F96: 5.00 | G96: 4.00 | H96: 3.00 | I96: 0.00 | J96: 0.00 | M96: 2,230.00 | N96: 2,239.99 | P96: 629.89 | Q96: 199.61 | R96: 48.13 | S96: 0.00 | T96: 0.00 | U96: 0.00
B97: 0.01 | C97: 9.99 | E97: 7.00 | F97: 5.00 | G97: 4.00 | H97: 3.00 | I97: 0.00 | J97: 0.00 | M97: 2,240.00 | N97: 2,249.99 | P97: 636.89 | Q97: 204.61 | R97: 52.13 | S97: 0.00 | T97: 0.00 | U97: 0.00
B98: 0.01 | C98: 9.99 | E98: 7.00 | F98: 5.00 | G98: 4.00 | H98: 3.00 | I98: 0.00 | J98: 0.00 | M98: 2,250.00 | N98: 2,259.99 | P98: 643.89 | Q98: 209.61 | R98: 56.13 | S98: 0.00 | T98: 0.00 | U98: 0.00
B99: 0.01 | C99: 9.99 | E99: 7.00 | F99: 5.00 | G99: 4.00 | H99: 3.00 | I99: 0.00 | J99: 0.00 | M99: 2,260.00 | N99: 2,269.99 | P99: 650.89 | Q99: 214.61 | R99: 60.13 | S99: 0.00 | T99: 0.00 | U99: 0.00
B100: 0.01 | C100: 9.99 | E100: 7.00 | F100: 5.00 | G100: 4.00 | H100: 3.00 | I100: 0.00 | J100: 0.00 | M100: 2,270.00 | N100: 2,279.99 | P100: 657.89 | Q100: 219.61 | R100: 64.13 | S100: 0.00 | T100: 0.00 | U100: 0.00
B101: 0.01 | C101: 9.99 | E101: 7.00 | F101: 5.00 | G101: 4.00 | H101: 3.00 | I101: 0.00 | J101: 0.00 | M101: 2,280.00 | N101: 2,289.99 | P101: 664.89 | Q101: 224.61 | R101: 68.13 | S101: 0.00 | T101: 0.00 | U101: 0.00
B102: 0.01 | C102: 9.99 | E102: 7.00 | F102: 5.00 | G102: 4.00 | H102: 3.00 | I102: 0.00 | J102: 0.00 | M102: 2,290.00 | N102: 2,299.99 | P102: 671.89 | Q102: 229.61 | R102: 72.13 | S102: 0.00 | T102: 0.00 | U102: 0.00
B103: 0.01 | C103: 9.99 | E103: 7.00 | F103: 5.00 | G103: 4.00 | H103: 3.00 | I103: 0.00 | J103: 0.00 | M103: 2,300.00 | N103: 2,309.99 | P103: 678.89 | Q103: 234.61 | R103: 76.13 | S103: 0.00 | T103: 0.00 | U103: 0.00
B104: 0.01 | C104: 9.99 | E104: 7.00 | F104: 5.00 | G104: 4.00 | H104: 3.00 | I104: 0.00 | J104: 0.00 | M104: 2,310.00 | N104: 2,319.99 | P104: 685.89 | Q104: 239.61 | R104: 80.13 | S104: 0.00 | T104: 0.00 | U104: 0.00
B105: 0.01 | C105: 9.99 | E105: 7.00 | F105: 5.00 | G105: 4.00 | H105: 3.00 | I105: 0.00 | J105: 0.00 | M105: 2,320.00 | N105: 2,329.99 | P105: 692.89 | Q105: 244.61 | R105: 84.13 | S105: 0.00 | T105: 0.00 | U105: 0.00
B106: 0.01 | C106: 9.99 | E106: 7.00 | F106: 5.00 | G106: 4.00 | H106: 3.00 | I106: 0.88 | J106: 0.00 | M106: 2,330.00 | N106: 2,339.99 | P106: 699.89 | Q106: 249.61 | R106: 88.13 | S106: 0.00 | T106: 0.00 | U106: 0.00
B107: 0.01 | C107: 9.99 | E107: 7.00 | F107: 5.00 | G107: 4.00 | H107: 3.00 | I107: 2.00 | J107: 0.00 | M107: 2,340.00 | N107: 2,349.99 | P107: 706.89 | Q107: 254.61 | R107: 92.13 | S107: 0.00 | T107: 0.00 | U107: 0.00
B108: 0.01 | C108: 9.99 | E108: 7.00 | F108: 5.00 | G108: 4.00 | H108: 3.00 | I108: 2.00 | J108: 0.00 | M108: 2,350.00 | N108: 2,359.99 | P108: 713.89 | Q108: 259.61 | R108: 96.13 | S108: 0.00 | T108: 0.00 | U108: 0.00
B109: 0.01 | C109: 9.99 | E109: 7.00 | F109: 5.00 | G109: 4.00 | H109: 3.00 | I109: 2.00 | J109: 0.00 | M109: 2,360.00 | N109: 2,369.99 | P109: 720.89 | Q109: 264.61 | R109: 100.13 | S109: 0.00 | T109: 0.00 | U109: 0.00
B110: 0.01 | C110: 9.99 | E110: 7.00 | F110: 5.00 | G110: 4.00 | H110: 3.00 | I110: 2.00 | J110: 0.00 | M110: 2,370.00 | N110: 2,379.99 | P110: 727.89 | Q110: 269.61 | R110: 104.13 | S110: 0.00 | T110: 0.00 | U110: 0.00
B111: 0.01 | C111: 9.99 | E111: 7.00 | F111: 5.00 | G111: 4.00 | H111: 3.00 | I111: 2.00 | J111: 0.00 | M111: 2,380.00 | N111: 2,389.99 | P111: 734.89 | Q111: 274.61 | R111: 108.13 | S111: 0.00 | T111: 0.00 | U111: 0.00
B112: 0.01 | C112: 9.99 | E112: 7.00 | F112: 5.00 | G112: 4.00 | H112: 3.00 | I112: 2.00 | J112: 0.00 | M112: 2,390.00 | N112: 2,399.99 | P112: 741.89 | Q112: 279.61 | R112: 112.13 | S112: 0.43 | T112: 0.00 | U112: 0.00
B113: 0.01 | C113: 9.99 | E113: 7.00 | F113: 5.00 | G113: 4.00 | H113: 3.00 | I113: 2.00 | J113: 0.00 | M113: 2,400.00 | N113: 2,409.99 | P113: 748.89 | Q113: 284.61 | R113: 116.13 | S113: 3.43 | T113: 0.00 | U113: 0.00
B114: 0.01 | C114: 9.99 | E114: 7.00 | F114: 5.00 | G114: 4.00 | H114: 3.00 | I114: 2.00 | J114: 0.00 | M114: 2,410.00 | N114: 2,419.99 | P114: 755.89 | Q114: 289.61 | R114: 120.13 | S114: 6.43 | T114: 0.00 | U114: 0.00
B115: 0.01 | C115: 9.99 | E115: 7.00 | F115: 5.00 | G115: 4.00 | H115: 3.00 | I115: 2.00 | J115: 0.00 | M115: 2,420.00 | N115: 2,429.99 | P115: 762.89 | Q115: 294.61 | R115: 124.13 | S115: 9.43 | T115: 0.00 | U115: 0.00
B116: 0.01 | C116: 9.99 | E116: 7.00 | F116: 5.00 | G116: 4.00 | H116: 3.00 | I116: 2.00 | J116: 0.00 | M116: 2,430.00 | N116: 2,439.99 | P116: 769.89 | Q116: 299.61 | R116: 128.13 | S116: 12.43 | T116: 0.00 | U116: 0.00
B117: 0.01 | C117: 9.99 | E117: 7.00 | F117: 5.00 | G117: 4.00 | H117: 3.00 | I117: 2.00 | J117: 0.00 | M117: 2,440.00 | N117: 2,449.99 | P117: 776.89 | Q117: 304.61 | R117: 132.13 | S117: 15.43 | T117: 0.00 | U117: 0.00
B118: 0.01 | C118: 9.99 | E118: 7.00 | F118: 5.00 | G118: 4.00 | H118: 3.00 | I118: 2.00 | J118: 0.00 | M118: 2,450.00 | N118: 2,459.99 | P118: 783.89 | Q118: 309.61 | R118: 136.13 | S118: 18.43 | T118: 0.00 | U118: 0.00
B119: 0.01 | C119: 9.99 | E119: 7.00 | F119: 5.00 | G119: 4.00 | H119: 3.00 | I119: 2.00 | J119: 0.00 | M119: 2,460.00 | N119: 2,469.99 | P119: 790.89 | Q119: 314.61 | R119: 140.13 | S119: 21.43 | T119: 0.00 | U119: 0.00
B120: 0.01 | C120: 9.99 | E120: 7.00 | F120: 5.00 | G120: 4.00 | H120: 3.00 | I120: 2.00 | J120: 0.00 | M120: 2,470.00 | N120: 2,479.99 | P120: 797.89 | Q120: 319.61 | R120: 144.13 | S120: 24.43 | T120: 0.00 | U120: 0.00
B121: 0.01 | C121: 9.99 | E121: 7.00 | F121: 5.00 | G121: 4.00 | H121: 3.00 | I121: 2.00 | J121: 0.00 | M121: 2,480.00 | N121: 2,489.99 | P121: 804.89 | Q121: 324.61 | R121: 148.13 | S121: 27.43 | T121: 0.00 | U121: 0.00
B122: 0.01 | C122: 9.99 | E122: 7.00 | F122: 5.00 | G122: 4.00 | H122: 3.00 | I122: 2.00 | J122: 0.00 | M122: 2,490.00 | N122: 2,499.99 | P122: 811.89 | Q122: 329.61 | R122: 152.13 | S122: 30.43 | T122: 0.00 | U122: 0.00
B123: 0.01 | C123: 9.99 | E123: 7.00 | F123: 5.00 | G123: 4.00 | H123: 3.00 | I123: 2.00 | J123: 0.00 | M123: 2,500.00 | N123: 2,509.99 | P123: 818.89 | Q123: 334.61 | R123: 156.13 | S123: 33.43 | T123: 0.00 | U123: 0.00
B124: 0.01 | C124: 9.99 | E124: 7.00 | F124: 5.00 | G124: 4.00 | H124: 3.00 | I124: 2.00 | J124: 0.00 | M124: 2,510.00 | N124: 2,519.99 | P124: 825.89 | Q124: 339.61 | R124: 160.13 | S124: 36.43 | T124: 0.00 | U124: 0.00
B125: 0.01 | C125: 9.99 | E125: 7.00 | F125: 5.00 | G125: 4.00 | H125: 3.00 | I125: 2.00 | J125: 0.00 | M125: 2,520.00 | N125: 2,529.99 | P125: 832.89 | Q125: 344.61 | R125: 164.13 | S125: 39.43 | T125: 0.00 | U125: 0.00
B126: 0.01 | C126: 9.99 | E126: 7.00 | F126: 5.00 | G126: 4.00 | H126: 3.00 | I126: 2.00 | J126: 0.00 | M126: 2,530.00 | N126: 2,539.99 | P126: 839.89 | Q126: 349.61 | R126: 168.13 | S126: 42.43 | T126: 0.00 | U126: 0.00
B127: 0.01 | C127: 9.99 | E127: 7.00 | F127: 5.00 | G127: 4.00 | H127: 3.00 | I127: 2.00 | J127: 0.79 | M127: 2,540.00 | N127: 2,549.99 | P127: 846.89 | Q127: 354.61 | R127: 172.13 | S127: 45.43 | T127: 0.00 | U127: 0.00
B128: 0.01 | C128: 9.99 | E128: 7.00 | F128: 5.00 | G128: 4.00 | H128: 3.00 | I128: 2.00 | J128: 1.00 | M128: 2,550.00 | N128: 2,559.99 | P128: 853.89 | Q128: 359.61 | R128: 176.13 | S128: 48.43 | T128: 0.00 | U128: 0.00
B129: 0.01 | C129: 9.99 | E129: 7.00 | F129: 5.00 | G129: 4.00 | H129: 3.00 | I129: 2.00 | J129: 1.00 | M129: 2,560.00 | N129: 2,569.99 | P129: 860.89 | Q129: 364.61 | R129: 180.13 | S129: 51.43 | T129: 0.00 | U129: 0.00
B130: 0.01 | C130: 9.99 | E130: 7.00 | F130: 5.00 | G130: 4.00 | H130: 3.00 | I130: 2.00 | J130: 1.00 | M130: 2,570.00 | N130: 2,579.99 | P130: 867.89 | Q130: 369.61 | R130: 184.13 | S130: 54.43 | T130: 0.00 | U130: 0.00
B131: 0.01 | C131: 9.99 | E131: 7.00 | F131: 5.00 | G131: 4.00 | H131: 3.00 | I131: 2.00 | J131: 1.00 | M131: 2,580.00 | N131: 2,589.99 | P131: 874.89 | Q131: 374.61 | R131: 188.13 | S131: 57.43 | T131: 0.00 | U131: 0.00
B132: 0.01 | C132: 9.99 | E132: 7.00 | F132: 5.00 | G132: 4.00 | H132: 3.00 | I132: 2.00 | J132: 1.00 | M132: 2,590.00 | N132: 2,599.99 | P132: 881.89 | Q132: 379.61 | R132: 192.13 | S132: 60.43 | T132: 0.00 | U132: 0.00
B133: 0.01 | C133: 9.99 | E133: 7.00 | F133: 5.00 | G133: 4.00 | H133: 3.00 | I133: 2.00 | J133: 1.00 | M133: 2,600.00 | N133: 2,609.99 | P133: 888.89 | Q133: 384.61 | R133: 196.13 | S133: 63.43 | T133: 0.00 | U133: 0.00
B134: 0.01 | C134: 9.99 | E134: 7.00 | F134: 5.00 | G134: 4.00 | H134: 3.00 | I134: 2.00 | J134: 1.00 | M134: 2,610.00 | N134: 2,619.99 | P134: 895.89 | Q134: 389.61 | R134: 200.13 | S134: 66.43 | T134: 0.00 | U134: 0.00
B135: 0.01 | C135: 9.99 | E135: 7.00 | F135: 5.00 | G135: 4.00 | H135: 3.00 | I135: 2.00 | J135: 1.00 | M135: 2,620.00 | N135: 2,629.99 | P135: 902.89 | Q135: 394.61 | R135: 204.13 | S135: 69.43 | T135: 0.00 | U135: 0.00
B136: 0.01 | C136: 9.99 | E136: 7.00 | F136: 5.00 | G136: 4.00 | H136: 3.00 | I136: 2.00 | J136: 1.00 | M136: 2,630.00 | N136: =10+N135 -> 2,639.99 | P136: 909.89 | Q136: 399.61 | R136: 208.13 | S136: 72.43 | T136: 0.00 | U136: 0.00
B137: 0.01 | C137: 9.99 | E137: 7.00 | F137: 5.00 | G137: 4.00 | H137: 3.00 | I137: 2.00 | J137: 1.00 | M137: =10+M136 -> 2,640.00 | N137: 2,649.99 | P137: 916.89 | Q137: 404.61 | R137: 212.13 | S137: 75.43 | T137: 0.00 | U137: 0.00
B138: 0.01 | C138: 9.99 | E138: 7.00 | F138: 5.00 | G138: 4.00 | H138: 3.00 | I138: 2.00 | J138: 1.00 | M138: 2,650.00 | N138: 2,659.99 | P138: 923.89 | Q138: 409.61 | R138: 216.13 | S138: 78.43 | T138: 0.00 | U138: 0.00
B139: 0.01 | C139: 9.99 | E139: 7.00 | F139: 5.00 | G139: 4.00 | H139: 3.00 | I139: 2.00 | J139: 1.00 | M139: 2,660.00 | N139: 2,669.99 | P139: 930.89 | Q139: 414.61 | R139: 220.13 | S139: 81.43 | T139: 0.00 | U139: 0.00
B140: 0.01 | C140: 9.99 | E140: 7.00 | F140: 5.00 | G140: 4.00 | H140: 3.00 | I140: 2.00 | J140: 1.00 | M140: 2,670.00 | N140: 2,679.99 | P140: 937.89 | Q140: 419.61 | R140: 224.13 | S140: 84.43 | T140: 0.50 | U140: 0.00
B141: 0.01 | C141: 9.99 | E141: 7.00 | F141: 5.00 | G141: 4.00 | H141: 3.00 | I141: 2.00 | J141: 1.00 | M141: 2,680.00 | N141: 2,689.99 | P141: 944.89 | Q141: 424.61 | R141: 228.13 | S141: 87.43 | T141: 2.50 | U141: 0.00
B142: 0.01 | C142: 9.99 | E142: 7.00 | F142: 5.00 | G142: 4.00 | H142: 3.00 | I142: 2.00 | J142: 1.00 | M142: 2,690.00 | N142: 2,699.99 | P142: 951.89 | Q142: 429.61 | R142: 232.13 | S142: 90.43 | T142: 4.50 | U142: 0.00
B143: 0.01 | C143: 9.99 | E143: 7.00 | F143: 5.00 | G143: 4.00 | H143: 3.00 | I143: 2.00 | J143: 1.00 | M143: 2,700.00 | N143: 2,709.99 | P143: 958.89 | Q143: 434.61 | R143: 236.13 | S143: 93.43 | T143: 6.50 | U143: 0.00
B144: 0.01 | C144: 9.99 | E144: 7.00 | F144: 5.00 | G144: 4.00 | H144: 3.00 | I144: 2.00 | J144: 1.00 | M144: 2,710.00 | N144: 2,719.99 | P144: 965.89 | Q144: 439.61 | R144: 240.13 | S144: 96.43 | T144: 8.50 | U144: 0.00
B145: 0.01 | C145: 9.99 | E145: 7.00 | F145: 5.00 | G145: 4.00 | H145: 3.00 | I145: 2.00 | J145: 1.00 | M145: 2,720.00 | N145: 2,729.99 | P145: 972.89 | Q145: 444.61 | R145: 244.13 | S145: 99.43 | T145: 10.50 | U145: 0.00
B146: 0.01 | C146: 9.99 | E146: 7.00 | F146: 5.00 | G146: 4.00 | H146: 3.00 | I146: 2.00 | J146: 1.00 | M146: 2,730.00 | N146: 2,739.99 | P146: 979.89 | Q146: 449.61 | R146: 248.13 | S146: 102.43 | T146: 12.50 | U146: 0.00
B147: 0.01 | C147: 9.99 | E147: 7.00 | F147: 5.00 | G147: 4.00 | H147: 3.00 | I147: 2.00 | J147: 1.00 | M147: 2,740.00 | N147: 2,749.99 | P147: 986.89 | Q147: 454.61 | R147: 252.13 | S147: 105.43 | T147: 14.50 | U147: 0.00
B148: 0.01 | C148: 9.99 | E148: 7.00 | F148: 5.00 | G148: 4.00 | H148: 3.00 | I148: 2.00 | J148: 1.00 | M148: 2,750.00 | N148: 2,759.99 | P148: 993.89 | Q148: 459.61 | R148: 256.13 | S148: 108.43 | T148: 16.50 | U148: 0.00
B149: 0.01 | C149: 9.99 | E149: 7.00 | F149: 5.00 | G149: 4.00 | H149: 3.00 | I149: 2.00 | J149: 1.00 | M149: 2,760.00 | N149: 2,769.99 | P149: 1,000.89 | Q149: 464.61 | R149: 260.13 | S149: 111.43 | T149: 18.50 | U149: 0.00
B150: 0.01 | C150: 9.99 | E150: 7.00 | F150: 5.00 | G150: 4.00 | H150: 3.00 | I150: 2.00 | J150: 1.00 | M150: 2,770.00 | N150: 2,779.99 | P150: 1,007.89 | Q150: 469.61 | R150: 264.13 | S150: 114.43 | T150: 20.50 | U150: 0.00
B151: 0.01 | C151: 9.99 | E151: 7.00 | F151: 5.00 | G151: 4.00 | H151: 3.00 | I151: 2.00 | J151: 1.00 | M151: 2,780.00 | N151: 2,789.99 | P151: 1,014.89 | Q151: 474.61 | R151: 268.13 | S151: 117.43 | T151: 22.50 | U151: 0.00
B152: 0.01 | C152: 9.99 | E152: 7.00 | F152: 5.00 | G152: 4.00 | H152: 3.00 | I152: 2.00 | J152: 1.00 | M152: 2,790.00 | N152: 2,799.99 | P152: 1,021.89 | Q152: 479.61 | R152: 272.13 | S152: 120.43 | T152: 24.50 | U152: 0.00
B153: 0.01 | C153: 9.99 | E153: 7.00 | F153: 5.00 | G153: 4.00 | H153: 3.00 | I153: 2.00 | J153: 1.00 | M153: 2,800.00 | N153: 2,809.99 | P153: 1,028.89 | Q153: 484.61 | R153: 276.13 | S153: 123.43 | T153: 26.50 | U153: 0.00
B154: 0.01 | C154: 9.99 | E154: 7.00 | F154: 5.00 | G154: 4.00 | H154: 3.00 | I154: 2.00 | J154: 1.00 | M154: 2,810.00 | N154: 2,819.99 | P154: 1,035.89 | Q154: 489.61 | R154: 280.13 | S154: 126.43 | T154: 28.50 | U154: 0.00
B155: 0.01 | C155: 9.99 | E155: 7.00 | F155: 5.00 | G155: 4.00 | H155: 3.00 | I155: 2.00 | J155: 1.00 | M155: 2,820.00 | N155: 2,829.99 | P155: 1,042.89 | Q155: 494.61 | R155: 284.13 | S155: 129.43 | T155: 30.50 | U155: 0.00
B156: 0.01 | C156: 9.99 | E156: 7.00 | F156: 5.00 | G156: 4.00 | H156: 3.00 | I156: 2.00 | J156: 1.00 | M156: 2,830.00 | N156: 2,839.99 | P156: 1,049.89 | Q156: 499.61 | R156: 288.13 | S156: 132.43 | T156: 32.50 | U156: 0.00
B157: 0.01 | C157: 9.99 | E157: 7.00 | F157: 5.00 | G157: 4.00 | H157: 3.00 | I157: 2.00 | J157: 1.00 | M157: 2,840.00 | N157: 2,849.99 | P157: 1,056.89 | Q157: 504.61 | R157: 292.13 | S157: 135.43 | T157: 34.50 | U157: 0.00
B158: 0.01 | C158: 9.99 | E158: 7.00 | F158: 5.00 | G158: 4.00 | H158: 3.00 | I158: 2.00 | J158: 1.00 | M158: 2,850.00 | N158: 2,859.99 | P158: 1,063.89 | Q158: 509.61 | R158: 296.13 | S158: 138.43 | T158: 36.50 | U158: 0.00
B159: 0.01 | C159: 9.99 | E159: 7.00 | F159: 5.00 | G159: 4.00 | H159: 3.00 | I159: 2.00 | J159: 1.00 | M159: 2,860.00 | N159: 2,869.99 | P159: 1,070.89 | Q159: 514.61 | R159: 300.13 | S159: 141.43 | T159: 38.50 | U159: 0.00
B160: 0.01 | C160: 9.99 | E160: 7.00 | F160: 5.00 | G160: 4.00 | H160: 3.00 | I160: 2.00 | J160: 1.00 | M160: 2,870.00 | N160: 2,879.99 | P160: 1,077.89 | Q160: 519.61 | R160: 304.13 | S160: 144.43 | T160: 40.50 | U160: 0.00
B161: 0.01 | C161: 9.99 | E161: 7.00 | F161: 5.00 | G161: 4.00 | H161: 3.00 | I161: 2.00 | J161: 1.00 | M161: 2,880.00 | N161: 2,889.99 | P161: 1,084.89 | Q161: 524.61 | R161: 308.13 | S161: 147.43 | T161: 42.50 | U161: 0.00
B162: 0.01 | C162: 9.99 | E162: 7.00 | F162: 5.00 | G162: 4.00 | H162: 3.00 | I162: 2.00 | J162: 1.00 | M162: 2,890.00 | N162: 2,899.99 | P162: 1,091.89 | Q162: 529.61 | R162: 312.13 | S162: 150.43 | T162: 44.50 | U162: 0.00
B163: 0.01 | C163: 9.99 | E163: 7.00 | F163: 5.00 | G163: 4.00 | H163: 3.00 | I163: 2.00 | J163: 1.00 | M163: 2,900.00 | N163: 2,909.99 | P163: 1,098.89 | Q163: 534.61 | R163: 316.13 | S163: 153.43 | T163: 46.50 | U163: 0.00
B164: 0.01 | C164: 9.99 | E164: 7.00 | F164: 5.00 | G164: 4.00 | H164: 3.00 | I164: 2.00 | J164: 1.00 | M164: 2,910.00 | N164: 2,919.99 | P164: 1,105.89 | Q164: 539.61 | R164: 320.13 | S164: 156.43 | T164: 48.50 | U164: 0.00
B165: 0.01 | C165: 9.99 | E165: 7.00 | F165: 5.00 | G165: 4.00 | H165: 3.00 | I165: 2.00 | J165: 1.00 | M165: 2,920.00 | N165: 2,929.99 | P165: 1,112.89 | Q165: 544.61 | R165: 324.13 | S165: 159.43 | T165: 50.50 | U165: 0.00
B166: 0.01 | C166: 9.99 | E166: 7.00 | F166: 5.00 | G166: 4.00 | H166: 3.00 | I166: 2.00 | J166: 1.00 | M166: 2,930.00 | N166: 2,939.99 | P166: 1,119.89 | Q166: 549.61 | R166: 328.13 | S166: 162.43 | T166: 52.50 | U166: 0.00
B167: 0.01 | C167: 9.99 | E167: 7.00 | F167: 5.00 | G167: 4.00 | H167: 3.00 | I167: 2.00 | J167: 1.00 | M167: 2,940.00 | N167: 2,949.99 | P167: 1,126.89 | Q167: 554.61 | R167: 332.13 | S167: 165.43 | T167: 54.50 | U167: 0.00
B168: 0.01 | C168: 9.99 | E168: 7.00 | F168: 5.00 | G168: 4.00 | H168: 3.00 | I168: 2.00 | J168: 1.00 | M168: 2,950.00 | N168: 2,959.99 | P168: 1,133.89 | Q168: 559.61 | R168: 336.13 | S168: 168.43 | T168: 56.50 | U168: 0.36
B169: 0.01 | C169: 9.99 | E169: 7.00 | F169: 5.00 | G169: 4.00 | H169: 3.00 | I169: 2.00 | J169: 1.00 | M169: 2,960.00 | N169: 2,969.99 | P169: 1,140.89 | Q169: 564.61 | R169: 340.13 | S169: 171.43 | T169: 58.50 | U169: 1.36
B170: 0.01 | C170: 9.99 | E170: 7.00 | F170: 5.00 | G170: 4.00 | H170: 3.00 | I170: 2.00 | J170: 1.00 | M170: 2,970.00 | N170: 2,979.99 | P170: 1,147.89 | Q170: 569.61 | R170: 344.13 | S170: 174.43 | T170: 60.50 | U170: 2.36
B171: 0.01 | C171: 9.99 | E171: 7.00 | F171: 5.00 | G171: 4.00 | H171: 3.00 | I171: 2.00 | J171: 1.00 | M171: 2,980.00 | N171: 2,989.99 | P171: 1,154.89 | Q171: 574.61 | R171: 348.13 | S171: 177.43 | T171: 62.50 | U171: 3.36
B172: 0.01 | C172: 9.99 | E172: 7.00 | F172: 5.00 | G172: 4.00 | H172: 3.00 | I172: 2.00 | J172: 1.00 | M172: 2,990.00 | N172: 2,999.99 | P172: 1,161.89 | Q172: 579.61 | R172: 352.13 | S172: 180.43 | T172: 64.50 | U172: 4.36
B173: 0.01 | C173: 9.99 | E173: 7.00 | F173: 5.00 | G173: 4.00 | H173: 3.00 | I173: 2.00 | J173: 1.00 | M173: 3,000.00 | N173: 3,009.99 | P173: 1,168.89 | Q173: 584.61 | R173: 356.13 | S173: 183.43 | T173: 66.50 | U173: 5.36
B174: 0.01 | C174: 9.99 | E174: 7.00 | F174: 5.00 | G174: 4.00 | H174: 3.00 | I174: 2.00 | J174: 1.00 | M174: 3,010.00 | N174: 3,019.99 | P174: 1,175.89 | Q174: 589.61 | R174: 360.13 | S174: 186.43 | T174: 68.50 | U174: 6.36
B175: 0.01 | C175: 9.99 | E175: 7.00 | F175: 5.00 | G175: 4.00 | H175: 3.00 | I175: 2.00 | J175: 1.00 | M175: 3,020.00 | N175: 3,029.99 | P175: 1,182.89 | Q175: 594.61 | R175: 364.13 | S175: 189.43 | T175: 70.50 | U175: 7.36
B176: 0.01 | C176: 9.99 | E176: 7.00 | F176: 5.00 | G176: 4.00 | H176: 3.00 | I176: 2.00 | J176: 1.00 | M176: 3,030.00 | N176: 3,039.99 | P176: 1,189.89 | Q176: 599.61 | R176: 368.13 | S176: 192.43 | T176: 72.50 | U176: 8.36
B177: 0.01 | C177: 9.99 | E177: 7.00 | F177: 5.00 | G177: 4.00 | H177: 3.00 | I177: 2.00 | J177: 1.00 | M177: 3,040.00 | N177: 3,049.99 | P177: 1,196.89 | Q177: 604.61 | R177: 372.13 | S177: 195.43 | T177: 74.50 | U177: 9.36
B178: 0.01 | C178: 9.99 | E178: 7.00 | F178: 5.00 | G178: 4.00 | H178: 3.00 | I178: 2.00 | J178: 1.00 | M178: 3,050.00 | N178: 3,059.99 | P178: 1,203.89 | Q178: 609.61 | R178: 376.13 | S178: 198.43 | T178: 76.50 | U178: 10.36
B179: 0.01 | C179: 9.99 | E179: 7.00 | F179: 5.00 | G179: 4.00 | H179: 3.00 | I179: 2.00 | J179: 1.00 | M179: 3,060.00 | N179: 3,069.99 | P179: 1,210.89 | Q179: 614.61 | R179: 380.13 | S179: 201.43 | T179: 78.50 | U179: 11.36
B180: 0.01 | C180: 9.99 | E180: 7.00 | F180: 5.00 | G180: 4.00 | H180: 3.00 | I180: 2.00 | J180: 1.00 | M180: 3,070.00 | N180: 3,079.99 | P180: 1,217.89 | Q180: 619.61 | R180: 384.13 | S180: 204.43 | T180: 80.50 | U180: 12.36
B181: 0.01 | C181: 9.99 | E181: 7.00 | F181: 5.00 | G181: 4.00 | H181: 3.00 | I181: 2.00 | J181: 1.00 | M181: 3,080.00 | N181: 3,089.99 | P181: 1,224.89 | Q181: 624.61 | R181: 388.13 | S181: 207.43 | T181: 82.50 | U181: 13.36
B182: 0.01 | C182: 9.99 | E182: 7.00 | F182: 5.00 | G182: 4.00 | H182: 3.00 | I182: 2.00 | J182: 1.00 | M182: 3,090.00 | N182: 3,099.99 | P182: 1,231.89 | Q182: 629.61 | R182: 392.13 | S182: 210.43 | T182: 84.50 | U182: 14.36
B183: 0.01 | C183: 9.99 | E183: 7.00 | F183: 5.00 | G183: 4.00 | H183: 3.00 | I183: 2.00 | J183: 1.00 | M183: 3,100.00 | N183: 3,109.99 | P183: 1,238.89 | Q183: 634.61 | R183: 396.13 | S183: 213.43 | T183: 86.50 | U183: 15.36
B184: 0.01 | C184: 9.99 | E184: 7.00 | F184: 5.00 | G184: 4.00 | H184: 3.00 | I184: 2.00 | J184: 1.00 | M184: 3,110.00 | N184: 3,119.99 | P184: 1,245.89 | Q184: 639.61 | R184: 400.13 | S184: 216.43 | T184: 88.50 | U184: 16.36
B185: 0.01 | C185: 9.99 | E185: 7.00 | F185: 5.00 | G185: 4.00 | H185: 3.00 | I185: 2.00 | J185: 1.00 | M185: 3,120.00 | N185: 3,129.99 | P185: 1,252.89 | Q185: 644.61 | R185: 404.13 | S185: 219.43 | T185: 90.50 | U185: 17.36
B186: 0.01 | C186: 9.99 | E186: 7.00 | F186: 5.00 | G186: 4.00 | H186: 3.00 | I186: 2.00 | J186: 1.00 | M186: 3,130.00 | N186: 3,139.99 | P186: 1,259.89 | Q186: 649.61 | R186: 408.13 | S186: 222.43 | T186: 92.50 | U186: 18.36
B187: 0.01 | C187: 9.99 | E187: 7.00 | F187: 5.00 | G187: 4.00 | H187: 3.00 | I187: 2.00 | J187: 1.00 | M187: 3,140.00 | N187: 3,149.99 | P187: 1,266.89 | Q187: 654.61 | R187: 412.13 | S187: 225.43 | T187: 94.50 | U187: 19.36
B188: 0.01 | C188: 9.99 | E188: 7.00 | F188: 5.00 | G188: 4.00 | H188: 3.00 | I188: 2.00 | J188: 1.00 | M188: 3,150.00 | N188: 3,159.99 | P188: 1,273.89 | Q188: 659.61 | R188: 416.13 | S188: 228.43 | T188: 96.50 | U188: 20.36
B189: 0.01 | C189: 9.99 | E189: 7.00 | F189: 5.00 | G189: 4.00 | H189: 3.00 | I189: 2.00 | J189: 1.00 | M189: 3,160.00 | N189: 3,169.99 | P189: 1,280.89 | Q189: 664.61 | R189: 420.13 | S189: 231.43 | T189: 98.50 | U189: 21.36
B190: 0.01 | C190: 9.99 | E190: 7.00 | F190: 5.00 | G190: 4.00 | H190: 3.00 | I190: 2.00 | J190: 1.00 | M190: 3,170.00 | N190: 3,179.99 | P190: 1,287.89 | Q190: 669.61 | R190: 424.13 | S190: 234.43 | T190: 100.50 | U190: 22.36
B191: 0.01 | C191: 9.99 | E191: 7.00 | F191: 5.00 | G191: 4.00 | H191: 3.00 | I191: 2.00 | J191: 1.00 | M191: 3,180.00 | N191: 3,189.99 | P191: 1,294.89 | Q191: 674.61 | R191: 428.13 | S191: 237.43 | T191: 102.50 | U191: 23.36
B192: 0.01 | C192: 9.99 | E192: 7.00 | F192: 5.00 | G192: 4.00 | H192: 3.00 | I192: 2.00 | J192: 1.00 | M192: 3,190.00 | N192: 3,199.99 | P192: 1,301.89 | Q192: 679.61 | R192: 432.13 | S192: 240.43 | T192: 104.50 | U192: 24.36
B193: 0.01 | C193: 9.99 | E193: 7.00 | F193: 5.00 | G193: 4.00 | H193: 3.00 | I193: 2.00 | J193: 1.00 | M193: 3,200.00 | N193: 3,209.99 | P193: 1,308.89 | Q193: 684.61 | R193: 436.13 | S193: 243.43 | T193: 106.50 | U193: 25.36
B194: 0.01 | C194: 9.99 | E194: 7.00 | F194: 5.00 | G194: 4.00 | H194: 3.00 | I194: 2.00 | J194: 1.00 | M194: 3,210.00 | N194: 3,219.99 | P194: 1,315.89 | Q194: 689.61 | R194: 440.13 | S194: 246.43 | T194: 108.50 | U194: 26.36
B195: 0.01 | C195: 9.99 | E195: 7.00 | F195: 5.00 | G195: 4.00 | H195: 3.00 | I195: 2.00 | J195: 1.00 | M195: 3,220.00 | N195: 3,229.99 | P195: 1,322.89 | Q195: 694.61 | R195: 444.13 | S195: 249.43 | T195: 110.50 | U195: 27.36
B196: 0.01 | C196: 9.99 | E196: 7.00 | F196: 5.00 | G196: 4.00 | H196: 3.00 | I196: 2.00 | J196: 1.00 | M196: 3,230.00 | N196: 3,239.99 | P196: 1,329.89 | Q196: 699.61 | R196: 448.13 | S196: 252.43 | T196: 112.50 | U196: 28.36
B197: 0.01 | C197: 9.99 | E197: 7.00 | F197: 5.00 | G197: 4.00 | H197: 3.00 | I197: 2.00 | J197: 1.00 | M197: 3,240.00 | N197: 3,249.99 | P197: 1,336.89 | Q197: 704.61 | R197: 452.13 | S197: 255.43 | T197: 114.50 | U197: 29.36
B198: 0.01 | C198: 9.99 | E198: 7.00 | F198: 5.00 | G198: 4.00 | H198: 3.00 | I198: 2.00 | J198: 1.00 | M198: 3,250.00 | N198: 3,259.99 | P198: 1,343.89 | Q198: 709.61 | R198: 456.13 | S198: 258.43 | T198: 116.50 | U198: 30.36
B199: 0.01 | C199: 9.99 | E199: 7.00 | F199: 5.00 | G199: 4.00 | H199: 3.00 | I199: 2.00 | J199: 1.00 | M199: 3,260.00 | N199: 3,269.99 | P199: 1,350.89 | Q199: 714.61 | R199: 460.13 | S199: 261.43 | T199: 118.50 | U199: 31.36
B200: 0.01 | C200: 9.99 | E200: 7.00 | F200: 5.00 | G200: 4.00 | H200: 3.00 | I200: 2.00 | J200: 1.00 | M200: 3,270.00 | N200: =10+N199 -> 3,279.99 | P200: 1,357.89 | Q200: 719.61 | R200: 464.13 | S200: 264.43 | T200: 120.50 | U200: 32.36
M201: =10+M200 -> 3,280.00 | N201: 3,289.99 | P201: 1,364.89 | Q201: 724.61 | R201: 468.13 | S201: 267.43 | T201: 122.50 | U201: 33.36
M202: 3,290.00 | N202: 3,299.99 | P202: 1,371.89 | Q202: 729.61 | R202: 472.13 | S202: 270.43 | T202: 124.50 | U202: 34.36
... 78 more rows

Sheet Tabelle pfändbarer Beträge 2021 (hidden)
E3: Pfändbarer Betrag bei Unterhaltspflicht für ... Personen | M3: Nettolohn | P3: Pfändbarer Betrag bei Unterhaltspflicht für ... Personen (gültig vom 01.07.2013 bis 30.06.2015)
B4: Nettolohn | E4: 0 | F4: 1 | G4: 2 | H4: 3 | I4: 4 | J4: 5 | M4: monatlich in Euro | P4: 0 | Q4: 1 | R4: 2 | S4: 3 | T4: 4 | U4: 5
B5: Add. Links | C5: Add. Rechts | J5: und mehr | M5: von | N5: bis | U5: und mehr
B6: 989.99 | E6: 0.00 | F6: 0.00 | G6: 0.00 | H6: 0.00 | I6: 0.00 | J6: 0.00 | N6: 1,259.99 | P6: 0.00 | Q6: 0.00 | R6: 0.00 | S6: 0.00 | T6: 0.00 | U6: 0.00
B7: 0.01 | C7: 9.99 | E7: 3.40 | F7: 0.00 | G7: 0.00 | H7: 0.00 | I7: 0.00 | J7: 0.00 | M7: 1,260.00 | N7: =10+N6 -> 1,269.99 | P7: 5.15 | Q7: 0.00 | R7: 0.00 | S7: 0.00 | T7: 0.00 | U7: 0.00
B8: 0.01 | C8: 9.99 | E8: 7.00 | F8: 0.00 | G8: 0.00 | H8: 0.00 | I8: 0.00 | J8: 0.00 | M8: =10+M7 -> 1,270.00 | N8: =10+N7 -> 1,279.99 | P8: 12.15 | Q8: 0.00 | R8: 0.00 | S8: 0.00 | T8: 0.00 | U8: 0.00
B9: 0.01 | C9: 9.99 | E9: 7.00 | F9: 0.00 | G9: 0.00 | H9: 0.00 | I9: 0.00 | J9: 0.00 | M9: =10+M8 -> 1,280.00 | N9: 1,289.99 | P9: 19.15 | Q9: 0.00 | R9: 0.00 | S9: 0.00 | T9: 0.00 | U9: 0.00
B10: 0.01 | C10: 9.99 | E10: 7.00 | F10: 0.00 | G10: 0.00 | H10: 0.00 | I10: 0.00 | J10: 0.00 | M10: 1,290.00 | N10: 1,299.99 | P10: 26.15 | Q10: 0.00 | R10: 0.00 | S10: 0.00 | T10: 0.00 | U10: 0.00
B11: 0.01 | C11: 9.99 | E11: 7.00 | F11: 0.00 | G11: 0.00 | H11: 0.00 | I11: 0.00 | J11: 0.00 | M11: 1,300.00 | N11: 1,309.99 | P11: 33.15 | Q11: 0.00 | R11: 0.00 | S11: 0.00 | T11: 0.00 | U11: 0.00
B12: 0.01 | C12: 9.99 | E12: 7.00 | F12: 0.00 | G12: 0.00 | H12: 0.00 | I12: 0.00 | J12: 0.00 | M12: 1,310.00 | N12: 1,319.99 | P12: 40.15 | Q12: 0.00 | R12: 0.00 | S12: 0.00 | T12: 0.00 | U12: 0.00
B13: 0.01 | C13: 9.99 | E13: 7.00 | F13: 0.00 | G13: 0.00 | H13: 0.00 | I13: 0.00 | J13: 0.00 | M13: 1,320.00 | N13: 1,329.99 | P13: 47.15 | Q13: 0.00 | R13: 0.00 | S13: 0.00 | T13: 0.00 | U13: 0.00
B14: 0.01 | C14: 9.99 | E14: 7.00 | F14: 0.00 | G14: 0.00 | H14: 0.00 | I14: 0.00 | J14: 0.00 | M14: 1,330.00 | N14: 1,339.99 | P14: 54.15 | Q14: 0.00 | R14: 0.00 | S14: 0.00 | T14: 0.00 | U14: 0.00
B15: 0.01 | C15: 9.99 | E15: 7.00 | F15: 0.00 | G15: 0.00 | H15: 0.00 | I15: 0.00 | J15: 0.00 | M15: 1,340.00 | N15: 1,349.99 | P15: 61.15 | Q15: 0.00 | R15: 0.00 | S15: 0.00 | T15: 0.00 | U15: 0.00
B16: 0.01 | C16: 9.99 | E16: 7.00 | F16: 0.00 | G16: 0.00 | H16: 0.00 | I16: 0.00 | J16: 0.00 | M16: 1,350.00 | N16: 1,359.99 | P16: 68.15 | Q16: 0.00 | R16: 0.00 | S16: 0.00 | T16: 0.00 | U16: 0.00
B17: 0.01 | C17: 9.99 | E17: 7.00 | F17: 0.00 | G17: 0.00 | H17: 0.00 | I17: 0.00 | J17: 0.00 | M17: 1,360.00 | N17: 1,369.99 | P17: 75.15 | Q17: 0.00 | R17: 0.00 | S17: 0.00 | T17: 0.00 | U17: 0.00
B18: 0.01 | C18: 9.99 | E18: 7.00 | F18: 0.00 | G18: 0.00 | H18: 0.00 | I18: 0.00 | J18: 0.00 | M18: 1,370.00 | N18: 1,379.99 | P18: 82.15 | Q18: 0.00 | R18: 0.00 | S18: 0.00 | T18: 0.00 | U18: 0.00
B19: 0.01 | C19: 9.99 | E19: 7.00 | F19: 0.00 | G19: 0.00 | H19: 0.00 | I19: 0.00 | J19: 0.00 | M19: 1,380.00 | N19: 1,389.99 | P19: 89.15 | Q19: 0.00 | R19: 0.00 | S19: 0.00 | T19: 0.00 | U19: 0.00
B20: 0.01 | C20: 9.99 | E20: 7.00 | F20: 0.00 | G20: 0.00 | H20: 0.00 | I20: 0.00 | J20: 0.00 | M20: 1,390.00 | N20: 1,399.99 | P20: 96.15 | Q20: 0.00 | R20: 0.00 | S20: 0.00 | T20: 0.00 | U20: 0.00
B21: 0.01 | C21: 9.99 | E21: 7.00 | F21: 0.00 | G21: 0.00 | H21: 0.00 | I21: 0.00 | J21: 0.00 | M21: 1,400.00 | N21: 1,409.99 | P21: 103.15 | Q21: 0.00 | R21: 0.00 | S21: 0.00 | T21: 0.00 | U21: 0.00
B22: 0.01 | C22: 9.99 | E22: 7.00 | F22: 0.00 | G22: 0.00 | H22: 0.00 | I22: 0.00 | J22: 0.00 | M22: 1,410.00 | N22: 1,419.99 | P22: 110.15 | Q22: 0.00 | R22: 0.00 | S22: 0.00 | T22: 0.00 | U22: 0.00
B23: 0.01 | C23: 9.99 | E23: 7.00 | F23: 0.00 | G23: 0.00 | H23: 0.00 | I23: 0.00 | J23: 0.00 | M23: 1,420.00 | N23: 1,429.99 | P23: 117.15 | Q23: 0.00 | R23: 0.00 | S23: 0.00 | T23: 0.00 | U23: 0.00
B24: 0.01 | C24: 9.99 | E24: 7.00 | F24: 0.00 | G24: 0.00 | H24: 0.00 | I24: 0.00 | J24: 0.00 | M24: 1,430.00 | N24: 1,439.99 | P24: 124.15 | Q24: 0.00 | R24: 0.00 | S24: 0.00 | T24: 0.00 | U24: 0.00
B25: 0.01 | C25: 9.99 | E25: 7.00 | F25: 0.00 | G25: 0.00 | H25: 0.00 | I25: 0.00 | J25: 0.00 | M25: 1,440.00 | N25: 1,449.99 | P25: 131.15 | Q25: 0.00 | R25: 0.00 | S25: 0.00 | T25: 0.00 | U25: 0.00
B26: 0.01 | C26: 9.99 | E26: 7.00 | F26: 0.00 | G26: 0.00 | H26: 0.00 | I26: 0.00 | J26: 0.00 | M26: 1,450.00 | N26: 1,459.99 | P26: 138.15 | Q26: 0.00 | R26: 0.00 | S26: 0.00 | T26: 0.00 | U26: 0.00
B27: 0.01 | C27: 9.99 | E27: 7.00 | F27: 0.00 | G27: 0.00 | H27: 0.00 | I27: 0.00 | J27: 0.00 | M27: 1,460.00 | N27: 1,469.99 | P27: 145.15 | Q27: 0.00 | R27: 0.00 | S27: 0.00 | T27: 0.00 | U27: 0.00
B28: 0.01 | C28: 9.99 | E28: 7.00 | F28: 0.00 | G28: 0.00 | H28: 0.00 | I28: 0.00 | J28: 0.00 | M28: 1,470.00 | N28: 1,479.99 | P28: 152.15 | Q28: 0.00 | R28: 0.00 | S28: 0.00 | T28: 0.00 | U28: 0.00
B29: 0.01 | C29: 9.99 | E29: 7.00 | F29: 0.00 | G29: 0.00 | H29: 0.00 | I29: 0.00 | J29: 0.00 | M29: 1,480.00 | N29: 1,489.99 | P29: 159.15 | Q29: 0.00 | R29: 0.00 | S29: 0.00 | T29: 0.00 | U29: 0.00
B30: 0.01 | C30: 9.99 | E30: 7.00 | F30: 0.00 | G30: 0.00 | H30: 0.00 | I30: 0.00 | J30: 0.00 | M30: 1,490.00 | N30: 1,499.99 | P30: 166.15 | Q30: 0.00 | R30: 0.00 | S30: 0.00 | T30: 0.00 | U30: 0.00
B31: 0.01 | C31: 9.99 | E31: 7.00 | F31: 0.00 | G31: 0.00 | H31: 0.00 | I31: 0.00 | J31: 0.00 | M31: 1,500.00 | N31: 1,509.99 | P31: 173.15 | Q31: 0.00 | R31: 0.00 | S31: 0.00 | T31: 0.00 | U31: 0.00
B32: 0.01 | C32: 9.99 | E32: 7.00 | F32: 0.00 | G32: 0.00 | H32: 0.00 | I32: 0.00 | J32: 0.00 | M32: 1,510.00 | N32: 1,519.99 | P32: 180.15 | Q32: 0.00 | R32: 0.00 | S32: 0.00 | T32: 0.00 | U32: 0.00
B33: 0.01 | C33: 9.99 | E33: 7.00 | F33: 0.00 | G33: 0.00 | H33: 0.00 | I33: 0.00 | J33: 0.00 | M33: 1,520.00 | N33: 1,529.99 | P33: 187.15 | Q33: 0.00 | R33: 0.00 | S33: 0.00 | T33: 0.00 | U33: 0.00
B34: 0.01 | C34: 9.99 | E34: 7.00 | F34: 0.00 | G34: 0.00 | H34: 0.00 | I34: 0.00 | J34: 0.00 | M34: 1,530.00 | N34: 1,539.99 | P34: 194.15 | Q34: 0.00 | R34: 0.00 | S34: 0.00 | T34: 0.00 | U34: 0.00
B35: 0.01 | C35: 9.99 | E35: 7.00 | F35: 0.00 | G35: 0.00 | H35: 0.00 | I35: 0.00 | J35: 0.00 | M35: 1,540.00 | N35: 1,549.99 | P35: 201.15 | Q35: 0.00 | R35: 0.00 | S35: 0.00 | T35: 0.00 | U35: 0.00
B36: 0.01 | C36: 9.99 | E36: 7.00 | F36: 0.00 | G36: 0.00 | H36: 0.00 | I36: 0.00 | J36: 0.00 | M36: 1,550.00 | N36: 1,559.99 | P36: 208.15 | Q36: 0.00 | R36: 0.00 | S36: 0.00 | T36: 0.00 | U36: 0.00
B37: 0.01 | C37: 9.99 | E37: 7.00 | F37: 0.00 | G37: 0.00 | H37: 0.00 | I37: 0.00 | J37: 0.00 | M37: 1,560.00 | N37: 1,569.99 | P37: 215.15 | Q37: 0.00 | R37: 0.00 | S37: 0.00 | T37: 0.00 | U37: 0.00
B38: 0.01 | C38: 9.99 | E38: 7.00 | F38: 0.00 | G38: 0.00 | H38: 0.00 | I38: 0.00 | J38: 0.00 | M38: 1,570.00 | N38: 1,579.99 | P38: 222.15 | Q38: 0.00 | R38: 0.00 | S38: 0.00 | T38: 0.00 | U38: 0.00
B39: 0.01 | C39: 9.99 | E39: 7.00 | F39: 0.00 | G39: 0.00 | H39: 0.00 | I39: 0.00 | J39: 0.00 | M39: 1,580.00 | N39: 1,589.99 | P39: 229.15 | Q39: 0.00 | R39: 0.00 | S39: 0.00 | T39: 0.00 | U39: 0.00
B40: 0.01 | C40: 9.99 | E40: 7.00 | F40: 0.00 | G40: 0.00 | H40: 0.00 | I40: 0.00 | J40: 0.00 | M40: 1,590.00 | N40: 1,599.99 | P40: 236.15 | Q40: 0.00 | R40: 0.00 | S40: 0.00 | T40: 0.00 | U40: 0.00
B41: 0.01 | C41: 9.99 | E41: 7.00 | F41: 0.00 | G41: 0.00 | H41: 0.00 | I41: 0.00 | J41: 0.00 | M41: 1,600.00 | N41: 1,609.99 | P41: 243.15 | Q41: 0.00 | R41: 0.00 | S41: 0.00 | T41: 0.00 | U41: 0.00
B42: 0.01 | C42: 9.99 | E42: 7.00 | F42: 0.00 | G42: 0.00 | H42: 0.00 | I42: 0.00 | J42: 0.00 | M42: 1,610.00 | N42: 1,619.99 | P42: 250.15 | Q42: 0.00 | R42: 0.00 | S42: 0.00 | T42: 0.00 | U42: 0.00
B43: 0.01 | C43: 9.99 | E43: 7.00 | F43: 0.00 | G43: 0.00 | H43: 0.00 | I43: 0.00 | J43: 0.00 | M43: 1,620.00 | N43: 1,629.99 | P43: 257.15 | Q43: 0.00 | R43: 0.00 | S43: 0.00 | T43: 0.00 | U43: 0.00
B44: 0.01 | C44: 9.99 | E44: 7.00 | F44: 2.05 | G44: 0.00 | H44: 0.00 | I44: 0.00 | J44: 0.00 | M44: 1,630.00 | N44: 1,639.99 | P44: 264.15 | Q44: 0.00 | R44: 0.00 | S44: 0.00 | T44: 0.00 | U44: 0.00
B45: 0.01 | C45: 9.99 | E45: 7.00 | F45: 5.00 | G45: 0.00 | H45: 0.00 | I45: 0.00 | J45: 0.00 | M45: 1,640.00 | N45: 1,649.99 | P45: 271.15 | Q45: 0.00 | R45: 0.00 | S45: 0.00 | T45: 0.00 | U45: 0.00
B46: 0.01 | C46: 9.99 | E46: 7.00 | F46: 5.00 | G46: 0.00 | H46: 0.00 | I46: 0.00 | J46: 0.00 | M46: 1,650.00 | N46: 1,659.99 | P46: 278.15 | Q46: 0.00 | R46: 0.00 | S46: 0.00 | T46: 0.00 | U46: 0.00
B47: 0.01 | C47: 9.99 | E47: 7.00 | F47: 5.00 | G47: 0.00 | H47: 0.00 | I47: 0.00 | J47: 0.00 | M47: 1,660.00 | N47: 1,669.99 | P47: 285.15 | Q47: 0.00 | R47: 0.00 | S47: 0.00 | T47: 0.00 | U47: 0.00
B48: 0.01 | C48: 9.99 | E48: 7.00 | F48: 5.00 | G48: 0.00 | H48: 0.00 | I48: 0.00 | J48: 0.00 | M48: 1,670.00 | N48: 1,679.99 | P48: 292.15 | Q48: 0.00 | R48: 0.00 | S48: 0.00 | T48: 0.00 | U48: 0.00
B49: 0.01 | C49: 9.99 | E49: 7.00 | F49: 5.00 | G49: 0.00 | H49: 0.00 | I49: 0.00 | J49: 0.00 | M49: 1,680.00 | N49: 1,689.99 | P49: 299.15 | Q49: 0.00 | R49: 0.00 | S49: 0.00 | T49: 0.00 | U49: 0.00
B50: 0.01 | C50: 9.99 | E50: 7.00 | F50: 5.00 | G50: 0.00 | H50: 0.00 | I50: 0.00 | J50: 0.00 | M50: 1,690.00 | N50: 1,699.99 | P50: 306.15 | Q50: 0.00 | R50: 0.00 | S50: 0.00 | T50: 0.00 | U50: 0.00
B51: 0.01 | C51: 9.99 | E51: 7.00 | F51: 5.00 | G51: 0.00 | H51: 0.00 | I51: 0.00 | J51: 0.00 | M51: 1,700.00 | N51: 1,709.99 | P51: 313.15 | Q51: 0.00 | R51: 0.00 | S51: 0.00 | T51: 0.00 | U51: 0.00
B52: 0.01 | C52: 9.99 | E52: 7.00 | F52: 5.00 | G52: 0.00 | H52: 0.00 | I52: 0.00 | J52: 0.00 | M52: 1,710.00 | N52: 1,719.99 | P52: 320.15 | Q52: 0.00 | R52: 0.00 | S52: 0.00 | T52: 0.00 | U52: 0.00
B53: 0.01 | C53: 9.99 | E53: 7.00 | F53: 5.00 | G53: 0.00 | H53: 0.00 | I53: 0.00 | J53: 0.00 | M53: 1,720.00 | N53: 1,729.99 | P53: 327.15 | Q53: 0.00 | R53: 0.00 | S53: 0.00 | T53: 0.00 | U53: 0.00
B54: 0.01 | C54: 9.99 | E54: 7.00 | F54: 5.00 | G54: 0.00 | H54: 0.00 | I54: 0.00 | J54: 0.00 | M54: 1,730.00 | N54: 1,739.99 | P54: 334.15 | Q54: 2.96 | R54: 0.00 | S54: 0.00 | T54: 0.00 | U54: 0.00
B55: 0.01 | C55: 9.99 | E55: 7.00 | F55: 5.00 | G55: 0.00 | H55: 0.00 | I55: 0.00 | J55: 0.00 | M55: 1,740.00 | N55: 1,749.99 | P55: 341.15 | Q55: 7.96 | R55: 0.00 | S55: 0.00 | T55: 0.00 | U55: 0.00
B56: 0.01 | C56: 9.99 | E56: 7.00 | F56: 5.00 | G56: 0.00 | H56: 0.00 | I56: 0.00 | J56: 0.00 | M56: 1,750.00 | N56: 1,759.99 | P56: 348.15 | Q56: 12.96 | R56: 0.00 | S56: 0.00 | T56: 0.00 | U56: 0.00
B57: 0.01 | C57: 9.99 | E57: 7.00 | F57: 5.00 | G57: 0.00 | H57: 0.00 | I57: 0.00 | J57: 0.00 | M57: 1,760.00 | N57: 1,769.99 | P57: 355.15 | Q57: 17.96 | R57: 0.00 | S57: 0.00 | T57: 0.00 | U57: 0.00
B58: 0.01 | C58: 9.99 | E58: 7.00 | F58: 5.00 | G58: 0.00 | H58: 0.00 | I58: 0.00 | J58: 0.00 | M58: 1,770.00 | N58: 1,779.99 | P58: 362.15 | Q58: 22.96 | R58: 0.00 | S58: 0.00 | T58: 0.00 | U58: 0.00
B59: 0.01 | C59: 9.99 | E59: 7.00 | F59: 5.00 | G59: 0.00 | H59: 0.00 | I59: 0.00 | J59: 0.00 | M59: 1,780.00 | N59: 1,789.99 | P59: 369.15 | Q59: 27.96 | R59: 0.00 | S59: 0.00 | T59: 0.00 | U59: 0.00
B60: 0.01 | C60: 9.99 | E60: 7.00 | F60: 5.00 | G60: 0.00 | H60: 0.00 | I60: 0.00 | J60: 0.00 | M60: 1,790.00 | N60: 1,799.99 | P60: 376.15 | Q60: 32.96 | R60: 0.00 | S60: 0.00 | T60: 0.00 | U60: 0.00
B61: 0.01 | C61: 9.99 | E61: 7.00 | F61: 5.00 | G61: 0.00 | H61: 0.00 | I61: 0.00 | J61: 0.00 | M61: 1,800.00 | N61: 1,809.99 | P61: 383.15 | Q61: 37.96 | R61: 0.00 | S61: 0.00 | T61: 0.00 | U61: 0.00
B62: 0.01 | C62: 9.99 | E62: 7.00 | F62: 5.00 | G62: 0.00 | H62: 0.00 | I62: 0.00 | J62: 0.00 | M62: 1,810.00 | N62: 1,819.99 | P62: 390.15 | Q62: 42.96 | R62: 0.00 | S62: 0.00 | T62: 0.00 | U62: 0.00
B63: 0.01 | C63: 9.99 | E63: 7.00 | F63: 5.00 | G63: 0.00 | H63: 0.00 | I63: 0.00 | J63: 0.00 | M63: 1,820.00 | N63: 1,829.99 | P63: 397.15 | Q63: 47.96 | R63: 0.00 | S63: 0.00 | T63: 0.00 | U63: 0.00
B64: 0.01 | C64: 9.99 | E64: 7.00 | F64: 5.00 | G64: 0.00 | H64: 0.00 | I64: 0.00 | J64: 0.00 | M64: 1,830.00 | N64: 1,839.99 | P64: 404.15 | Q64: 52.96 | R64: 0.00 | S64: 0.00 | T64: 0.00 | U64: 0.00
B65: 0.01 | C65: 9.99 | E65: 7.00 | F65: 5.00 | G65: 3.01 | H65: 0.00 | I65: 0.00 | J65: 0.00 | M65: 1,840.00 | N65: 1,849.99 | P65: 411.15 | Q65: 57.96 | R65: 0.00 | S65: 0.00 | T65: 0.00 | U65: 0.00
B66: 0.01 | C66: 9.99 | E66: 7.00 | F66: 5.00 | G66: 4.00 | H66: 0.00 | I66: 0.00 | J66: 0.00 | M66: 1,850.00 | N66: 1,859.99 | P66: 418.15 | Q66: 62.96 | R66: 0.00 | S66: 0.00 | T66: 0.00 | U66: 0.00
B67: 0.01 | C67: 9.99 | E67: 7.00 | F67: 5.00 | G67: 4.00 | H67: 0.00 | I67: 0.00 | J67: 0.00 | M67: 1,860.00 | N67: 1,869.99 | P67: 425.15 | Q67: 67.96 | R67: 0.00 | S67: 0.00 | T67: 0.00 | U67: 0.00
B68: 0.01 | C68: 9.99 | E68: 7.00 | F68: 5.00 | G68: 4.00 | H68: 0.00 | I68: 0.00 | J68: 0.00 | M68: 1,870.00 | N68: 1,879.99 | P68: 432.15 | Q68: 72.96 | R68: 0.00 | S68: 0.00 | T68: 0.00 | U68: 0.00
B69: 0.01 | C69: 9.99 | E69: 7.00 | F69: 5.00 | G69: 4.00 | H69: 0.00 | I69: 0.00 | J69: 0.00 | M69: 1,880.00 | N69: 1,889.99 | P69: 439.15 | Q69: 77.96 | R69: 0.00 | S69: 0.00 | T69: 0.00 | U69: 0.00
B70: 0.01 | C70: 9.99 | E70: 7.00 | F70: 5.00 | G70: 4.00 | H70: 0.00 | I70: 0.00 | J70: 0.00 | M70: 1,890.00 | N70: 1,899.99 | P70: 446.15 | Q70: 82.96 | R70: 0.00 | S70: 0.00 | T70: 0.00 | U70: 0.00
B71: 0.01 | C71: 9.99 | E71: 7.00 | F71: 5.00 | G71: 4.00 | H71: 0.00 | I71: 0.00 | J71: 0.00 | M71: 1,900.00 | N71: 1,909.99 | P71: 453.15 | Q71: 87.96 | R71: 0.00 | S71: 0.00 | T71: 0.00 | U71: 0.00
B72: 0.01 | C72: 9.99 | E72: 7.00 | F72: 5.00 | G72: 4.00 | H72: 0.00 | I72: 0.00 | J72: 0.00 | M72: 1,910.00 | N72: 1,919.99 | P72: 460.15 | Q72: 92.96 | R72: 0.00 | S72: 0.00 | T72: 0.00 | U72: 0.00
B73: 0.01 | C73: 9.99 | E73: 7.00 | F73: 5.00 | G73: 4.00 | H73: 0.00 | I73: 0.00 | J73: 0.00 | M73: =10+M72 -> 1,920.00 | N73: 1,929.99 | P73: 467.15 | Q73: 97.96 | R73: 0.00 | S73: 0.00 | T73: 0.00 | U73: 0.00
B74: 0.01 | C74: 9.99 | E74: 7.00 | F74: 5.00 | G74: 4.00 | H74: 0.00 | I74: 0.00 | J74: 0.00 | M74: 1,930.00 | N74: 1,939.99 | P74: 474.15 | Q74: 102.96 | R74: 0.00 | S74: 0.00 | T74: 0.00 | U74: 0.00
B75: 0.01 | C75: 9.99 | E75: 7.00 | F75: 5.00 | G75: 4.00 | H75: 0.00 | I75: 0.00 | J75: 0.00 | M75: 1,940.00 | N75: 1,949.99 | P75: 481.15 | Q75: 107.96 | R75: 0.00 | S75: 0.00 | T75: 0.00 | U75: 0.00
B76: 0.01 | C76: 9.99 | E76: 7.00 | F76: 5.00 | G76: 4.00 | H76: 0.00 | I76: 0.00 | J76: 0.00 | M76: 1,950.00 | N76: 1,959.99 | P76: 488.15 | Q76: 112.96 | R76: 0.00 | S76: 0.00 | T76: 0.00 | U76: 0.00
B77: 0.01 | C77: 9.99 | E77: 7.00 | F77: 5.00 | G77: 4.00 | H77: 0.00 | I77: 0.00 | J77: 0.00 | M77: 1,960.00 | N77: 1,969.99 | P77: 495.15 | Q77: 117.96 | R77: 0.00 | S77: 0.00 | T77: 0.00 | U77: 0.00
B78: 0.01 | C78: 9.99 | E78: 7.00 | F78: 5.00 | G78: 4.00 | H78: 0.00 | I78: 0.00 | J78: 0.00 | M78: 1,970.00 | N78: 1,979.99 | P78: 502.15 | Q78: 122.96 | R78: 0.00 | S78: 0.00 | T78: 0.00 | U78: 0.00
B79: 0.01 | C79: 9.99 | E79: 7.00 | F79: 5.00 | G79: 4.00 | H79: 0.00 | I79: 0.00 | J79: 0.00 | M79: 1,980.00 | N79: 1,989.99 | P79: 509.15 | Q79: 127.96 | R79: 0.00 | S79: 0.00 | T79: 0.00 | U79: 0.00
B80: 0.01 | C80: 9.99 | E80: 7.00 | F80: 5.00 | G80: 4.00 | H80: 0.00 | I80: 0.00 | J80: 0.00 | M80: 1,990.00 | N80: 1,999.99 | P80: 516.15 | Q80: 132.96 | R80: 1.31 | S80: 0.00 | T80: 0.00 | U80: 0.00
B81: 0.01 | C81: 9.99 | E81: 7.00 | F81: 5.00 | G81: 4.00 | H81: 0.00 | I81: 0.00 | J81: 0.00 | M81: 2,000.00 | N81: 2,009.99 | P81: 523.15 | Q81: 137.96 | R81: 5.31 | S81: 0.00 | T81: 0.00 | U81: 0.00
B82: 0.01 | C82: 9.99 | E82: 7.00 | F82: 5.00 | G82: 4.00 | H82: 0.00 | I82: 0.00 | J82: 0.00 | M82: 2,010.00 | N82: 2,019.99 | P82: 530.15 | Q82: 142.96 | R82: 9.31 | S82: 0.00 | T82: 0.00 | U82: 0.00
B83: 0.01 | C83: 9.99 | E83: 7.00 | F83: 5.00 | G83: 4.00 | H83: 0.00 | I83: 0.00 | J83: 0.00 | M83: 2,020.00 | N83: 2,029.99 | P83: 537.15 | Q83: 147.96 | R83: 13.31 | S83: 0.00 | T83: 0.00 | U83: 0.00
B84: 0.01 | C84: 9.99 | E84: 7.00 | F84: 5.00 | G84: 4.00 | H84: 0.00 | I84: 0.00 | J84: 0.00 | M84: 2,030.00 | N84: 2,039.99 | P84: 544.15 | Q84: 152.96 | R84: 17.31 | S84: 0.00 | T84: 0.00 | U84: 0.00
B85: 0.01 | C85: 9.99 | E85: 7.00 | F85: 5.00 | G85: 4.00 | H85: 0.29 | I85: 0.00 | J85: 0.00 | M85: 2,040.00 | N85: 2,049.99 | P85: 551.15 | Q85: 157.96 | R85: 21.31 | S85: 0.00 | T85: 0.00 | U85: 0.00
B86: 0.01 | C86: 9.99 | E86: 7.00 | F86: 5.00 | G86: 4.00 | H86: 3.00 | I86: 0.00 | J86: 0.00 | M86: 2,050.00 | N86: 2,059.99 | P86: 558.15 | Q86: 162.96 | R86: 25.31 | S86: 0.00 | T86: 0.00 | U86: 0.00
B87: 0.01 | C87: 9.99 | E87: 7.00 | F87: 5.00 | G87: 4.00 | H87: 3.00 | I87: 0.00 | J87: 0.00 | M87: 2,060.00 | N87: 2,069.99 | P87: 565.15 | Q87: 167.96 | R87: 29.31 | S87: 0.00 | T87: 0.00 | U87: 0.00
B88: 0.01 | C88: 9.99 | E88: 7.00 | F88: 5.00 | G88: 4.00 | H88: 3.00 | I88: 0.00 | J88: 0.00 | M88: 2,070.00 | N88: 2,079.99 | P88: 572.15 | Q88: 172.96 | R88: 33.31 | S88: 0.00 | T88: 0.00 | U88: 0.00
B89: 0.01 | C89: 9.99 | E89: 7.00 | F89: 5.00 | G89: 4.00 | H89: 3.00 | I89: 0.00 | J89: 0.00 | M89: =10+M88 -> 2,080.00 | N89: 2,089.99 | P89: 579.15 | Q89: 177.96 | R89: 37.31 | S89: 0.00 | T89: 0.00 | U89: 0.00
B90: 0.01 | C90: 9.99 | E90: 7.00 | F90: 5.00 | G90: 4.00 | H90: 3.00 | I90: 0.00 | J90: 0.00 | M90: 2,090.00 | N90: 2,099.99 | P90: 586.15 | Q90: 182.96 | R90: 41.31 | S90: 0.00 | T90: 0.00 | U90: 0.00
B91: 0.01 | C91: 9.99 | E91: 7.00 | F91: 5.00 | G91: 4.00 | H91: 3.00 | I91: 0.00 | J91: 0.00 | M91: 2,100.00 | N91: 2,109.99 | P91: 593.15 | Q91: 187.96 | R91: 45.31 | S91: 0.00 | T91: 0.00 | U91: 0.00
B92: 0.01 | C92: 9.99 | E92: 7.00 | F92: 5.00 | G92: 4.00 | H92: 3.00 | I92: 0.00 | J92: 0.00 | M92: 2,110.00 | N92: 2,119.99 | P92: 600.15 | Q92: 192.96 | R92: 49.31 | S92: 0.00 | T92: 0.00 | U92: 0.00
B93: 0.01 | C93: 9.99 | E93: 7.00 | F93: 5.00 | G93: 4.00 | H93: 3.00 | I93: 0.00 | J93: 0.00 | M93: 2,120.00 | N93: 2,129.99 | P93: 607.15 | Q93: 197.96 | R93: 53.31 | S93: 0.00 | T93: 0.00 | U93: 0.00
B94: 0.01 | C94: 9.99 | E94: 7.00 | F94: 5.00 | G94: 4.00 | H94: 3.00 | I94: 0.00 | J94: 0.00 | M94: 2,130.00 | N94: 2,139.99 | P94: 614.15 | Q94: 202.96 | R94: 57.31 | S94: 0.00 | T94: 0.00 | U94: 0.00
B95: 0.01 | C95: 9.99 | E95: 7.00 | F95: 5.00 | G95: 4.00 | H95: 3.00 | I95: 0.00 | J95: 0.00 | M95: 2,140.00 | N95: 2,149.99 | P95: 621.15 | Q95: 207.96 | R95: 61.31 | S95: 0.00 | T95: 0.00 | U95: 0.00
B96: 0.01 | C96: 9.99 | E96: 7.00 | F96: 5.00 | G96: 4.00 | H96: 3.00 | I96: 0.00 | J96: 0.00 | M96: 2,150.00 | N96: 2,159.99 | P96: 628.15 | Q96: 212.96 | R96: 65.31 | S96: 0.00 | T96: 0.00 | U96: 0.00
B97: 0.01 | C97: 9.99 | E97: 7.00 | F97: 5.00 | G97: 4.00 | H97: 3.00 | I97: 0.00 | J97: 0.00 | M97: 2,160.00 | N97: 2,169.99 | P97: 635.15 | Q97: 217.96 | R97: 69.31 | S97: 0.00 | T97: 0.00 | U97: 0.00
B98: 0.01 | C98: 9.99 | E98: 7.00 | F98: 5.00 | G98: 4.00 | H98: 3.00 | I98: 0.00 | J98: 0.00 | M98: 2,170.00 | N98: 2,179.99 | P98: 642.15 | Q98: 222.96 | R98: 73.31 | S98: 0.00 | T98: 0.00 | U98: 0.00
B99: 0.01 | C99: 9.99 | E99: 7.00 | F99: 5.00 | G99: 4.00 | H99: 3.00 | I99: 0.00 | J99: 0.00 | M99: 2,180.00 | N99: 2,189.99 | P99: 649.15 | Q99: 227.96 | R99: 77.31 | S99: 0.00 | T99: 0.00 | U99: 0.00
B100: 0.01 | C100: 9.99 | E100: 7.00 | F100: 5.00 | G100: 4.00 | H100: 3.00 | I100: 0.00 | J100: 0.00 | M100: 2,190.00 | N100: 2,199.99 | P100: 656.15 | Q100: 232.96 | R100: 81.31 | S100: 0.00 | T100: 0.00 | U100: 0.00
B101: 0.01 | C101: 9.99 | E101: 7.00 | F101: 5.00 | G101: 4.00 | H101: 3.00 | I101: 0.00 | J101: 0.00 | M101: 2,200.00 | N101: 2,209.99 | P101: 663.15 | Q101: 237.96 | R101: 85.31 | S101: 0.00 | T101: 0.00 | U101: 0.00
B102: 0.01 | C102: 9.99 | E102: 7.00 | F102: 5.00 | G102: 4.00 | H102: 3.00 | I102: 0.00 | J102: 0.00 | M102: 2,210.00 | N102: 2,219.99 | P102: 670.15 | Q102: 242.96 | R102: 89.31 | S102: 0.00 | T102: 0.00 | U102: 0.00
B103: 0.01 | C103: 9.99 | E103: 7.00 | F103: 5.00 | G103: 4.00 | H103: 3.00 | I103: 0.00 | J103: 0.00 | M103: 2,220.00 | N103: 2,229.99 | P103: 677.15 | Q103: 247.96 | R103: 93.31 | S103: 0.00 | T103: 0.00 | U103: 0.00
B104: 0.01 | C104: 9.99 | E104: 7.00 | F104: 5.00 | G104: 4.00 | H104: 3.00 | I104: 0.00 | J104: 0.00 | M104: 2,230.00 | N104: 2,239.99 | P104: 684.15 | Q104: 252.96 | R104: 97.31 | S104: 0.00 | T104: 0.00 | U104: 0.00
B105: 0.01 | C105: 9.99 | E105: 7.00 | F105: 5.00 | G105: 4.00 | H105: 3.00 | I105: 0.00 | J105: 0.00 | M105: =10+M104 -> 2,240.00 | N105: 2,249.99 | P105: 691.15 | Q105: 257.96 | R105: 101.31 | S105: 0.00 | T105: 0.00 | U105: 0.00
B106: 0.01 | C106: 9.99 | E106: 7.00 | F106: 5.00 | G106: 4.00 | H106: 3.00 | I106: 0.88 | J106: 0.00 | M106: 2,250.00 | N106: 2,259.99 | P106: 698.15 | Q106: 262.96 | R106: 105.31 | S106: 0.19 | T106: 0.00 | U106: 0.00
B107: 0.01 | C107: 9.99 | E107: 7.00 | F107: 5.00 | G107: 4.00 | H107: 3.00 | I107: 2.00 | J107: 0.00 | M107: 2,260.00 | N107: 2,269.99 | P107: 705.15 | Q107: 267.96 | R107: 109.31 | S107: 3.19 | T107: 0.00 | U107: 0.00
B108: 0.01 | C108: 9.99 | E108: 7.00 | F108: 5.00 | G108: 4.00 | H108: 3.00 | I108: 2.00 | J108: 0.00 | M108: 2,270.00 | N108: 2,279.99 | P108: 712.15 | Q108: 272.96 | R108: 113.31 | S108: 6.19 | T108: 0.00 | U108: 0.00
B109: 0.01 | C109: 9.99 | E109: 7.00 | F109: 5.00 | G109: 4.00 | H109: 3.00 | I109: 2.00 | J109: 0.00 | M109: 2,280.00 | N109: 2,289.99 | P109: 719.15 | Q109: 277.96 | R109: 117.31 | S109: 9.19 | T109: 0.00 | U109: 0.00
B110: 0.01 | C110: 9.99 | E110: 7.00 | F110: 5.00 | G110: 4.00 | H110: 3.00 | I110: 2.00 | J110: 0.00 | M110: 2,290.00 | N110: 2,299.99 | P110: 726.15 | Q110: 282.96 | R110: 121.31 | S110: 12.19 | T110: 0.00 | U110: 0.00
B111: 0.01 | C111: 9.99 | E111: 7.00 | F111: 5.00 | G111: 4.00 | H111: 3.00 | I111: 2.00 | J111: 0.00 | M111: 2,300.00 | N111: 2,309.99 | P111: 733.15 | Q111: 287.96 | R111: 125.31 | S111: 15.19 | T111: 0.00 | U111: 0.00
B112: 0.01 | C112: 9.99 | E112: 7.00 | F112: 5.00 | G112: 4.00 | H112: 3.00 | I112: 2.00 | J112: 0.00 | M112: 2,310.00 | N112: 2,319.99 | P112: 740.15 | Q112: 292.96 | R112: 129.31 | S112: 18.19 | T112: 0.00 | U112: 0.00
B113: 0.01 | C113: 9.99 | E113: 7.00 | F113: 5.00 | G113: 4.00 | H113: 3.00 | I113: 2.00 | J113: 0.00 | M113: 2,320.00 | N113: 2,329.99 | P113: 747.15 | Q113: 297.96 | R113: 133.31 | S113: 21.19 | T113: 0.00 | U113: 0.00
B114: 0.01 | C114: 9.99 | E114: 7.00 | F114: 5.00 | G114: 4.00 | H114: 3.00 | I114: 2.00 | J114: 0.00 | M114: 2,330.00 | N114: 2,339.99 | P114: 754.15 | Q114: 302.96 | R114: 137.31 | S114: 24.19 | T114: 0.00 | U114: 0.00
B115: 0.01 | C115: 9.99 | E115: 7.00 | F115: 5.00 | G115: 4.00 | H115: 3.00 | I115: 2.00 | J115: 0.00 | M115: 2,340.00 | N115: 2,349.99 | P115: 761.15 | Q115: 307.96 | R115: 141.31 | S115: 27.19 | T115: 0.00 | U115: 0.00
B116: 0.01 | C116: 9.99 | E116: 7.00 | F116: 5.00 | G116: 4.00 | H116: 3.00 | I116: 2.00 | J116: 0.00 | M116: 2,350.00 | N116: 2,359.99 | P116: 768.15 | Q116: 312.96 | R116: 145.31 | S116: 30.19 | T116: 0.00 | U116: 0.00
B117: 0.01 | C117: 9.99 | E117: 7.00 | F117: 5.00 | G117: 4.00 | H117: 3.00 | I117: 2.00 | J117: 0.00 | M117: 2,360.00 | N117: 2,369.99 | P117: 775.15 | Q117: 317.96 | R117: 149.31 | S117: 33.19 | T117: 0.00 | U117: 0.00
B118: 0.01 | C118: 9.99 | E118: 7.00 | F118: 5.00 | G118: 4.00 | H118: 3.00 | I118: 2.00 | J118: 0.00 | M118: 2,370.00 | N118: 2,379.99 | P118: 782.15 | Q118: 322.96 | R118: 153.31 | S118: 36.19 | T118: 0.00 | U118: 0.00
B119: 0.01 | C119: 9.99 | E119: 7.00 | F119: 5.00 | G119: 4.00 | H119: 3.00 | I119: 2.00 | J119: 0.00 | M119: 2,380.00 | N119: 2,389.99 | P119: 789.15 | Q119: 327.96 | R119: 157.31 | S119: 39.19 | T119: 0.00 | U119: 0.00
B120: 0.01 | C120: 9.99 | E120: 7.00 | F120: 5.00 | G120: 4.00 | H120: 3.00 | I120: 2.00 | J120: 0.00 | M120: 2,390.00 | N120: 2,399.99 | P120: 796.15 | Q120: 332.96 | R120: 161.31 | S120: 42.19 | T120: 0.00 | U120: 0.00
B121: 0.01 | C121: 9.99 | E121: 7.00 | F121: 5.00 | G121: 4.00 | H121: 3.00 | I121: 2.00 | J121: 0.00 | M121: =10+M120 -> 2,400.00 | N121: 2,409.99 | P121: 803.15 | Q121: 337.96 | R121: 165.31 | S121: 45.19 | T121: 0.00 | U121: 0.00
B122: 0.01 | C122: 9.99 | E122: 7.00 | F122: 5.00 | G122: 4.00 | H122: 3.00 | I122: 2.00 | J122: 0.00 | M122: 2,410.00 | N122: 2,419.99 | P122: 810.15 | Q122: 342.96 | R122: 169.31 | S122: 48.19 | T122: 0.00 | U122: 0.00
B123: 0.01 | C123: 9.99 | E123: 7.00 | F123: 5.00 | G123: 4.00 | H123: 3.00 | I123: 2.00 | J123: 0.00 | M123: 2,420.00 | N123: 2,429.99 | P123: 817.15 | Q123: 347.96 | R123: 173.31 | S123: 51.19 | T123: 0.00 | U123: 0.00
B124: 0.01 | C124: 9.99 | E124: 7.00 | F124: 5.00 | G124: 4.00 | H124: 3.00 | I124: 2.00 | J124: 0.00 | M124: 2,430.00 | N124: 2,439.99 | P124: 824.15 | Q124: 352.96 | R124: 177.31 | S124: 54.19 | T124: 0.00 | U124: 0.00
B125: 0.01 | C125: 9.99 | E125: 7.00 | F125: 5.00 | G125: 4.00 | H125: 3.00 | I125: 2.00 | J125: 0.00 | M125: 2,440.00 | N125: 2,449.99 | P125: 831.15 | Q125: 357.96 | R125: 181.31 | S125: 57.19 | T125: 0.00 | U125: 0.00
B126: 0.01 | C126: 9.99 | E126: 7.00 | F126: 5.00 | G126: 4.00 | H126: 3.00 | I126: 2.00 | J126: 0.00 | M126: 2,450.00 | N126: 2,459.99 | P126: 838.15 | Q126: 362.96 | R126: 185.31 | S126: 60.19 | T126: 0.00 | U126: 0.00
B127: 0.01 | C127: 9.99 | E127: 7.00 | F127: 5.00 | G127: 4.00 | H127: 3.00 | I127: 2.00 | J127: 0.79 | M127: 2,460.00 | N127: 2,469.99 | P127: 845.15 | Q127: 367.96 | R127: 189.31 | S127: 63.19 | T127: 0.00 | U127: 0.00
B128: 0.01 | C128: 9.99 | E128: 7.00 | F128: 5.00 | G128: 4.00 | H128: 3.00 | I128: 2.00 | J128: 1.00 | M128: 2,470.00 | N128: 2,479.99 | P128: 852.15 | Q128: 372.96 | R128: 193.31 | S128: 66.19 | T128: 0.00 | U128: 0.00
B129: 0.01 | C129: 9.99 | E129: 7.00 | F129: 5.00 | G129: 4.00 | H129: 3.00 | I129: 2.00 | J129: 1.00 | M129: 2,480.00 | N129: 2,489.99 | P129: 859.15 | Q129: 377.96 | R129: 197.31 | S129: 69.19 | T129: 0.00 | U129: 0.00
B130: 0.01 | C130: 9.99 | E130: 7.00 | F130: 5.00 | G130: 4.00 | H130: 3.00 | I130: 2.00 | J130: 1.00 | M130: 2,490.00 | N130: 2,499.99 | P130: 866.15 | Q130: 382.96 | R130: 201.31 | S130: 72.19 | T130: 0.00 | U130: 0.00
B131: 0.01 | C131: 9.99 | E131: 7.00 | F131: 5.00 | G131: 4.00 | H131: 3.00 | I131: 2.00 | J131: 1.00 | M131: 2,500.00 | N131: 2,509.99 | P131: 873.15 | Q131: 387.96 | R131: 205.31 | S131: 75.19 | T131: 0.00 | U131: 0.00
B132: 0.01 | C132: 9.99 | E132: 7.00 | F132: 5.00 | G132: 4.00 | H132: 3.00 | I132: 2.00 | J132: 1.00 | M132: 2,510.00 | N132: 2,519.99 | P132: 880.15 | Q132: 392.96 | R132: 209.31 | S132: 78.19 | T132: 0.00 | U132: 0.00
B133: 0.01 | C133: 9.99 | E133: 7.00 | F133: 5.00 | G133: 4.00 | H133: 3.00 | I133: 2.00 | J133: 1.00 | M133: 2,520.00 | N133: 2,529.99 | P133: 887.15 | Q133: 397.96 | R133: 213.31 | S133: 81.19 | T133: 1.59 | U133: 0.00
B134: 0.01 | C134: 9.99 | E134: 7.00 | F134: 5.00 | G134: 4.00 | H134: 3.00 | I134: 2.00 | J134: 1.00 | M134: 2,530.00 | N134: 2,539.99 | P134: 894.15 | Q134: 402.96 | R134: 217.31 | S134: 84.19 | T134: 3.59 | U134: 0.00
B135: 0.01 | C135: 9.99 | E135: 7.00 | F135: 5.00 | G135: 4.00 | H135: 3.00 | I135: 2.00 | J135: 1.00 | M135: 2,540.00 | N135: 2,549.99 | P135: 901.15 | Q135: 407.96 | R135: 221.31 | S135: 87.19 | T135: 5.59 | U135: 0.00
B136: 0.01 | C136: 9.99 | E136: 7.00 | F136: 5.00 | G136: 4.00 | H136: 3.00 | I136: 2.00 | J136: 1.00 | M136: 2,550.00 | N136: 2,559.99 | P136: 908.15 | Q136: 412.96 | R136: 225.31 | S136: 90.19 | T136: 7.59 | U136: 0.00
B137: 0.01 | C137: 9.99 | E137: 7.00 | F137: 5.00 | G137: 4.00 | H137: 3.00 | I137: 2.00 | J137: 1.00 | M137: =10+M136 -> 2,560.00 | N137: 2,569.99 | P137: 915.15 | Q137: 417.96 | R137: 229.31 | S137: 93.19 | T137: 9.59 | U137: 0.00
B138: 0.01 | C138: 9.99 | E138: 7.00 | F138: 5.00 | G138: 4.00 | H138: 3.00 | I138: 2.00 | J138: 1.00 | M138: 2,570.00 | N138: 2,579.99 | P138: 922.15 | Q138: 422.96 | R138: 233.31 | S138: 96.19 | T138: 11.59 | U138: 0.00
B139: 0.01 | C139: 9.99 | E139: 7.00 | F139: 5.00 | G139: 4.00 | H139: 3.00 | I139: 2.00 | J139: 1.00 | M139: 2,580.00 | N139: 2,589.99 | P139: 929.15 | Q139: 427.96 | R139: 237.31 | S139: 99.19 | T139: 13.59 | U139: 0.00
B140: 0.01 | C140: 9.99 | E140: 7.00 | F140: 5.00 | G140: 4.00 | H140: 3.00 | I140: 2.00 | J140: 1.00 | M140: 2,590.00 | N140: 2,599.99 | P140: 936.15 | Q140: 432.96 | R140: 241.31 | S140: 102.19 | T140: 15.59 | U140: 0.00
B141: 0.01 | C141: 9.99 | E141: 7.00 | F141: 5.00 | G141: 4.00 | H141: 3.00 | I141: 2.00 | J141: 1.00 | M141: 2,600.00 | N141: 2,609.99 | P141: 943.15 | Q141: 437.96 | R141: 245.31 | S141: 105.19 | T141: 17.59 | U141: 0.00
B142: 0.01 | C142: 9.99 | E142: 7.00 | F142: 5.00 | G142: 4.00 | H142: 3.00 | I142: 2.00 | J142: 1.00 | M142: 2,610.00 | N142: 2,619.99 | P142: 950.15 | Q142: 442.96 | R142: 249.31 | S142: 108.19 | T142: 19.59 | U142: 0.00
B143: 0.01 | C143: 9.99 | E143: 7.00 | F143: 5.00 | G143: 4.00 | H143: 3.00 | I143: 2.00 | J143: 1.00 | M143: 2,620.00 | N143: 2,629.99 | P143: 957.15 | Q143: 447.96 | R143: 253.31 | S143: 111.19 | T143: 21.59 | U143: 0.00
B144: 0.01 | C144: 9.99 | E144: 7.00 | F144: 5.00 | G144: 4.00 | H144: 3.00 | I144: 2.00 | J144: 1.00 | M144: 2,630.00 | N144: 2,639.99 | P144: 964.15 | Q144: 452.96 | R144: 257.31 | S144: 114.19 | T144: 23.59 | U144: 0.00
B145: 0.01 | C145: 9.99 | E145: 7.00 | F145: 5.00 | G145: 4.00 | H145: 3.00 | I145: 2.00 | J145: 1.00 | M145: 2,640.00 | N145: 2,649.99 | P145: 971.15 | Q145: 457.96 | R145: 261.31 | S145: 117.19 | T145: 25.59 | U145: 0.00
B146: 0.01 | C146: 9.99 | E146: 7.00 | F146: 5.00 | G146: 4.00 | H146: 3.00 | I146: 2.00 | J146: 1.00 | M146: 2,650.00 | N146: 2,659.99 | P146: 978.15 | Q146: 462.96 | R146: 265.31 | S146: 120.19 | T146: 27.59 | U146: 0.00
B147: 0.01 | C147: 9.99 | E147: 7.00 | F147: 5.00 | G147: 4.00 | H147: 3.00 | I147: 2.00 | J147: 1.00 | M147: 2,660.00 | N147: 2,669.99 | P147: 985.15 | Q147: 467.96 | R147: 269.31 | S147: 123.19 | T147: 29.59 | U147: 0.00
B148: 0.01 | C148: 9.99 | E148: 7.00 | F148: 5.00 | G148: 4.00 | H148: 3.00 | I148: 2.00 | J148: 1.00 | M148: 2,670.00 | N148: 2,679.99 | P148: 992.15 | Q148: 472.96 | R148: 273.31 | S148: 126.19 | T148: 31.59 | U148: 0.00
B149: 0.01 | C149: 9.99 | E149: 7.00 | F149: 5.00 | G149: 4.00 | H149: 3.00 | I149: 2.00 | J149: 1.00 | M149: 2,680.00 | N149: 2,689.99 | P149: 999.15 | Q149: 477.96 | R149: 277.31 | S149: 129.19 | T149: 33.59 | U149: 0.00
B150: 0.01 | C150: 9.99 | E150: 7.00 | F150: 5.00 | G150: 4.00 | H150: 3.00 | I150: 2.00 | J150: 1.00 | M150: 2,690.00 | N150: 2,699.99 | P150: 1,006.15 | Q150: 482.96 | R150: 281.31 | S150: 132.19 | T150: 35.59 | U150: 0.00
B151: 0.01 | C151: 9.99 | E151: 7.00 | F151: 5.00 | G151: 4.00 | H151: 3.00 | I151: 2.00 | J151: 1.00 | M151: 2,700.00 | N151: 2,709.99 | P151: 1,013.15 | Q151: 487.96 | R151: 285.31 | S151: 135.19 | T151: 37.59 | U151: 0.00
B152: 0.01 | C152: 9.99 | E152: 7.00 | F152: 5.00 | G152: 4.00 | H152: 3.00 | I152: 2.00 | J152: 1.00 | M152: 2,710.00 | N152: 2,719.99 | P152: 1,020.15 | Q152: 492.96 | R152: 289.31 | S152: 138.19 | T152: 39.59 | U152: 0.00
B153: 0.01 | C153: 9.99 | E153: 7.00 | F153: 5.00 | G153: 4.00 | H153: 3.00 | I153: 2.00 | J153: 1.00 | M153: =10+M152 -> 2,720.00 | N153: 2,729.99 | P153: 1,027.15 | Q153: 497.96 | R153: 293.31 | S153: 141.19 | T153: 41.59 | U153: 0.00
B154: 0.01 | C154: 9.99 | E154: 7.00 | F154: 5.00 | G154: 4.00 | H154: 3.00 | I154: 2.00 | J154: 1.00 | M154: 2,730.00 | N154: 2,739.99 | P154: 1,034.15 | Q154: 502.96 | R154: 297.31 | S154: 144.19 | T154: 43.59 | U154: 0.00
B155: 0.01 | C155: 9.99 | E155: 7.00 | F155: 5.00 | G155: 4.00 | H155: 3.00 | I155: 2.00 | J155: 1.00 | M155: 2,740.00 | N155: 2,749.99 | P155: 1,041.15 | Q155: 507.96 | R155: 301.31 | S155: 147.19 | T155: 45.59 | U155: 0.00
B156: 0.01 | C156: 9.99 | E156: 7.00 | F156: 5.00 | G156: 4.00 | H156: 3.00 | I156: 2.00 | J156: 1.00 | M156: 2,750.00 | N156: 2,759.99 | P156: 1,048.15 | Q156: 512.96 | R156: 305.31 | S156: 150.19 | T156: 47.59 | U156: 0.00
B157: 0.01 | C157: 9.99 | E157: 7.00 | F157: 5.00 | G157: 4.00 | H157: 3.00 | I157: 2.00 | J157: 1.00 | M157: 2,760.00 | N157: 2,769.99 | P157: 1,055.15 | Q157: 517.96 | R157: 309.31 | S157: 153.19 | T157: 49.59 | U157: 0.00
B158: 0.01 | C158: 9.99 | E158: 7.00 | F158: 5.00 | G158: 4.00 | H158: 3.00 | I158: 2.00 | J158: 1.00 | M158: 2,770.00 | N158: 2,779.99 | P158: 1,062.15 | Q158: 522.96 | R158: 313.31 | S158: 156.19 | T158: 51.59 | U158: 0.00
B159: 0.01 | C159: 9.99 | E159: 7.00 | F159: 5.00 | G159: 4.00 | H159: 3.00 | I159: 2.00 | J159: 1.00 | M159: 2,780.00 | N159: 2,789.99 | P159: 1,069.15 | Q159: 527.96 | R159: 317.31 | S159: 159.19 | T159: 53.59 | U159: 0.53
B160: 0.01 | C160: 9.99 | E160: 7.00 | F160: 5.00 | G160: 4.00 | H160: 3.00 | I160: 2.00 | J160: 1.00 | M160: 2,790.00 | N160: 2,799.99 | P160: 1,076.15 | Q160: 532.96 | R160: 321.31 | S160: 162.19 | T160: 55.59 | U160: 1.53
B161: 0.01 | C161: 9.99 | E161: 7.00 | F161: 5.00 | G161: 4.00 | H161: 3.00 | I161: 2.00 | J161: 1.00 | M161: 2,800.00 | N161: 2,809.99 | P161: 1,083.15 | Q161: 537.96 | R161: 325.31 | S161: 165.19 | T161: 57.59 | U161: 2.53
B162: 0.01 | C162: 9.99 | E162: 7.00 | F162: 5.00 | G162: 4.00 | H162: 3.00 | I162: 2.00 | J162: 1.00 | M162: 2,810.00 | N162: 2,819.99 | P162: 1,090.15 | Q162: 542.96 | R162: 329.31 | S162: 168.19 | T162: 59.59 | U162: 3.53
B163: 0.01 | C163: 9.99 | E163: 7.00 | F163: 5.00 | G163: 4.00 | H163: 3.00 | I163: 2.00 | J163: 1.00 | M163: 2,820.00 | N163: 2,829.99 | P163: 1,097.15 | Q163: 547.96 | R163: 333.31 | S163: 171.19 | T163: 61.59 | U163: 4.53
B164: 0.01 | C164: 9.99 | E164: 7.00 | F164: 5.00 | G164: 4.00 | H164: 3.00 | I164: 2.00 | J164: 1.00 | M164: 2,830.00 | N164: 2,839.99 | P164: 1,104.15 | Q164: 552.96 | R164: 337.31 | S164: 174.19 | T164: 63.59 | U164: 5.53
B165: 0.01 | C165: 9.99 | E165: 7.00 | F165: 5.00 | G165: 4.00 | H165: 3.00 | I165: 2.00 | J165: 1.00 | M165: 2,840.00 | N165: 2,849.99 | P165: 1,111.15 | Q165: 557.96 | R165: 341.31 | S165: 177.19 | T165: 65.59 | U165: 6.53
B166: 0.01 | C166: 9.99 | E166: 7.00 | F166: 5.00 | G166: 4.00 | H166: 3.00 | I166: 2.00 | J166: 1.00 | M166: 2,850.00 | N166: 2,859.99 | P166: 1,118.15 | Q166: 562.96 | R166: 345.31 | S166: 180.19 | T166: 67.59 | U166: 7.53
B167: 0.01 | C167: 9.99 | E167: 7.00 | F167: 5.00 | G167: 4.00 | H167: 3.00 | I167: 2.00 | J167: 1.00 | M167: 2,860.00 | N167: 2,869.99 | P167: 1,125.15 | Q167: 567.96 | R167: 349.31 | S167: 183.19 | T167: 69.59 | U167: 8.53
B168: 0.01 | C168: 9.99 | E168: 7.00 | F168: 5.00 | G168: 4.00 | H168: 3.00 | I168: 2.00 | J168: 1.00 | M168: 2,870.00 | N168: 2,879.99 | P168: 1,132.15 | Q168: 572.96 | R168: 353.31 | S168: 186.19 | T168: 71.59 | U168: 9.53
B169: 0.01 | C169: 9.99 | E169: 7.00 | F169: 5.00 | G169: 4.00 | H169: 3.00 | I169: 2.00 | J169: 1.00 | M169: =10+M168 -> 2,880.00 | N169: 2,889.99 | P169: 1,139.15 | Q169: 577.96 | R169: 357.31 | S169: 189.19 | T169: 73.59 | U169: 10.53
B170: 0.01 | C170: 9.99 | E170: 7.00 | F170: 5.00 | G170: 4.00 | H170: 3.00 | I170: 2.00 | J170: 1.00 | M170: 2,890.00 | N170: 2,899.99 | P170: 1,146.15 | Q170: 582.96 | R170: 361.31 | S170: 192.19 | T170: 75.59 | U170: 11.53
B171: 0.01 | C171: 9.99 | E171: 7.00 | F171: 5.00 | G171: 4.00 | H171: 3.00 | I171: 2.00 | J171: 1.00 | M171: 2,900.00 | N171: 2,909.99 | P171: 1,153.15 | Q171: 587.96 | R171: 365.31 | S171: 195.19 | T171: 77.59 | U171: 12.53
B172: 0.01 | C172: 9.99 | E172: 7.00 | F172: 5.00 | G172: 4.00 | H172: 3.00 | I172: 2.00 | J172: 1.00 | M172: 2,910.00 | N172: 2,919.99 | P172: 1,160.15 | Q172: 592.96 | R172: 369.31 | S172: 198.19 | T172: 79.59 | U172: 13.53
B173: 0.01 | C173: 9.99 | E173: 7.00 | F173: 5.00 | G173: 4.00 | H173: 3.00 | I173: 2.00 | J173: 1.00 | M173: 2,920.00 | N173: 2,929.99 | P173: 1,167.15 | Q173: 597.96 | R173: 373.31 | S173: 201.19 | T173: 81.59 | U173: 14.53
B174: 0.01 | C174: 9.99 | E174: 7.00 | F174: 5.00 | G174: 4.00 | H174: 3.00 | I174: 2.00 | J174: 1.00 | M174: 2,930.00 | N174: 2,939.99 | P174: 1,174.15 | Q174: 602.96 | R174: 377.31 | S174: 204.19 | T174: 83.59 | U174: 15.53
B175: 0.01 | C175: 9.99 | E175: 7.00 | F175: 5.00 | G175: 4.00 | H175: 3.00 | I175: 2.00 | J175: 1.00 | M175: 2,940.00 | N175: 2,949.99 | P175: 1,181.15 | Q175: 607.96 | R175: 381.31 | S175: 207.19 | T175: 85.59 | U175: 16.53
B176: 0.01 | C176: 9.99 | E176: 7.00 | F176: 5.00 | G176: 4.00 | H176: 3.00 | I176: 2.00 | J176: 1.00 | M176: 2,950.00 | N176: 2,959.99 | P176: 1,188.15 | Q176: 612.96 | R176: 385.31 | S176: 210.19 | T176: 87.59 | U176: 17.53
B177: 0.01 | C177: 9.99 | E177: 7.00 | F177: 5.00 | G177: 4.00 | H177: 3.00 | I177: 2.00 | J177: 1.00 | M177: 2,960.00 | N177: 2,969.99 | P177: 1,195.15 | Q177: 617.96 | R177: 389.31 | S177: 213.19 | T177: 89.59 | U177: 18.53
B178: 0.01 | C178: 9.99 | E178: 7.00 | F178: 5.00 | G178: 4.00 | H178: 3.00 | I178: 2.00 | J178: 1.00 | M178: 2,970.00 | N178: 2,979.99 | P178: 1,202.15 | Q178: 622.96 | R178: 393.31 | S178: 216.19 | T178: 91.59 | U178: 19.53
B179: 0.01 | C179: 9.99 | E179: 7.00 | F179: 5.00 | G179: 4.00 | H179: 3.00 | I179: 2.00 | J179: 1.00 | M179: 2,980.00 | N179: 2,989.99 | P179: 1,209.15 | Q179: 627.96 | R179: 397.31 | S179: 219.19 | T179: 93.59 | U179: 20.53
B180: 0.01 | C180: 9.99 | E180: 7.00 | F180: 5.00 | G180: 4.00 | H180: 3.00 | I180: 2.00 | J180: 1.00 | M180: 2,990.00 | N180: 2,999.99 | P180: 1,216.15 | Q180: 632.96 | R180: 401.31 | S180: 222.19 | T180: 95.59 | U180: 21.53
B181: 0.01 | C181: 9.99 | E181: 7.00 | F181: 5.00 | G181: 4.00 | H181: 3.00 | I181: 2.00 | J181: 1.00 | M181: 3,000.00 | N181: 3,009.99 | P181: 1,223.15 | Q181: 637.96 | R181: 405.31 | S181: 225.19 | T181: 97.59 | U181: 22.53
B182: 0.01 | C182: 9.99 | E182: 7.00 | F182: 5.00 | G182: 4.00 | H182: 3.00 | I182: 2.00 | J182: 1.00 | M182: 3,010.00 | N182: 3,019.99 | P182: 1,230.15 | Q182: 642.96 | R182: 409.31 | S182: 228.19 | T182: 99.59 | U182: 23.53
B183: 0.01 | C183: 9.99 | E183: 7.00 | F183: 5.00 | G183: 4.00 | H183: 3.00 | I183: 2.00 | J183: 1.00 | M183: 3,020.00 | N183: 3,029.99 | P183: 1,237.15 | Q183: 647.96 | R183: 413.31 | S183: 231.19 | T183: 101.59 | U183: 24.53
B184: 0.01 | C184: 9.99 | E184: 7.00 | F184: 5.00 | G184: 4.00 | H184: 3.00 | I184: 2.00 | J184: 1.00 | M184: 3,030.00 | N184: 3,039.99 | P184: 1,244.15 | Q184: 652.96 | R184: 417.31 | S184: 234.19 | T184: 103.59 | U184: 25.53
B185: 0.01 | C185: 9.99 | E185: 7.00 | F185: 5.00 | G185: 4.00 | H185: 3.00 | I185: 2.00 | J185: 1.00 | M185: =10+M184 -> 3,040.00 | N185: 3,049.99 | P185: 1,251.15 | Q185: 657.96 | R185: 421.31 | S185: 237.19 | T185: 105.59 | U185: 26.53
B186: 0.01 | C186: 9.99 | E186: 7.00 | F186: 5.00 | G186: 4.00 | H186: 3.00 | I186: 2.00 | J186: 1.00 | M186: 3,050.00 | N186: 3,059.99 | P186: 1,258.15 | Q186: 662.96 | R186: 425.31 | S186: 240.19 | T186: 107.59 | U186: 27.53
B187: 0.01 | C187: 9.99 | E187: 7.00 | F187: 5.00 | G187: 4.00 | H187: 3.00 | I187: 2.00 | J187: 1.00 | M187: 3,060.00 | N187: 3,069.99 | P187: 1,265.15 | Q187: 667.96 | R187: 429.31 | S187: 243.19 | T187: 109.59 | U187: 28.53
B188: 0.01 | C188: 9.99 | E188: 7.00 | F188: 5.00 | G188: 4.00 | H188: 3.00 | I188: 2.00 | J188: 1.00 | M188: 3,070.00 | N188: 3,079.99 | P188: 1,272.15 | Q188: 672.96 | R188: 433.31 | S188: 246.19 | T188: 111.59 | U188: 29.53
B189: 0.01 | C189: 9.99 | E189: 7.00 | F189: 5.00 | G189: 4.00 | H189: 3.00 | I189: 2.00 | J189: 1.00 | M189: 3,080.00 | N189: 3,089.99 | P189: 1,279.15 | Q189: 677.96 | R189: 437.31 | S189: 249.19 | T189: 113.59 | U189: 30.53
B190: 0.01 | C190: 9.99 | E190: 7.00 | F190: 5.00 | G190: 4.00 | H190: 3.00 | I190: 2.00 | J190: 1.00 | M190: 3,090.00 | N190: 3,099.99 | P190: 1,286.15 | Q190: 682.96 | R190: 441.31 | S190: 252.19 | T190: 115.59 | U190: 31.53
B191: 0.01 | C191: 9.99 | E191: 7.00 | F191: 5.00 | G191: 4.00 | H191: 3.00 | I191: 2.00 | J191: 1.00 | M191: 3,100.00 | N191: 3,109.99 | P191: 1,293.15 | Q191: 687.96 | R191: 445.31 | S191: 255.19 | T191: 117.59 | U191: 32.53
B192: 0.01 | C192: 9.99 | E192: 7.00 | F192: 5.00 | G192: 4.00 | H192: 3.00 | I192: 2.00 | J192: 1.00 | M192: 3,110.00 | N192: 3,119.99 | P192: 1,300.15 | Q192: 692.96 | R192: 449.31 | S192: 258.19 | T192: 119.59 | U192: 33.53
B193: 0.01 | C193: 9.99 | E193: 7.00 | F193: 5.00 | G193: 4.00 | H193: 3.00 | I193: 2.00 | J193: 1.00 | M193: 3,120.00 | N193: 3,129.99 | P193: 1,307.15 | Q193: 697.96 | R193: 453.31 | S193: 261.19 | T193: 121.59 | U193: 34.53
B194: 0.01 | C194: 9.99 | E194: 7.00 | F194: 5.00 | G194: 4.00 | H194: 3.00 | I194: 2.00 | J194: 1.00 | M194: 3,130.00 | N194: 3,139.99 | P194: 1,314.15 | Q194: 702.96 | R194: 457.31 | S194: 264.19 | T194: 123.59 | U194: 35.53
B195: 0.01 | C195: 9.99 | E195: 7.00 | F195: 5.00 | G195: 4.00 | H195: 3.00 | I195: 2.00 | J195: 1.00 | M195: 3,140.00 | N195: 3,149.99 | P195: 1,321.15 | Q195: 707.96 | R195: 461.31 | S195: 267.19 | T195: 125.59 | U195: 36.53
B196: 0.01 | C196: 9.99 | E196: 7.00 | F196: 5.00 | G196: 4.00 | H196: 3.00 | I196: 2.00 | J196: 1.00 | M196: 3,150.00 | N196: 3,159.99 | P196: 1,328.15 | Q196: 712.96 | R196: 465.31 | S196: 270.19 | T196: 127.59 | U196: 37.53
B197: 0.01 | C197: 9.99 | E197: 7.00 | F197: 5.00 | G197: 4.00 | H197: 3.00 | I197: 2.00 | J197: 1.00 | M197: 3,160.00 | N197: 3,169.99 | P197: 1,335.15 | Q197: 717.96 | R197: 469.31 | S197: 273.19 | T197: 129.59 | U197: 38.53
B198: 0.01 | C198: 9.99 | E198: 7.00 | F198: 5.00 | G198: 4.00 | H198: 3.00 | I198: 2.00 | J198: 1.00 | M198: 3,170.00 | N198: 3,179.99 | P198: 1,342.15 | Q198: 722.96 | R198: 473.31 | S198: 276.19 | T198: 131.59 | U198: 39.53
B199: 0.01 | C199: 9.99 | E199: 7.00 | F199: 5.00 | G199: 4.00 | H199: 3.00 | I199: 2.00 | J199: 1.00 | M199: 3,180.00 | N199: 3,189.99 | P199: 1,349.15 | Q199: 727.96 | R199: 477.31 | S199: 279.19 | T199: 133.59 | U199: 40.53
B200: 0.01 | C200: 9.99 | E200: 7.00 | F200: 5.00 | G200: 4.00 | H200: 3.00 | I200: 2.00 | J200: 1.00 | M200: 3,190.00 | N200: 3,199.99 | P200: 1,356.15 | Q200: 732.96 | R200: 481.31 | S200: 282.19 | T200: 135.59 | U200: 41.53
M201: =10+M200 -> 3,200.00 | N201: 3,209.99 | P201: 1,363.15 | Q201: 737.96 | R201: 485.31 | S201: 285.19 | T201: 137.59 | U201: 42.53
M202: 3,210.00 | N202: 3,219.99 | P202: 1,370.15 | Q202: 742.96 | R202: 489.31 | S202: 288.19 | T202: 139.59 | U202: 43.53
... 63 more rows

Sheet Tabelle pfändbarer Beträge 2020 (hidden)
E3: Pfändbarer Betrag bei Unterhaltspflicht für ... Personen | M3: Nettolohn | P3: Pfändbarer Betrag bei Unterhaltspflicht für ... Personen (gültig vom 01.07.2013 bis 30.06.2015)
B4: Nettolohn | E4: 0 | F4: 1 | G4: 2 | H4: 3 | I4: 4 | J4: 5 | M4: monatlich in Euro | P4: 0 | Q4: 1 | R4: 2 | S4: 3 | T4: 4 | U4: 5
B5: Add. Links | C5: Add. Rechts | J5: und mehr | M5: von | N5: bis | U5: und mehr
B6: 989.99 | E6: 0.00 | F6: 0.00 | G6: 0.00 | H6: 0.00 | I6: 0.00 | J6: 0.00 | N6: 1,179.99 | P6: 0.00 | Q6: 0.00 | R6: 0.00 | S6: 0.00 | T6: 0.00 | U6: 0.00
B7: 0.01 | C7: 9.99 | E7: 3.40 | F7: 0.00 | G7: 0.00 | H7: 0.00 | I7: 0.00 | J7: 0.00 | M7: 1,180.00 | N7: =10+N6 -> 1,189.99 | P7: 0.99 | Q7: 0.00 | R7: 0.00 | S7: 0.00 | T7: 0.00 | U7: 0.00
B8: 0.01 | C8: 9.99 | E8: 7.00 | F8: 0.00 | G8: 0.00 | H8: 0.00 | I8: 0.00 | J8: 0.00 | M8: =10+M7 -> 1,190.00 | N8: =10+N7 -> 1,199.99 | P8: =7+P7 -> 7.99 | Q8: 0.00 | R8: 0.00 | S8: 0.00 | T8: 0.00 | U8: 0.00
B9: 0.01 | C9: 9.99 | E9: 7.00 | F9: 0.00 | G9: 0.00 | H9: 0.00 | I9: 0.00 | J9: 0.00 | M9: =10+M8 -> 1,200.00 | N9: 1,209.99 | P9: =7+P8 -> 14.99 | Q9: 0.00 | R9: 0.00 | S9: 0.00 | T9: 0.00 | U9: 0.00
B10: 0.01 | C10: 9.99 | E10: 7.00 | F10: 0.00 | G10: 0.00 | H10: 0.00 | I10: 0.00 | J10: 0.00 | M10: 1,210.00 | N10: 1,219.99 | P10: 21.99 | Q10: 0.00 | R10: 0.00 | S10: 0.00 | T10: 0.00 | U10: 0.00
B11: 0.01 | C11: 9.99 | E11: 7.00 | F11: 0.00 | G11: 0.00 | H11: 0.00 | I11: 0.00 | J11: 0.00 | M11: 1,220.00 | N11: 1,229.99 | P11: 28.99 | Q11: 0.00 | R11: 0.00 | S11: 0.00 | T11: 0.00 | U11: 0.00
B12: 0.01 | C12: 9.99 | E12: 7.00 | F12: 0.00 | G12: 0.00 | H12: 0.00 | I12: 0.00 | J12: 0.00 | M12: 1,230.00 | N12: 1,239.99 | P12: 35.99 | Q12: 0.00 | R12: 0.00 | S12: 0.00 | T12: 0.00 | U12: 0.00
B13: 0.01 | C13: 9.99 | E13: 7.00 | F13: 0.00 | G13: 0.00 | H13: 0.00 | I13: 0.00 | J13: 0.00 | M13: 1,240.00 | N13: 1,249.99 | P13: 42.99 | Q13: 0.00 | R13: 0.00 | S13: 0.00 | T13: 0.00 | U13: 0.00
B14: 0.01 | C14: 9.99 | E14: 7.00 | F14: 0.00 | G14: 0.00 | H14: 0.00 | I14: 0.00 | J14: 0.00 | M14: 1,250.00 | N14: 1,259.99 | P14: 49.99 | Q14: 0.00 | R14: 0.00 | S14: 0.00 | T14: 0.00 | U14: 0.00
B15: 0.01 | C15: 9.99 | E15: 7.00 | F15: 0.00 | G15: 0.00 | H15: 0.00 | I15: 0.00 | J15: 0.00 | M15: 1,260.00 | N15: 1,269.99 | P15: 56.99 | Q15: 0.00 | R15: 0.00 | S15: 0.00 | T15: 0.00 | U15: 0.00
B16: 0.01 | C16: 9.99 | E16: 7.00 | F16: 0.00 | G16: 0.00 | H16: 0.00 | I16: 0.00 | J16: 0.00 | M16: 1,270.00 | N16: 1,279.99 | P16: 63.99 | Q16: 0.00 | R16: 0.00 | S16: 0.00 | T16: 0.00 | U16: 0.00
B17: 0.01 | C17: 9.99 | E17: 7.00 | F17: 0.00 | G17: 0.00 | H17: 0.00 | I17: 0.00 | J17: 0.00 | M17: 1,280.00 | N17: 1,289.99 | P17: 70.99 | Q17: 0.00 | R17: 0.00 | S17: 0.00 | T17: 0.00 | U17: 0.00
B18: 0.01 | C18: 9.99 | E18: 7.00 | F18: 0.00 | G18: 0.00 | H18: 0.00 | I18: 0.00 | J18: 0.00 | M18: 1,290.00 | N18: 1,299.99 | P18: 77.99 | Q18: 0.00 | R18: 0.00 | S18: 0.00 | T18: 0.00 | U18: 0.00
B19: 0.01 | C19: 9.99 | E19: 7.00 | F19: 0.00 | G19: 0.00 | H19: 0.00 | I19: 0.00 | J19: 0.00 | M19: 1,300.00 | N19: 1,309.99 | P19: 84.99 | Q19: 0.00 | R19: 0.00 | S19: 0.00 | T19: 0.00 | U19: 0.00
B20: 0.01 | C20: 9.99 | E20: 7.00 | F20: 0.00 | G20: 0.00 | H20: 0.00 | I20: 0.00 | J20: 0.00 | M20: 1,310.00 | N20: 1,319.99 | P20: 91.99 | Q20: 0.00 | R20: 0.00 | S20: 0.00 | T20: 0.00 | U20: 0.00
B21: 0.01 | C21: 9.99 | E21: 7.00 | F21: 0.00 | G21: 0.00 | H21: 0.00 | I21: 0.00 | J21: 0.00 | M21: 1,320.00 | N21: 1,329.99 | P21: 98.99 | Q21: 0.00 | R21: 0.00 | S21: 0.00 | T21: 0.00 | U21: 0.00
B22: 0.01 | C22: 9.99 | E22: 7.00 | F22: 0.00 | G22: 0.00 | H22: 0.00 | I22: 0.00 | J22: 0.00 | M22: 1,330.00 | N22: 1,339.99 | P22: 105.99 | Q22: 0.00 | R22: 0.00 | S22: 0.00 | T22: 0.00 | U22: 0.00
B23: 0.01 | C23: 9.99 | E23: 7.00 | F23: 0.00 | G23: 0.00 | H23: 0.00 | I23: 0.00 | J23: 0.00 | M23: 1,340.00 | N23: 1,349.99 | P23: 112.99 | Q23: 0.00 | R23: 0.00 | S23: 0.00 | T23: 0.00 | U23: 0.00
B24: 0.01 | C24: 9.99 | E24: 7.00 | F24: 0.00 | G24: 0.00 | H24: 0.00 | I24: 0.00 | J24: 0.00 | M24: 1,350.00 | N24: 1,359.99 | P24: 119.99 | Q24: 0.00 | R24: 0.00 | S24: 0.00 | T24: 0.00 | U24: 0.00
B25: 0.01 | C25: 9.99 | E25: 7.00 | F25: 0.00 | G25: 0.00 | H25: 0.00 | I25: 0.00 | J25: 0.00 | M25: 1,360.00 | N25: 1,369.99 | P25: 126.99 | Q25: 0.00 | R25: 0.00 | S25: 0.00 | T25: 0.00 | U25: 0.00
B26: 0.01 | C26: 9.99 | E26: 7.00 | F26: 0.00 | G26: 0.00 | H26: 0.00 | I26: 0.00 | J26: 0.00 | M26: 1,370.00 | N26: 1,379.99 | P26: 133.99 | Q26: 0.00 | R26: 0.00 | S26: 0.00 | T26: 0.00 | U26: 0.00
B27: 0.01 | C27: 9.99 | E27: 7.00 | F27: 0.00 | G27: 0.00 | H27: 0.00 | I27: 0.00 | J27: 0.00 | M27: 1,380.00 | N27: 1,389.99 | P27: 140.99 | Q27: 0.00 | R27: 0.00 | S27: 0.00 | T27: 0.00 | U27: 0.00
B28: 0.01 | C28: 9.99 | E28: 7.00 | F28: 0.00 | G28: 0.00 | H28: 0.00 | I28: 0.00 | J28: 0.00 | M28: 1,390.00 | N28: 1,399.99 | P28: 147.99 | Q28: 0.00 | R28: 0.00 | S28: 0.00 | T28: 0.00 | U28: 0.00
B29: 0.01 | C29: 9.99 | E29: 7.00 | F29: 0.00 | G29: 0.00 | H29: 0.00 | I29: 0.00 | J29: 0.00 | M29: 1,400.00 | N29: 1,409.99 | P29: 154.99 | Q29: 0.00 | R29: 0.00 | S29: 0.00 | T29: 0.00 | U29: 0.00
B30: 0.01 | C30: 9.99 | E30: 7.00 | F30: 0.00 | G30: 0.00 | H30: 0.00 | I30: 0.00 | J30: 0.00 | M30: 1,410.00 | N30: 1,419.99 | P30: 161.99 | Q30: 0.00 | R30: 0.00 | S30: 0.00 | T30: 0.00 | U30: 0.00
B31: 0.01 | C31: 9.99 | E31: 7.00 | F31: 0.00 | G31: 0.00 | H31: 0.00 | I31: 0.00 | J31: 0.00 | M31: 1,420.00 | N31: 1,429.99 | P31: 168.99 | Q31: 0.00 | R31: 0.00 | S31: 0.00 | T31: 0.00 | U31: 0.00
B32: 0.01 | C32: 9.99 | E32: 7.00 | F32: 0.00 | G32: 0.00 | H32: 0.00 | I32: 0.00 | J32: 0.00 | M32: 1,430.00 | N32: 1,439.99 | P32: 175.99 | Q32: 0.00 | R32: 0.00 | S32: 0.00 | T32: 0.00 | U32: 0.00
B33: 0.01 | C33: 9.99 | E33: 7.00 | F33: 0.00 | G33: 0.00 | H33: 0.00 | I33: 0.00 | J33: 0.00 | M33: 1,440.00 | N33: 1,449.99 | P33: 182.99 | Q33: 0.00 | R33: 0.00 | S33: 0.00 | T33: 0.00 | U33: 0.00
B34: 0.01 | C34: 9.99 | E34: 7.00 | F34: 0.00 | G34: 0.00 | H34: 0.00 | I34: 0.00 | J34: 0.00 | M34: 1,450.00 | N34: 1,459.99 | P34: 189.99 | Q34: 0.00 | R34: 0.00 | S34: 0.00 | T34: 0.00 | U34: 0.00
B35: 0.01 | C35: 9.99 | E35: 7.00 | F35: 0.00 | G35: 0.00 | H35: 0.00 | I35: 0.00 | J35: 0.00 | M35: 1,460.00 | N35: 1,469.99 | P35: 196.99 | Q35: 0.00 | R35: 0.00 | S35: 0.00 | T35: 0.00 | U35: 0.00
B36: 0.01 | C36: 9.99 | E36: 7.00 | F36: 0.00 | G36: 0.00 | H36: 0.00 | I36: 0.00 | J36: 0.00 | M36: 1,470.00 | N36: 1,479.99 | P36: 203.99 | Q36: 0.00 | R36: 0.00 | S36: 0.00 | T36: 0.00 | U36: 0.00
B37: 0.01 | C37: 9.99 | E37: 7.00 | F37: 0.00 | G37: 0.00 | H37: 0.00 | I37: 0.00 | J37: 0.00 | M37: 1,480.00 | N37: 1,489.99 | P37: 210.99 | Q37: 0.00 | R37: 0.00 | S37: 0.00 | T37: 0.00 | U37: 0.00
B38: 0.01 | C38: 9.99 | E38: 7.00 | F38: 0.00 | G38: 0.00 | H38: 0.00 | I38: 0.00 | J38: 0.00 | M38: 1,490.00 | N38: 1,499.99 | P38: 217.99 | Q38: 0.00 | R38: 0.00 | S38: 0.00 | T38: 0.00 | U38: 0.00
B39: 0.01 | C39: 9.99 | E39: 7.00 | F39: 0.00 | G39: 0.00 | H39: 0.00 | I39: 0.00 | J39: 0.00 | M39: 1,500.00 | N39: 1,509.99 | P39: 224.99 | Q39: 0.00 | R39: 0.00 | S39: 0.00 | T39: 0.00 | U39: 0.00
B40: 0.01 | C40: 9.99 | E40: 7.00 | F40: 0.00 | G40: 0.00 | H40: 0.00 | I40: 0.00 | J40: 0.00 | M40: 1,510.00 | N40: 1,519.99 | P40: 231.99 | Q40: 0.00 | R40: 0.00 | S40: 0.00 | T40: 0.00 | U40: 0.00
B41: 0.01 | C41: 9.99 | E41: 7.00 | F41: 0.00 | G41: 0.00 | H41: 0.00 | I41: 0.00 | J41: 0.00 | M41: 1,520.00 | N41: 1,529.99 | P41: 238.99 | Q41: 0.00 | R41: 0.00 | S41: 0.00 | T41: 0.00 | U41: 0.00
B42: 0.01 | C42: 9.99 | E42: 7.00 | F42: 0.00 | G42: 0.00 | H42: 0.00 | I42: 0.00 | J42: 0.00 | M42: 1,530.00 | N42: 1,539.99 | P42: 245.99 | Q42: 0.00 | R42: 0.00 | S42: 0.00 | T42: 0.00 | U42: 0.00
B43: 0.01 | C43: 9.99 | E43: 7.00 | F43: 0.00 | G43: 0.00 | H43: 0.00 | I43: 0.00 | J43: 0.00 | M43: 1,540.00 | N43: 1,549.99 | P43: 252.99 | Q43: 0.00 | R43: 0.00 | S43: 0.00 | T43: 0.00 | U43: 0.00
B44: 0.01 | C44: 9.99 | E44: 7.00 | F44: 2.05 | G44: 0.00 | H44: 0.00 | I44: 0.00 | J44: 0.00 | M44: 1,550.00 | N44: 1,559.99 | P44: 259.99 | Q44: 0.00 | R44: 0.00 | S44: 0.00 | T44: 0.00 | U44: 0.00
B45: 0.01 | C45: 9.99 | E45: 7.00 | F45: 5.00 | G45: 0.00 | H45: 0.00 | I45: 0.00 | J45: 0.00 | M45: 1,560.00 | N45: 1,569.99 | P45: 266.99 | Q45: 0.00 | R45: 0.00 | S45: 0.00 | T45: 0.00 | U45: 0.00
B46: 0.01 | C46: 9.99 | E46: 7.00 | F46: 5.00 | G46: 0.00 | H46: 0.00 | I46: 0.00 | J46: 0.00 | M46: 1,570.00 | N46: 1,579.99 | P46: 273.99 | Q46: 0.00 | R46: 0.00 | S46: 0.00 | T46: 0.00 | U46: 0.00
B47: 0.01 | C47: 9.99 | E47: 7.00 | F47: 5.00 | G47: 0.00 | H47: 0.00 | I47: 0.00 | J47: 0.00 | M47: 1,580.00 | N47: 1,589.99 | P47: 280.99 | Q47: 0.00 | R47: 0.00 | S47: 0.00 | T47: 0.00 | U47: 0.00
B48: 0.01 | C48: 9.99 | E48: 7.00 | F48: 5.00 | G48: 0.00 | H48: 0.00 | I48: 0.00 | J48: 0.00 | M48: 1,590.00 | N48: 1,599.99 | P48: 287.99 | Q48: 0.00 | R48: 0.00 | S48: 0.00 | T48: 0.00 | U48: 0.00
B49: 0.01 | C49: 9.99 | E49: 7.00 | F49: 5.00 | G49: 0.00 | H49: 0.00 | I49: 0.00 | J49: 0.00 | M49: 1,600.00 | N49: 1,609.99 | P49: 294.99 | Q49: 0.00 | R49: 0.00 | S49: 0.00 | T49: 0.00 | U49: 0.00
B50: 0.01 | C50: 9.99 | E50: 7.00 | F50: 5.00 | G50: 0.00 | H50: 0.00 | I50: 0.00 | J50: 0.00 | M50: 1,610.00 | N50: 1,619.99 | P50: 301.99 | Q50: 0.00 | R50: 0.00 | S50: 0.00 | T50: 0.00 | U50: 0.00
B51: 0.01 | C51: 9.99 | E51: 7.00 | F51: 5.00 | G51: 0.00 | H51: 0.00 | I51: 0.00 | J51: 0.00 | M51: 1,620.00 | N51: 1,629.99 | P51: 308.99 | Q51: 0.00 | R51: 0.00 | S51: 0.00 | T51: 0.00 | U51: 0.00
B52: 0.01 | C52: 9.99 | E52: 7.00 | F52: 5.00 | G52: 0.00 | H52: 0.00 | I52: 0.00 | J52: 0.00 | M52: 1,630.00 | N52: 1,639.99 | P52: 315.99 | Q52: 3.92 | R52: 0.00 | S52: 0.00 | T52: 0.00 | U52: 0.00
B53: 0.01 | C53: 9.99 | E53: 7.00 | F53: 5.00 | G53: 0.00 | H53: 0.00 | I53: 0.00 | J53: 0.00 | M53: 1,640.00 | N53: 1,649.99 | P53: 322.99 | Q53: =5+Q52 -> 8.92 | R53: 0.00 | S53: 0.00 | T53: 0.00 | U53: 0.00
B54: 0.01 | C54: 9.99 | E54: 7.00 | F54: 5.00 | G54: 0.00 | H54: 0.00 | I54: 0.00 | J54: 0.00 | M54: 1,650.00 | N54: 1,659.99 | P54: 329.99 | Q54: =5+Q53 -> 13.92 | R54: 0.00 | S54: 0.00 | T54: 0.00 | U54: 0.00
B55: 0.01 | C55: 9.99 | E55: 7.00 | F55: 5.00 | G55: 0.00 | H55: 0.00 | I55: 0.00 | J55: 0.00 | M55: 1,660.00 | N55: 1,669.99 | P55: 336.99 | Q55: 18.92 | R55: 0.00 | S55: 0.00 | T55: 0.00 | U55: 0.00
B56: 0.01 | C56: 9.99 | E56: 7.00 | F56: 5.00 | G56: 0.00 | H56: 0.00 | I56: 0.00 | J56: 0.00 | M56: 1,670.00 | N56: 1,679.99 | P56: 343.99 | Q56: 23.92 | R56: 0.00 | S56: 0.00 | T56: 0.00 | U56: 0.00
B57: 0.01 | C57: 9.99 | E57: 7.00 | F57: 5.00 | G57: 0.00 | H57: 0.00 | I57: 0.00 | J57: 0.00 | M57: 1,680.00 | N57: 1,689.99 | P57: 350.99 | Q57: 28.92 | R57: 0.00 | S57: 0.00 | T57: 0.00 | U57: 0.00
B58: 0.01 | C58: 9.99 | E58: 7.00 | F58: 5.00 | G58: 0.00 | H58: 0.00 | I58: 0.00 | J58: 0.00 | M58: 1,690.00 | N58: 1,699.99 | P58: 357.99 | Q58: 33.92 | R58: 0.00 | S58: 0.00 | T58: 0.00 | U58: 0.00
B59: 0.01 | C59: 9.99 | E59: 7.00 | F59: 5.00 | G59: 0.00 | H59: 0.00 | I59: 0.00 | J59: 0.00 | M59: 1,700.00 | N59: 1,709.99 | P59: 364.99 | Q59: 38.92 | R59: 0.00 | S59: 0.00 | T59: 0.00 | U59: 0.00
B60: 0.01 | C60: 9.99 | E60: 7.00 | F60: 5.00 | G60: 0.00 | H60: 0.00 | I60: 0.00 | J60: 0.00 | M60: 1,710.00 | N60: 1,719.99 | P60: 371.99 | Q60: 43.92 | R60: 0.00 | S60: 0.00 | T60: 0.00 | U60: 0.00
B61: 0.01 | C61: 9.99 | E61: 7.00 | F61: 5.00 | G61: 0.00 | H61: 0.00 | I61: 0.00 | J61: 0.00 | M61: 1,720.00 | N61: 1,729.99 | P61: 378.99 | Q61: 48.92 | R61: 0.00 | S61: 0.00 | T61: 0.00 | U61: 0.00
B62: 0.01 | C62: 9.99 | E62: 7.00 | F62: 5.00 | G62: 0.00 | H62: 0.00 | I62: 0.00 | J62: 0.00 | M62: 1,730.00 | N62: 1,739.99 | P62: 385.99 | Q62: 53.92 | R62: 0.00 | S62: 0.00 | T62: 0.00 | U62: 0.00
B63: 0.01 | C63: 9.99 | E63: 7.00 | F63: 5.00 | G63: 0.00 | H63: 0.00 | I63: 0.00 | J63: 0.00 | M63: 1,740.00 | N63: 1,749.99 | P63: 392.99 | Q63: 58.92 | R63: 0.00 | S63: 0.00 | T63: 0.00 | U63: 0.00
B64: 0.01 | C64: 9.99 | E64: 7.00 | F64: 5.00 | G64: 0.00 | H64: 0.00 | I64: 0.00 | J64: 0.00 | M64: 1,750.00 | N64: 1,759.99 | P64: 399.99 | Q64: 63.92 | R64: 0.00 | S64: 0.00 | T64: 0.00 | U64: 0.00
B65: 0.01 | C65: 9.99 | E65: 7.00 | F65: 5.00 | G65: 3.01 | H65: 0.00 | I65: 0.00 | J65: 0.00 | M65: 1,760.00 | N65: 1,769.99 | P65: 406.99 | Q65: 68.92 | R65: 0.00 | S65: 0.00 | T65: 0.00 | U65: 0.00
B66: 0.01 | C66: 9.99 | E66: 7.00 | F66: 5.00 | G66: 4.00 | H66: 0.00 | I66: 0.00 | J66: 0.00 | M66: 1,770.00 | N66: 1,779.99 | P66: 413.99 | Q66: 73.92 | R66: 0.00 | S66: 0.00 | T66: 0.00 | U66: 0.00
B67: 0.01 | C67: 9.99 | E67: 7.00 | F67: 5.00 | G67: 4.00 | H67: 0.00 | I67: 0.00 | J67: 0.00 | M67: 1,780.00 | N67: 1,789.99 | P67: 420.99 | Q67: 78.92 | R67: 0.00 | S67: 0.00 | T67: 0.00 | U67: 0.00
B68: 0.01 | C68: 9.99 | E68: 7.00 | F68: 5.00 | G68: 4.00 | H68: 0.00 | I68: 0.00 | J68: 0.00 | M68: 1,790.00 | N68: 1,799.99 | P68: 427.99 | Q68: 83.92 | R68: 0.00 | S68: 0.00 | T68: 0.00 | U68: 0.00
B69: 0.01 | C69: 9.99 | E69: 7.00 | F69: 5.00 | G69: 4.00 | H69: 0.00 | I69: 0.00 | J69: 0.00 | M69: 1,800.00 | N69: 1,809.99 | P69: 434.99 | Q69: 88.92 | R69: 0.00 | S69: 0.00 | T69: 0.00 | U69: 0.00
B70: 0.01 | C70: 9.99 | E70: 7.00 | F70: 5.00 | G70: 4.00 | H70: 0.00 | I70: 0.00 | J70: 0.00 | M70: 1,810.00 | N70: 1,819.99 | P70: 441.99 | Q70: 93.92 | R70: 0.00 | S70: 0.00 | T70: 0.00 | U70: 0.00
B71: 0.01 | C71: 9.99 | E71: 7.00 | F71: 5.00 | G71: 4.00 | H71: 0.00 | I71: 0.00 | J71: 0.00 | M71: 1,820.00 | N71: 1,829.99 | P71: 448.99 | Q71: 98.92 | R71: 0.00 | S71: 0.00 | T71: 0.00 | U71: 0.00
B72: 0.01 | C72: 9.99 | E72: 7.00 | F72: 5.00 | G72: 4.00 | H72: 0.00 | I72: 0.00 | J72: 0.00 | M72: 1,830.00 | N72: 1,839.99 | P72: 455.99 | Q72: 103.92 | R72: 0.00 | S72: 0.00 | T72: 0.00 | U72: 0.00
B73: 0.01 | C73: 9.99 | E73: 7.00 | F73: 5.00 | G73: 4.00 | H73: 0.00 | I73: 0.00 | J73: 0.00 | M73: =10+M72 -> 1,840.00 | N73: 1,849.99 | P73: =7+P72 -> 462.99 | Q73: 108.92 | R73: 0.00 | S73: 0.00 | T73: 0.00 | U73: 0.00
B74: 0.01 | C74: 9.99 | E74: 7.00 | F74: 5.00 | G74: 4.00 | H74: 0.00 | I74: 0.00 | J74: 0.00 | M74: 1,850.00 | N74: 1,859.99 | P74: 469.99 | Q74: 113.92 | R74: 0.00 | S74: 0.00 | T74: 0.00 | U74: 0.00
B75: 0.01 | C75: 9.99 | E75: 7.00 | F75: 5.00 | G75: 4.00 | H75: 0.00 | I75: 0.00 | J75: 0.00 | M75: 1,860.00 | N75: 1,869.99 | P75: 476.99 | Q75: 118.92 | R75: 0.00 | S75: 0.00 | T75: 0.00 | U75: 0.00
B76: 0.01 | C76: 9.99 | E76: 7.00 | F76: 5.00 | G76: 4.00 | H76: 0.00 | I76: 0.00 | J76: 0.00 | M76: 1,870.00 | N76: 1,879.99 | P76: 483.99 | Q76: 123.92 | R76: 0.29 | S76: 0.00 | T76: 0.00 | U76: 0.00
B77: 0.01 | C77: 9.99 | E77: 7.00 | F77: 5.00 | G77: 4.00 | H77: 0.00 | I77: 0.00 | J77: 0.00 | M77: 1,880.00 | N77: 1,889.99 | P77: 490.99 | Q77: 128.92 | R77: =4+R76 -> 4.29 | S77: 0.00 | T77: 0.00 | U77: 0.00
B78: 0.01 | C78: 9.99 | E78: 7.00 | F78: 5.00 | G78: 4.00 | H78: 0.00 | I78: 0.00 | J78: 0.00 | M78: 1,890.00 | N78: 1,899.99 | P78: 497.99 | Q78: 133.92 | R78: =4+R77 -> 8.29 | S78: 0.00 | T78: 0.00 | U78: 0.00
B79: 0.01 | C79: 9.99 | E79: 7.00 | F79: 5.00 | G79: 4.00 | H79: 0.00 | I79: 0.00 | J79: 0.00 | M79: 1,900.00 | N79: 1,909.99 | P79: 504.99 | Q79: 138.92 | R79: 12.29 | S79: 0.00 | T79: 0.00 | U79: 0.00
B80: 0.01 | C80: 9.99 | E80: 7.00 | F80: 5.00 | G80: 4.00 | H80: 0.00 | I80: 0.00 | J80: 0.00 | M80: 1,910.00 | N80: 1,919.99 | P80: 511.99 | Q80: 143.92 | R80: 16.29 | S80: 0.00 | T80: 0.00 | U80: 0.00
B81: 0.01 | C81: 9.99 | E81: 7.00 | F81: 5.00 | G81: 4.00 | H81: 0.00 | I81: 0.00 | J81: 0.00 | M81: 1,920.00 | N81: 1,929.99 | P81: 518.99 | Q81: 148.92 | R81: 20.29 | S81: 0.00 | T81: 0.00 | U81: 0.00
B82: 0.01 | C82: 9.99 | E82: 7.00 | F82: 5.00 | G82: 4.00 | H82: 0.00 | I82: 0.00 | J82: 0.00 | M82: 1,930.00 | N82: 1,939.99 | P82: 525.99 | Q82: 153.92 | R82: 24.29 | S82: 0.00 | T82: 0.00 | U82: 0.00
B83: 0.01 | C83: 9.99 | E83: 7.00 | F83: 5.00 | G83: 4.00 | H83: 0.00 | I83: 0.00 | J83: 0.00 | M83: 1,940.00 | N83: 1,949.99 | P83: 532.99 | Q83: 158.92 | R83: 28.29 | S83: 0.00 | T83: 0.00 | U83: 0.00
B84: 0.01 | C84: 9.99 | E84: 7.00 | F84: 5.00 | G84: 4.00 | H84: 0.00 | I84: 0.00 | J84: 0.00 | M84: 1,950.00 | N84: 1,959.99 | P84: 539.99 | Q84: 163.92 | R84: 32.29 | S84: 0.00 | T84: 0.00 | U84: 0.00
B85: 0.01 | C85: 9.99 | E85: 7.00 | F85: 5.00 | G85: 4.00 | H85: 0.29 | I85: 0.00 | J85: 0.00 | M85: 1,960.00 | N85: 1,969.99 | P85: 546.99 | Q85: 168.92 | R85: 36.29 | S85: 0.00 | T85: 0.00 | U85: 0.00
B86: 0.01 | C86: 9.99 | E86: 7.00 | F86: 5.00 | G86: 4.00 | H86: 3.00 | I86: 0.00 | J86: 0.00 | M86: 1,970.00 | N86: 1,979.99 | P86: 553.99 | Q86: 173.92 | R86: 40.29 | S86: 0.00 | T86: 0.00 | U86: 0.00
B87: 0.01 | C87: 9.99 | E87: 7.00 | F87: 5.00 | G87: 4.00 | H87: 3.00 | I87: 0.00 | J87: 0.00 | M87: 1,980.00 | N87: 1,989.99 | P87: 560.99 | Q87: 178.92 | R87: 44.29 | S87: 0.00 | T87: 0.00 | U87: 0.00
B88: 0.01 | C88: 9.99 | E88: 7.00 | F88: 5.00 | G88: 4.00 | H88: 3.00 | I88: 0.00 | J88: 0.00 | M88: 1,990.00 | N88: 1,999.99 | P88: 567.99 | Q88: 183.92 | R88: 48.29 | S88: 0.00 | T88: 0.00 | U88: 0.00
B89: 0.01 | C89: 9.99 | E89: 7.00 | F89: 5.00 | G89: 4.00 | H89: 3.00 | I89: 0.00 | J89: 0.00 | M89: =10+M88 -> 2,000.00 | N89: 2,009.99 | P89: 574.99 | Q89: 188.92 | R89: 52.29 | S89: 0.00 | T89: 0.00 | U89: 0.00
B90: 0.01 | C90: 9.99 | E90: 7.00 | F90: 5.00 | G90: 4.00 | H90: 3.00 | I90: 0.00 | J90: 0.00 | M90: 2,010.00 | N90: 2,019.99 | P90: 581.99 | Q90: 193.92 | R90: 56.29 | S90: 0.00 | T90: 0.00 | U90: 0.00
B91: 0.01 | C91: 9.99 | E91: 7.00 | F91: 5.00 | G91: 4.00 | H91: 3.00 | I91: 0.00 | J91: 0.00 | M91: 2,020.00 | N91: 2,029.99 | P91: 588.99 | Q91: 198.92 | R91: 60.29 | S91: 0.00 | T91: 0.00 | U91: 0.00
B92: 0.01 | C92: 9.99 | E92: 7.00 | F92: 5.00 | G92: 4.00 | H92: 3.00 | I92: 0.00 | J92: 0.00 | M92: 2,030.00 | N92: 2,039.99 | P92: 595.99 | Q92: 203.92 | R92: 64.29 | S92: 0.00 | T92: 0.00 | U92: 0.00
B93: 0.01 | C93: 9.99 | E93: 7.00 | F93: 5.00 | G93: 4.00 | H93: 3.00 | I93: 0.00 | J93: 0.00 | M93: 2,040.00 | N93: 2,049.99 | P93: 602.99 | Q93: 208.92 | R93: 68.29 | S93: 0.00 | T93: 0.00 | U93: 0.00
B94: 0.01 | C94: 9.99 | E94: 7.00 | F94: 5.00 | G94: 4.00 | H94: 3.00 | I94: 0.00 | J94: 0.00 | M94: 2,050.00 | N94: 2,059.99 | P94: 609.99 | Q94: 213.92 | R94: 72.29 | S94: 0.00 | T94: 0.00 | U94: 0.00
B95: 0.01 | C95: 9.99 | E95: 7.00 | F95: 5.00 | G95: 4.00 | H95: 3.00 | I95: 0.00 | J95: 0.00 | M95: 2,060.00 | N95: 2,069.99 | P95: 616.99 | Q95: 218.92 | R95: 76.29 | S95: 0.00 | T95: 0.00 | U95: 0.00
B96: 0.01 | C96: 9.99 | E96: 7.00 | F96: 5.00 | G96: 4.00 | H96: 3.00 | I96: 0.00 | J96: 0.00 | M96: 2,070.00 | N96: 2,079.99 | P96: 623.99 | Q96: 223.92 | R96: 80.29 | S96: 0.00 | T96: 0.00 | U96: 0.00
B97: 0.01 | C97: 9.99 | E97: 7.00 | F97: 5.00 | G97: 4.00 | H97: 3.00 | I97: 0.00 | J97: 0.00 | M97: 2,080.00 | N97: 2,089.99 | P97: 630.99 | Q97: 228.92 | R97: 84.29 | S97: 0.00 | T97: 0.00 | U97: 0.00
B98: 0.01 | C98: 9.99 | E98: 7.00 | F98: 5.00 | G98: 4.00 | H98: 3.00 | I98: 0.00 | J98: 0.00 | M98: 2,090.00 | N98: 2,099.99 | P98: 637.99 | Q98: 233.92 | R98: 88.29 | S98: 0.00 | T98: 0.00 | U98: 0.00
B99: 0.01 | C99: 9.99 | E99: 7.00 | F99: 5.00 | G99: 4.00 | H99: 3.00 | I99: 0.00 | J99: 0.00 | M99: 2,100.00 | N99: 2,109.99 | P99: 644.99 | Q99: 238.92 | R99: 92.29 | S99: 0.00 | T99: 0.00 | U99: 0.00
B100: 0.01 | C100: 9.99 | E100: 7.00 | F100: 5.00 | G100: 4.00 | H100: 3.00 | I100: 0.00 | J100: 0.00 | M100: 2,110.00 | N100: 2,119.99 | P100: 651.99 | Q100: 243.92 | R100: 96.29 | S100: 0.00 | T100: 0.00 | U100: 0.00
B101: 0.01 | C101: 9.99 | E101: 7.00 | F101: 5.00 | G101: 4.00 | H101: 3.00 | I101: 0.00 | J101: 0.00 | M101: 2,120.00 | N101: 2,129.99 | P101: 658.99 | Q101: 248.92 | R101: 100.29 | S101: 1.08 | T101: 0.00 | U101: 0.00
B102: 0.01 | C102: 9.99 | E102: 7.00 | F102: 5.00 | G102: 4.00 | H102: 3.00 | I102: 0.00 | J102: 0.00 | M102: 2,130.00 | N102: 2,139.99 | P102: 665.99 | Q102: 253.92 | R102: 104.29 | S102: =3+S101 -> 4.08 | T102: 0.00 | U102: 0.00
B103: 0.01 | C103: 9.99 | E103: 7.00 | F103: 5.00 | G103: 4.00 | H103: 3.00 | I103: 0.00 | J103: 0.00 | M103: 2,140.00 | N103: 2,149.99 | P103: 672.99 | Q103: 258.92 | R103: 108.29 | S103: =3+S102 -> 7.08 | T103: 0.00 | U103: 0.00
B104: 0.01 | C104: 9.99 | E104: 7.00 | F104: 5.00 | G104: 4.00 | H104: 3.00 | I104: 0.00 | J104: 0.00 | M104: 2,150.00 | N104: 2,159.99 | P104: 679.99 | Q104: 263.92 | R104: 112.29 | S104: 10.08 | T104: 0.00 | U104: 0.00
B105: 0.01 | C105: 9.99 | E105: 7.00 | F105: 5.00 | G105: 4.00 | H105: 3.00 | I105: 0.00 | J105: 0.00 | M105: =10+M104 -> 2,160.00 | N105: 2,169.99 | P105: 686.99 | Q105: 268.92 | R105: 116.29 | S105: 13.08 | T105: 0.00 | U105: 0.00
B106: 0.01 | C106: 9.99 | E106: 7.00 | F106: 5.00 | G106: 4.00 | H106: 3.00 | I106: 0.88 | J106: 0.00 | M106: 2,170.00 | N106: 2,179.99 | P106: 693.99 | Q106: 273.92 | R106: 120.29 | S106: 16.08 | T106: 0.00 | U106: 0.00
B107: 0.01 | C107: 9.99 | E107: 7.00 | F107: 5.00 | G107: 4.00 | H107: 3.00 | I107: 2.00 | J107: 0.00 | M107: 2,180.00 | N107: 2,189.99 | P107: 700.99 | Q107: 278.92 | R107: 124.29 | S107: 19.08 | T107: 0.00 | U107: 0.00
B108: 0.01 | C108: 9.99 | E108: 7.00 | F108: 5.00 | G108: 4.00 | H108: 3.00 | I108: 2.00 | J108: 0.00 | M108: 2,190.00 | N108: 2,199.99 | P108: 707.99 | Q108: 283.92 | R108: 128.29 | S108: 22.08 | T108: 0.00 | U108: 0.00
B109: 0.01 | C109: 9.99 | E109: 7.00 | F109: 5.00 | G109: 4.00 | H109: 3.00 | I109: 2.00 | J109: 0.00 | M109: 2,200.00 | N109: 2,209.99 | P109: 714.99 | Q109: 288.92 | R109: 132.29 | S109: 25.08 | T109: 0.00 | U109: 0.00
B110: 0.01 | C110: 9.99 | E110: 7.00 | F110: 5.00 | G110: 4.00 | H110: 3.00 | I110: 2.00 | J110: 0.00 | M110: 2,210.00 | N110: 2,219.99 | P110: 721.99 | Q110: 293.92 | R110: 136.29 | S110: 28.08 | T110: 0.00 | U110: 0.00
B111: 0.01 | C111: 9.99 | E111: 7.00 | F111: 5.00 | G111: 4.00 | H111: 3.00 | I111: 2.00 | J111: 0.00 | M111: 2,220.00 | N111: 2,229.99 | P111: 728.99 | Q111: 298.92 | R111: 140.29 | S111: 31.08 | T111: 0.00 | U111: 0.00
B112: 0.01 | C112: 9.99 | E112: 7.00 | F112: 5.00 | G112: 4.00 | H112: 3.00 | I112: 2.00 | J112: 0.00 | M112: 2,230.00 | N112: 2,239.99 | P112: 735.99 | Q112: 303.92 | R112: 144.29 | S112: 34.08 | T112: 0.00 | U112: 0.00
B113: 0.01 | C113: 9.99 | E113: 7.00 | F113: 5.00 | G113: 4.00 | H113: 3.00 | I113: 2.00 | J113: 0.00 | M113: 2,240.00 | N113: 2,249.99 | P113: 742.99 | Q113: 308.92 | R113: 148.29 | S113: 37.08 | T113: 0.00 | U113: 0.00
B114: 0.01 | C114: 9.99 | E114: 7.00 | F114: 5.00 | G114: 4.00 | H114: 3.00 | I114: 2.00 | J114: 0.00 | M114: 2,250.00 | N114: 2,259.99 | P114: 749.99 | Q114: 313.92 | R114: 152.29 | S114: 40.08 | T114: 0.00 | U114: 0.00
B115: 0.01 | C115: 9.99 | E115: 7.00 | F115: 5.00 | G115: 4.00 | H115: 3.00 | I115: 2.00 | J115: 0.00 | M115: 2,260.00 | N115: 2,269.99 | P115: 756.99 | Q115: 318.92 | R115: 156.29 | S115: 43.08 | T115: 0.00 | U115: 0.00
B116: 0.01 | C116: 9.99 | E116: 7.00 | F116: 5.00 | G116: 4.00 | H116: 3.00 | I116: 2.00 | J116: 0.00 | M116: 2,270.00 | N116: 2,279.99 | P116: 763.99 | Q116: 323.92 | R116: 160.29 | S116: 46.08 | T116: 0.00 | U116: 0.00
B117: 0.01 | C117: 9.99 | E117: 7.00 | F117: 5.00 | G117: 4.00 | H117: 3.00 | I117: 2.00 | J117: 0.00 | M117: 2,280.00 | N117: 2,289.99 | P117: 770.99 | Q117: 328.92 | R117: 164.29 | S117: 49.08 | T117: 0.00 | U117: 0.00
B118: 0.01 | C118: 9.99 | E118: 7.00 | F118: 5.00 | G118: 4.00 | H118: 3.00 | I118: 2.00 | J118: 0.00 | M118: 2,290.00 | N118: 2,299.99 | P118: 777.99 | Q118: =5+Q117 -> 333.92 | R118: 168.29 | S118: 52.08 | T118: 0.00 | U118: 0.00
B119: 0.01 | C119: 9.99 | E119: 7.00 | F119: 5.00 | G119: 4.00 | H119: 3.00 | I119: 2.00 | J119: 0.00 | M119: 2,300.00 | N119: 2,309.99 | P119: 784.99 | Q119: 338.92 | R119: 172.29 | S119: 55.08 | T119: 0.00 | U119: 0.00
B120: 0.01 | C120: 9.99 | E120: 7.00 | F120: 5.00 | G120: 4.00 | H120: 3.00 | I120: 2.00 | J120: 0.00 | M120: 2,310.00 | N120: 2,319.99 | P120: 791.99 | Q120: 343.92 | R120: 176.29 | S120: 58.08 | T120: 0.00 | U120: 0.00
B121: 0.01 | C121: 9.99 | E121: 7.00 | F121: 5.00 | G121: 4.00 | H121: 3.00 | I121: 2.00 | J121: 0.00 | M121: =10+M120 -> 2,320.00 | N121: 2,329.99 | P121: 798.99 | Q121: 348.92 | R121: 180.29 | S121: 61.08 | T121: 0.00 | U121: 0.00
B122: 0.01 | C122: 9.99 | E122: 7.00 | F122: 5.00 | G122: 4.00 | H122: 3.00 | I122: 2.00 | J122: 0.00 | M122: 2,330.00 | N122: 2,339.99 | P122: 805.99 | Q122: 353.92 | R122: 184.29 | S122: 64.08 | T122: 0.00 | U122: 0.00
B123: 0.01 | C123: 9.99 | E123: 7.00 | F123: 5.00 | G123: 4.00 | H123: 3.00 | I123: 2.00 | J123: 0.00 | M123: 2,340.00 | N123: 2,349.99 | P123: 812.99 | Q123: 358.92 | R123: 188.29 | S123: 67.08 | T123: 0.00 | U123: 0.00
B124: 0.01 | C124: 9.99 | E124: 7.00 | F124: 5.00 | G124: 4.00 | H124: 3.00 | I124: 2.00 | J124: 0.00 | M124: 2,350.00 | N124: 2,359.99 | P124: 819.99 | Q124: 363.92 | R124: 192.29 | S124: 70.08 | T124: 0.00 | U124: 0.00
B125: 0.01 | C125: 9.99 | E125: 7.00 | F125: 5.00 | G125: 4.00 | H125: 3.00 | I125: 2.00 | J125: 0.00 | M125: 2,360.00 | N125: 2,369.99 | P125: 826.99 | Q125: 368.92 | R125: 196.29 | S125: 73.08 | T125: 0.00 | U125: 0.00
B126: 0.01 | C126: 9.99 | E126: 7.00 | F126: 5.00 | G126: 4.00 | H126: 3.00 | I126: 2.00 | J126: 0.00 | M126: 2,370.00 | N126: 2,379.99 | P126: 833.99 | Q126: 373.92 | R126: 200.29 | S126: 76.08 | T126: 1.30 | U126: 0.00
B127: 0.01 | C127: 9.99 | E127: 7.00 | F127: 5.00 | G127: 4.00 | H127: 3.00 | I127: 2.00 | J127: 0.79 | M127: 2,380.00 | N127: 2,389.99 | P127: 840.99 | Q127: 378.92 | R127: 204.29 | S127: 79.08 | T127: =2+T126 -> 3.30 | U127: 0.00
B128: 0.01 | C128: 9.99 | E128: 7.00 | F128: 5.00 | G128: 4.00 | H128: 3.00 | I128: 2.00 | J128: 1.00 | M128: 2,390.00 | N128: 2,399.99 | P128: 847.99 | Q128: 383.92 | R128: 208.29 | S128: 82.08 | T128: =2+T127 -> 5.30 | U128: 0.00
B129: 0.01 | C129: 9.99 | E129: 7.00 | F129: 5.00 | G129: 4.00 | H129: 3.00 | I129: 2.00 | J129: 1.00 | M129: 2,400.00 | N129: 2,409.99 | P129: 854.99 | Q129: 388.92 | R129: 212.29 | S129: 85.08 | T129: 7.30 | U129: 0.00
B130: 0.01 | C130: 9.99 | E130: 7.00 | F130: 5.00 | G130: 4.00 | H130: 3.00 | I130: 2.00 | J130: 1.00 | M130: 2,410.00 | N130: 2,419.99 | P130: 861.99 | Q130: 393.92 | R130: 216.29 | S130: 88.08 | T130: 9.30 | U130: 0.00
B131: 0.01 | C131: 9.99 | E131: 7.00 | F131: 5.00 | G131: 4.00 | H131: 3.00 | I131: 2.00 | J131: 1.00 | M131: 2,420.00 | N131: 2,429.99 | P131: 868.99 | Q131: 398.92 | R131: 220.29 | S131: 91.08 | T131: 11.30 | U131: 0.00
B132: 0.01 | C132: 9.99 | E132: 7.00 | F132: 5.00 | G132: 4.00 | H132: 3.00 | I132: 2.00 | J132: 1.00 | M132: 2,430.00 | N132: 2,439.99 | P132: 875.99 | Q132: 403.92 | R132: 224.29 | S132: 94.08 | T132: 13.30 | U132: 0.00
B133: 0.01 | C133: 9.99 | E133: 7.00 | F133: 5.00 | G133: 4.00 | H133: 3.00 | I133: 2.00 | J133: 1.00 | M133: 2,440.00 | N133: 2,449.99 | P133: 882.99 | Q133: 408.92 | R133: 228.29 | S133: 97.08 | T133: 15.30 | U133: 0.00
B134: 0.01 | C134: 9.99 | E134: 7.00 | F134: 5.00 | G134: 4.00 | H134: 3.00 | I134: 2.00 | J134: 1.00 | M134: 2,450.00 | N134: 2,459.99 | P134: 889.99 | Q134: 413.92 | R134: 232.29 | S134: 100.08 | T134: 17.30 | U134: 0.00
B135: 0.01 | C135: 9.99 | E135: 7.00 | F135: 5.00 | G135: 4.00 | H135: 3.00 | I135: 2.00 | J135: 1.00 | M135: 2,460.00 | N135: 2,469.99 | P135: 896.99 | Q135: 418.92 | R135: 236.29 | S135: 103.08 | T135: 19.30 | U135: 0.00
B136: 0.01 | C136: 9.99 | E136: 7.00 | F136: 5.00 | G136: 4.00 | H136: 3.00 | I136: 2.00 | J136: 1.00 | M136: 2,470.00 | N136: 2,479.99 | P136: 903.99 | Q136: 423.92 | R136: 240.29 | S136: 106.08 | T136: 21.30 | U136: 0.00
B137: 0.01 | C137: 9.99 | E137: 7.00 | F137: 5.00 | G137: 4.00 | H137: 3.00 | I137: 2.00 | J137: 1.00 | M137: =10+M136 -> 2,480.00 | N137: 2,489.99 | P137: =7+P136 -> 910.99 | Q137: 428.92 | R137: 244.29 | S137: 109.08 | T137: 23.30 | U137: 0.00
B138: 0.01 | C138: 9.99 | E138: 7.00 | F138: 5.00 | G138: 4.00 | H138: 3.00 | I138: 2.00 | J138: 1.00 | M138: 2,490.00 | N138: 2,499.99 | P138: 917.99 | Q138: 433.92 | R138: 248.29 | S138: 112.08 | T138: 25.30 | U138: 0.00
B139: 0.01 | C139: 9.99 | E139: 7.00 | F139: 5.00 | G139: 4.00 | H139: 3.00 | I139: 2.00 | J139: 1.00 | M139: 2,500.00 | N139: 2,509.99 | P139: 924.99 | Q139: 438.92 | R139: 252.29 | S139: 115.08 | T139: 27.30 | U139: 0.00
B140: 0.01 | C140: 9.99 | E140: 7.00 | F140: 5.00 | G140: 4.00 | H140: 3.00 | I140: 2.00 | J140: 1.00 | M140: 2,510.00 | N140: 2,519.99 | P140: 931.99 | Q140: 443.92 | R140: 256.29 | S140: 118.08 | T140: 29.30 | U140: 0.00
B141: 0.01 | C141: 9.99 | E141: 7.00 | F141: 5.00 | G141: 4.00 | H141: 3.00 | I141: 2.00 | J141: 1.00 | M141: 2,520.00 | N141: 2,529.99 | P141: 938.99 | Q141: 448.92 | R141: 260.29 | S141: 121.08 | T141: 31.30 | U141: 0.00
B142: 0.01 | C142: 9.99 | E142: 7.00 | F142: 5.00 | G142: 4.00 | H142: 3.00 | I142: 2.00 | J142: 1.00 | M142: 2,530.00 | N142: 2,539.99 | P142: 945.99 | Q142: 453.92 | R142: =4+R141 -> 264.29 | S142: 124.08 | T142: 33.30 | U142: 0.00
B143: 0.01 | C143: 9.99 | E143: 7.00 | F143: 5.00 | G143: 4.00 | H143: 3.00 | I143: 2.00 | J143: 1.00 | M143: 2,540.00 | N143: 2,549.99 | P143: 952.99 | Q143: 458.92 | R143: 268.29 | S143: 127.08 | T143: 35.30 | U143: 0.00
B144: 0.01 | C144: 9.99 | E144: 7.00 | F144: 5.00 | G144: 4.00 | H144: 3.00 | I144: 2.00 | J144: 1.00 | M144: 2,550.00 | N144: 2,559.99 | P144: 959.99 | Q144: 463.92 | R144: 272.29 | S144: 130.08 | T144: 37.30 | U144: 0.00
B145: 0.01 | C145: 9.99 | E145: 7.00 | F145: 5.00 | G145: 4.00 | H145: 3.00 | I145: 2.00 | J145: 1.00 | M145: 2,560.00 | N145: 2,569.99 | P145: 966.99 | Q145: 468.92 | R145: 276.29 | S145: 133.08 | T145: 39.30 | U145: 0.00
B146: 0.01 | C146: 9.99 | E146: 7.00 | F146: 5.00 | G146: 4.00 | H146: 3.00 | I146: 2.00 | J146: 1.00 | M146: 2,570.00 | N146: 2,579.99 | P146: 973.99 | Q146: 473.92 | R146: 280.29 | S146: 136.08 | T146: 41.30 | U146: 0.00
B147: 0.01 | C147: 9.99 | E147: 7.00 | F147: 5.00 | G147: 4.00 | H147: 3.00 | I147: 2.00 | J147: 1.00 | M147: 2,580.00 | N147: 2,589.99 | P147: 980.99 | Q147: 478.92 | R147: 284.29 | S147: 139.08 | T147: 43.30 | U147: 0.00
B148: 0.01 | C148: 9.99 | E148: 7.00 | F148: 5.00 | G148: 4.00 | H148: 3.00 | I148: 2.00 | J148: 1.00 | M148: 2,590.00 | N148: 2,599.99 | P148: 987.99 | Q148: 483.92 | R148: 288.29 | S148: 142.08 | T148: 45.30 | U148: 0.00
B149: 0.01 | C149: 9.99 | E149: 7.00 | F149: 5.00 | G149: 4.00 | H149: 3.00 | I149: 2.00 | J149: 1.00 | M149: 2,600.00 | N149: 2,609.99 | P149: 994.99 | Q149: 488.92 | R149: 292.29 | S149: 145.08 | T149: 47.30 | U149: 0.00
B150: 0.01 | C150: 9.99 | E150: 7.00 | F150: 5.00 | G150: 4.00 | H150: 3.00 | I150: 2.00 | J150: 1.00 | M150: 2,610.00 | N150: 2,619.99 | P150: 1,001.99 | Q150: 493.92 | R150: 296.29 | S150: 148.08 | T150: 49.30 | U150: 0.00
B151: 0.01 | C151: 9.99 | E151: 7.00 | F151: 5.00 | G151: 4.00 | H151: 3.00 | I151: 2.00 | J151: 1.00 | M151: 2,620.00 | N151: 2,629.99 | P151: 1,008.99 | Q151: 498.92 | R151: 300.29 | S151: 151.08 | T151: 51.30 | U151: 0.94
B152: 0.01 | C152: 9.99 | E152: 7.00 | F152: 5.00 | G152: 4.00 | H152: 3.00 | I152: 2.00 | J152: 1.00 | M152: 2,630.00 | N152: 2,639.99 | P152: 1,015.99 | Q152: 503.92 | R152: 304.29 | S152: 154.08 | T152: 53.30 | U152: =1+U151 -> 1.94
B153: 0.01 | C153: 9.99 | E153: 7.00 | F153: 5.00 | G153: 4.00 | H153: 3.00 | I153: 2.00 | J153: 1.00 | M153: =10+M152 -> 2,640.00 | N153: 2,649.99 | P153: 1,022.99 | Q153: 508.92 | R153: 308.29 | S153: 157.08 | T153: 55.30 | U153: =1+U152 -> 2.94
B154: 0.01 | C154: 9.99 | E154: 7.00 | F154: 5.00 | G154: 4.00 | H154: 3.00 | I154: 2.00 | J154: 1.00 | M154: 2,650.00 | N154: 2,659.99 | P154: 1,029.99 | Q154: 513.92 | R154: 312.29 | S154: 160.08 | T154: 57.30 | U154: 3.94
B155: 0.01 | C155: 9.99 | E155: 7.00 | F155: 5.00 | G155: 4.00 | H155: 3.00 | I155: 2.00 | J155: 1.00 | M155: 2,660.00 | N155: 2,669.99 | P155: 1,036.99 | Q155: 518.92 | R155: 316.29 | S155: 163.08 | T155: 59.30 | U155: 4.94
B156: 0.01 | C156: 9.99 | E156: 7.00 | F156: 5.00 | G156: 4.00 | H156: 3.00 | I156: 2.00 | J156: 1.00 | M156: 2,670.00 | N156: 2,679.99 | P156: 1,043.99 | Q156: 523.92 | R156: 320.29 | S156: 166.08 | T156: 61.30 | U156: 5.94
B157: 0.01 | C157: 9.99 | E157: 7.00 | F157: 5.00 | G157: 4.00 | H157: 3.00 | I157: 2.00 | J157: 1.00 | M157: 2,680.00 | N157: 2,689.99 | P157: 1,050.99 | Q157: 528.92 | R157: 324.29 | S157: 169.08 | T157: 63.30 | U157: 6.94
B158: 0.01 | C158: 9.99 | E158: 7.00 | F158: 5.00 | G158: 4.00 | H158: 3.00 | I158: 2.00 | J158: 1.00 | M158: 2,690.00 | N158: 2,699.99 | P158: 1,057.99 | Q158: 533.92 | R158: 328.29 | S158: 172.08 | T158: 65.30 | U158: 7.94
B159: 0.01 | C159: 9.99 | E159: 7.00 | F159: 5.00 | G159: 4.00 | H159: 3.00 | I159: 2.00 | J159: 1.00 | M159: 2,700.00 | N159: 2,709.99 | P159: 1,064.99 | Q159: 538.92 | R159: 332.29 | S159: 175.08 | T159: 67.30 | U159: 8.94
B160: 0.01 | C160: 9.99 | E160: 7.00 | F160: 5.00 | G160: 4.00 | H160: 3.00 | I160: 2.00 | J160: 1.00 | M160: 2,710.00 | N160: 2,719.99 | P160: 1,071.99 | Q160: 543.92 | R160: 336.29 | S160: 178.08 | T160: 69.30 | U160: 9.94
B161: 0.01 | C161: 9.99 | E161: 7.00 | F161: 5.00 | G161: 4.00 | H161: 3.00 | I161: 2.00 | J161: 1.00 | M161: 2,720.00 | N161: 2,729.99 | P161: 1,078.99 | Q161: 548.92 | R161: 340.29 | S161: 181.08 | T161: 71.30 | U161: 10.94
B162: 0.01 | C162: 9.99 | E162: 7.00 | F162: 5.00 | G162: 4.00 | H162: 3.00 | I162: 2.00 | J162: 1.00 | M162: 2,730.00 | N162: 2,739.99 | P162: 1,085.99 | Q162: 553.92 | R162: 344.29 | S162: 184.08 | T162: 73.30 | U162: 11.94
B163: 0.01 | C163: 9.99 | E163: 7.00 | F163: 5.00 | G163: 4.00 | H163: 3.00 | I163: 2.00 | J163: 1.00 | M163: 2,740.00 | N163: 2,749.99 | P163: 1,092.99 | Q163: 558.92 | R163: 348.29 | S163: 187.08 | T163: 75.30 | U163: 12.94
B164: 0.01 | C164: 9.99 | E164: 7.00 | F164: 5.00 | G164: 4.00 | H164: 3.00 | I164: 2.00 | J164: 1.00 | M164: 2,750.00 | N164: 2,759.99 | P164: 1,099.99 | Q164: 563.92 | R164: 352.29 | S164: 190.08 | T164: 77.30 | U164: 13.94
B165: 0.01 | C165: 9.99 | E165: 7.00 | F165: 5.00 | G165: 4.00 | H165: 3.00 | I165: 2.00 | J165: 1.00 | M165: 2,760.00 | N165: 2,769.99 | P165: 1,106.99 | Q165: 568.92 | R165: 356.29 | S165: 193.08 | T165: 79.30 | U165: 14.94
B166: 0.01 | C166: 9.99 | E166: 7.00 | F166: 5.00 | G166: 4.00 | H166: 3.00 | I166: 2.00 | J166: 1.00 | M166: 2,770.00 | N166: 2,779.99 | P166: 1,113.99 | Q166: 573.92 | R166: 360.29 | S166: 196.08 | T166: 81.30 | U166: 15.94
B167: 0.01 | C167: 9.99 | E167: 7.00 | F167: 5.00 | G167: 4.00 | H167: 3.00 | I167: 2.00 | J167: 1.00 | M167: 2,780.00 | N167: 2,789.99 | P167: 1,120.99 | Q167: 578.92 | R167: 364.29 | S167: =3+S166 -> 199.08 | T167: 83.30 | U167: 16.94
B168: 0.01 | C168: 9.99 | E168: 7.00 | F168: 5.00 | G168: 4.00 | H168: 3.00 | I168: 2.00 | J168: 1.00 | M168: 2,790.00 | N168: 2,799.99 | P168: 1,127.99 | Q168: 583.92 | R168: 368.29 | S168: 202.08 | T168: 85.30 | U168: 17.94
B169: 0.01 | C169: 9.99 | E169: 7.00 | F169: 5.00 | G169: 4.00 | H169: 3.00 | I169: 2.00 | J169: 1.00 | M169: =10+M168 -> 2,800.00 | N169: 2,809.99 | P169: 1,134.99 | Q169: 588.92 | R169: 372.29 | S169: 205.08 | T169: 87.30 | U169: 18.94
B170: 0.01 | C170: 9.99 | E170: 7.00 | F170: 5.00 | G170: 4.00 | H170: 3.00 | I170: 2.00 | J170: 1.00 | M170: 2,810.00 | N170: 2,819.99 | P170: 1,141.99 | Q170: 593.92 | R170: 376.29 | S170: 208.08 | T170: 89.30 | U170: 19.94
B171: 0.01 | C171: 9.99 | E171: 7.00 | F171: 5.00 | G171: 4.00 | H171: 3.00 | I171: 2.00 | J171: 1.00 | M171: 2,820.00 | N171: 2,829.99 | P171: 1,148.99 | Q171: 598.92 | R171: 380.29 | S171: 211.08 | T171: 91.30 | U171: 20.94
B172: 0.01 | C172: 9.99 | E172: 7.00 | F172: 5.00 | G172: 4.00 | H172: 3.00 | I172: 2.00 | J172: 1.00 | M172: 2,830.00 | N172: 2,839.99 | P172: 1,155.99 | Q172: 603.92 | R172: 384.29 | S172: 214.08 | T172: 93.30 | U172: 21.94
B173: 0.01 | C173: 9.99 | E173: 7.00 | F173: 5.00 | G173: 4.00 | H173: 3.00 | I173: 2.00 | J173: 1.00 | M173: 2,840.00 | N173: 2,849.99 | P173: 1,162.99 | Q173: 608.92 | R173: 388.29 | S173: 217.08 | T173: 95.30 | U173: 22.94
B174: 0.01 | C174: 9.99 | E174: 7.00 | F174: 5.00 | G174: 4.00 | H174: 3.00 | I174: 2.00 | J174: 1.00 | M174: 2,850.00 | N174: 2,859.99 | P174: 1,169.99 | Q174: 613.92 | R174: 392.29 | S174: 220.08 | T174: 97.30 | U174: 23.94
B175: 0.01 | C175: 9.99 | E175: 7.00 | F175: 5.00 | G175: 4.00 | H175: 3.00 | I175: 2.00 | J175: 1.00 | M175: 2,860.00 | N175: 2,869.99 | P175: 1,176.99 | Q175: 618.92 | R175: 396.29 | S175: 223.08 | T175: 99.30 | U175: 24.94
B176: 0.01 | C176: 9.99 | E176: 7.00 | F176: 5.00 | G176: 4.00 | H176: 3.00 | I176: 2.00 | J176: 1.00 | M176: 2,870.00 | N176: 2,879.99 | P176: 1,183.99 | Q176: 623.92 | R176: 400.29 | S176: 226.08 | T176: 101.30 | U176: 25.94
B177: 0.01 | C177: 9.99 | E177: 7.00 | F177: 5.00 | G177: 4.00 | H177: 3.00 | I177: 2.00 | J177: 1.00 | M177: 2,880.00 | N177: 2,889.99 | P177: 1,190.99 | Q177: 628.92 | R177: 404.29 | S177: 229.08 | T177: 103.30 | U177: 26.94
B178: 0.01 | C178: 9.99 | E178: 7.00 | F178: 5.00 | G178: 4.00 | H178: 3.00 | I178: 2.00 | J178: 1.00 | M178: 2,890.00 | N178: 2,899.99 | P178: 1,197.99 | Q178: 633.92 | R178: 408.29 | S178: 232.08 | T178: 105.30 | U178: 27.94
B179: 0.01 | C179: 9.99 | E179: 7.00 | F179: 5.00 | G179: 4.00 | H179: 3.00 | I179: 2.00 | J179: 1.00 | M179: 2,900.00 | N179: 2,909.99 | P179: 1,204.99 | Q179: 638.92 | R179: 412.29 | S179: 235.08 | T179: 107.30 | U179: 28.94
B180: 0.01 | C180: 9.99 | E180: 7.00 | F180: 5.00 | G180: 4.00 | H180: 3.00 | I180: 2.00 | J180: 1.00 | M180: 2,910.00 | N180: 2,919.99 | P180: 1,211.99 | Q180: 643.92 | R180: 416.29 | S180: 238.08 | T180: 109.30 | U180: 29.94
B181: 0.01 | C181: 9.99 | E181: 7.00 | F181: 5.00 | G181: 4.00 | H181: 3.00 | I181: 2.00 | J181: 1.00 | M181: 2,920.00 | N181: 2,929.99 | P181: 1,218.99 | Q181: 648.92 | R181: 420.29 | S181: 241.08 | T181: 111.30 | U181: 30.94
B182: 0.01 | C182: 9.99 | E182: 7.00 | F182: 5.00 | G182: 4.00 | H182: 3.00 | I182: 2.00 | J182: 1.00 | M182: 2,930.00 | N182: 2,939.99 | P182: 1,225.99 | Q182: =5+Q181 -> 653.92 | R182: 424.29 | S182: 244.08 | T182: 113.30 | U182: 31.94
B183: 0.01 | C183: 9.99 | E183: 7.00 | F183: 5.00 | G183: 4.00 | H183: 3.00 | I183: 2.00 | J183: 1.00 | M183: 2,940.00 | N183: 2,949.99 | P183: 1,232.99 | Q183: 658.92 | R183: 428.29 | S183: 247.08 | T183: 115.30 | U183: 32.94
B184: 0.01 | C184: 9.99 | E184: 7.00 | F184: 5.00 | G184: 4.00 | H184: 3.00 | I184: 2.00 | J184: 1.00 | M184: 2,950.00 | N184: 2,959.99 | P184: 1,239.99 | Q184: 663.92 | R184: 432.29 | S184: 250.08 | T184: 117.30 | U184: 33.94
B185: 0.01 | C185: 9.99 | E185: 7.00 | F185: 5.00 | G185: 4.00 | H185: 3.00 | I185: 2.00 | J185: 1.00 | M185: =10+M184 -> 2,960.00 | N185: 2,969.99 | P185: 1,246.99 | Q185: 668.92 | R185: 436.29 | S185: 253.08 | T185: 119.30 | U185: 34.94
B186: 0.01 | C186: 9.99 | E186: 7.00 | F186: 5.00 | G186: 4.00 | H186: 3.00 | I186: 2.00 | J186: 1.00 | M186: 2,970.00 | N186: 2,979.99 | P186: 1,253.99 | Q186: 673.92 | R186: 440.29 | S186: 256.08 | T186: 121.30 | U186: 35.94
B187: 0.01 | C187: 9.99 | E187: 7.00 | F187: 5.00 | G187: 4.00 | H187: 3.00 | I187: 2.00 | J187: 1.00 | M187: 2,980.00 | N187: 2,989.99 | P187: 1,260.99 | Q187: 678.92 | R187: 444.29 | S187: 259.08 | T187: 123.30 | U187: 36.94
B188: 0.01 | C188: 9.99 | E188: 7.00 | F188: 5.00 | G188: 4.00 | H188: 3.00 | I188: 2.00 | J188: 1.00 | M188: 2,990.00 | N188: 2,999.99 | P188: 1,267.99 | Q188: 683.92 | R188: 448.29 | S188: 262.08 | T188: 125.30 | U188: 37.94
B189: 0.01 | C189: 9.99 | E189: 7.00 | F189: 5.00 | G189: 4.00 | H189: 3.00 | I189: 2.00 | J189: 1.00 | M189: 3,000.00 | N189: 3,009.99 | P189: 1,274.99 | Q189: 688.92 | R189: 452.29 | S189: 265.08 | T189: 127.30 | U189: 38.94
B190: 0.01 | C190: 9.99 | E190: 7.00 | F190: 5.00 | G190: 4.00 | H190: 3.00 | I190: 2.00 | J190: 1.00 | M190: 3,010.00 | N190: 3,019.99 | P190: 1,281.99 | Q190: 693.92 | R190: 456.29 | S190: 268.08 | T190: 129.30 | U190: 39.94
B191: 0.01 | C191: 9.99 | E191: 7.00 | F191: 5.00 | G191: 4.00 | H191: 3.00 | I191: 2.00 | J191: 1.00 | M191: 3,020.00 | N191: 3,029.99 | P191: 1,288.99 | Q191: 698.92 | R191: 460.29 | S191: 271.08 | T191: 131.30 | U191: 40.94
B192: 0.01 | C192: 9.99 | E192: 7.00 | F192: 5.00 | G192: 4.00 | H192: 3.00 | I192: 2.00 | J192: 1.00 | M192: 3,030.00 | N192: 3,039.99 | P192: 1,295.99 | Q192: 703.92 | R192: 464.29 | S192: 274.08 | T192: =2+T191 -> 133.30 | U192: 41.94
B193: 0.01 | C193: 9.99 | E193: 7.00 | F193: 5.00 | G193: 4.00 | H193: 3.00 | I193: 2.00 | J193: 1.00 | M193: 3,040.00 | N193: 3,049.99 | P193: 1,302.99 | Q193: 708.92 | R193: 468.29 | S193: 277.08 | T193: 135.30 | U193: 42.94
B194: 0.01 | C194: 9.99 | E194: 7.00 | F194: 5.00 | G194: 4.00 | H194: 3.00 | I194: 2.00 | J194: 1.00 | M194: 3,050.00 | N194: 3,059.99 | P194: 1,309.99 | Q194: 713.92 | R194: 472.29 | S194: 280.08 | T194: 137.30 | U194: 43.94
B195: 0.01 | C195: 9.99 | E195: 7.00 | F195: 5.00 | G195: 4.00 | H195: 3.00 | I195: 2.00 | J195: 1.00 | M195: 3,060.00 | N195: 3,069.99 | P195: 1,316.99 | Q195: 718.92 | R195: 476.29 | S195: 283.08 | T195: 139.30 | U195: 44.94
B196: 0.01 | C196: 9.99 | E196: 7.00 | F196: 5.00 | G196: 4.00 | H196: 3.00 | I196: 2.00 | J196: 1.00 | M196: 3,070.00 | N196: 3,079.99 | P196: 1,323.99 | Q196: 723.92 | R196: 480.29 | S196: 286.08 | T196: 141.30 | U196: 45.94
B197: 0.01 | C197: 9.99 | E197: 7.00 | F197: 5.00 | G197: 4.00 | H197: 3.00 | I197: 2.00 | J197: 1.00 | M197: 3,080.00 | N197: 3,089.99 | P197: 1,330.99 | Q197: 728.92 | R197: 484.29 | S197: 289.08 | T197: 143.30 | U197: 46.94
B198: 0.01 | C198: 9.99 | E198: 7.00 | F198: 5.00 | G198: 4.00 | H198: 3.00 | I198: 2.00 | J198: 1.00 | M198: 3,090.00 | N198: 3,099.99 | P198: 1,337.99 | Q198: 733.92 | R198: 488.29 | S198: 292.08 | T198: 145.30 | U198: 47.94
B199: 0.01 | C199: 9.99 | E199: 7.00 | F199: 5.00 | G199: 4.00 | H199: 3.00 | I199: 2.00 | J199: 1.00 | M199: 3,100.00 | N199: 3,109.99 | P199: 1,344.99 | Q199: 738.92 | R199: 492.29 | S199: 295.08 | T199: 147.30 | U199: 48.94
B200: 0.01 | C200: 9.99 | E200: 7.00 | F200: 5.00 | G200: 4.00 | H200: 3.00 | I200: 2.00 | J200: 1.00 | M200: 3,110.00 | N200: 3,119.99 | P200: 1,351.99 | Q200: 743.92 | R200: 496.29 | S200: 298.08 | T200: 149.30 | U200: 49.94
M201: =10+M200 -> 3,120.00 | N201: 3,129.99 | P201: =7+P200 -> 1,358.99 | Q201: 748.92 | R201: 500.29 | S201: 301.08 | T201: 151.30 | U201: 50.94
M202: 3,130.00 | N202: 3,139.99 | P202: 1,365.99 | Q202: 753.92 | R202: 504.29 | S202: 304.08 | T202: 153.30 | U202: 51.94
... 48 more rows

Sheet Parameter_Intern (hidden)
B4: Nr | C4: Tabellenblatt | D4: Hinweise | E4: Hyperlink
B5: 1 | C5: Eingaben | D5: Hier geben Sie die Daten für den Lohnpfändungsrechner ein | E5: #Eingaben!B3
B6: 2 | C6: Beispiel | D6: Hier finden Sie ein Beispiel für die Eingaben | E6: #Beispiel!B3
B7: 3 | C7: Berechnung | D7: Dieses kommen Sie direkt zum Lohnpfändungsrechner | E7: #Berechnung!B3
B8: 4 | C8: Hilfe | D8: Hier finden Sie nähere Informationen über die Anwendung. | E8: #Hilfe!B3
B33: © BWRmed!a, ein Unternehmensbereich der VNR Verlag für die Deutsche Wirtschaft AG - HRexperten24.de
B34: Die Vervielfältigung, Verbreitung oder Veräußerung der Daten oder Texte ist unzulässig und
B35: ausdrücklich nur mit Genehmigung des Verlags gestattet.
